Body Name,Date Paid,Transaction Number,Amount,Supplier Name,Supplier Type ,Expense Area ,Cost Centre Description ,Expense Type
Cambridgeshire County Council,14-Jan-21,51301487991,"-80,000.00",CAMBRIDGESHIRE AND PETERBOROUGH NHS FOUNDATION TRUST,TRUST (OTHER),LD - Head of Service,Head of LDP,Care & Ed Partner Organisations
Cambridgeshire County Council,19-Jan-21,65300016353,"-61,379.86",OCS GROUP UK LTD,TRADE SUPPLIER,Parking Enforcement,Civil Parking Enforcement,Professional Fees and Hired Services
Cambridgeshire County Council,13-Jan-21,51301500684,"-18,784.37",Keys PCE Ltd,CARE ESTABLISHMENT,LAC Placements,Placements - residential homes,Agency Placements - Out of  County
Cambridgeshire County Council,13-Jan-21,51301500680,"-18,784.37",Keys PCE Ltd,CARE ESTABLISHMENT,LAC Placements,Placements - residential homes,Agency Placements - Out of  County
Cambridgeshire County Council,06-Jan-21,51301497779,"-14,171.43",KITES CHILDRENS SERVICES LIMITED,CARE ESTABLISHMENT,LAC Placements,Placements - residential schools,Agency Placements - Out of  County
Cambridgeshire County Council,06-Jan-21,51301497781,"-13,714.29",KITES CHILDRENS SERVICES LIMITED,CARE ESTABLISHMENT,LAC Placements,Placements - residential schools,Agency Placements - Out of  County
Cambridgeshire County Council,06-Jan-21,51301497777,"-13,714.29",KITES CHILDRENS SERVICES LIMITED,CARE ESTABLISHMENT,LAC Placements,Placements - residential schools,Agency Placements - Out of  County
Cambridgeshire County Council,19-Jan-21,51301502860,"-12,083.90",24/7 Support UK Limited,CARE ESTABLISHMENT,LAC Placements,Placements - supported accommodation,Agency Placements - In County
Cambridgeshire County Council,11-Jan-21,51301499071,"-11,498.40",MOTT MACDONALD LTD,TRADE SUPPLIER,GCP - Cambridge South East (A1307),GCP - Cambridge South East (A1307),Construction - External Professional Fees
Cambridgeshire County Council,22-Jan-21,51301504458,"-8,631.28",MIDFIELD LODGE CARE CENTRE,CARE ESTABLISHMENT,OP - City & South Locality - Cost of Care,Older People - City & South - Care,Residential Care
Cambridgeshire County Council,19-Jan-21,51301502863,"-5,040.00",24/7 Support UK Limited,CARE ESTABLISHMENT,LAC Placements,Placements - supported accommodation,Agency Placements - In County
Cambridgeshire County Council,07-Jan-21,51301495766,"-4,189.00",FENLAND ASSOCIATION FOR COMMUNITY TRANSPORT LTD (FACT),LOCAL CLUBS & GROUPS,Passenger Transport other,Community Transport,Grants to Voluntary Bodies
Cambridgeshire County Council,07-Jan-21,51301495767,"-4,189.00",FENLAND ASSOCIATION FOR COMMUNITY TRANSPORT LTD (FACT),LOCAL CLUBS & GROUPS,Passenger Transport other,Community Transport,Grants to Voluntary Bodies
Cambridgeshire County Council,28-Jan-21,51301510229,"-3,632.90",EAST CAMBRIDGESHIRE DISTRICT COUNCIL,OTHER PUBLIC BODIES,Corporate Offices,Ely Register Office,Business rates
Cambridgeshire County Council,05-Jan-21,51301486577,"-3,592.64",PICK EVERARD,TRADE SUPPLIER,"School Condition, Maintenance & Suitability","School Condition, Maintenance & Suitability",Construction - External Professional Fees
Cambridgeshire County Council,26-Jan-21,51301510626,"-3,385.68",Keys PCE Ltd,CARE ESTABLISHMENT,LAC Placements,Placements - residential homes,Agency Placements - Out of  County
Cambridgeshire County Council,29-Jan-21,51301511660,"-3,159.82",RADIS COMMUNITY CARE,CARE ESTABLISHMENT,OP - Hunts Locality - Cost of Care,Hunts OP Team - Care,Supported Living
Cambridgeshire County Council,29-Jan-21,51301511660,"-3,159.82",RADIS COMMUNITY CARE,CARE ESTABLISHMENT,OP - Hunts Locality - Cost of Care,Hunts OP Team - Care,Supported Living
Cambridgeshire County Council,29-Jan-21,51301511660,"-3,159.82",RADIS COMMUNITY CARE,CARE ESTABLISHMENT,OP - Hunts Locality - Cost of Care,Hunts OP Team - Care,Supported Living
Cambridgeshire County Council,29-Jan-21,51301511660,"-3,159.82",RADIS COMMUNITY CARE,CARE ESTABLISHMENT,OP - Hunts Locality - Cost of Care,Hunts OP Team - Care,Supported Living
Cambridgeshire County Council,29-Jan-21,51301511660,"-3,159.82",RADIS COMMUNITY CARE,CARE ESTABLISHMENT,OP - Hunts Locality - Cost of Care,Hunts OP Team - Care,Supported Living
Cambridgeshire County Council,29-Jan-21,51301511660,"-3,159.82",RADIS COMMUNITY CARE,CARE ESTABLISHMENT,OP - Hunts Locality - Cost of Care,Hunts OP Team - Care,Supported Living
Cambridgeshire County Council,29-Jan-21,51301511660,"-3,159.82",RADIS COMMUNITY CARE,CARE ESTABLISHMENT,OP - Hunts Locality - Cost of Care,Hunts OP Team - Care,Supported Living
Cambridgeshire County Council,29-Jan-21,51301511660,"-3,159.82",RADIS COMMUNITY CARE,CARE ESTABLISHMENT,OP - Hunts Locality - Cost of Care,Hunts OP Team - Care,Supported Living
Cambridgeshire County Council,29-Jan-21,51301511660,"-3,159.82",RADIS COMMUNITY CARE,CARE ESTABLISHMENT,OP - Hunts Locality - Cost of Care,Hunts OP Team - Care,Supported Living
Cambridgeshire County Council,29-Jan-21,51301511660,"-3,159.82",RADIS COMMUNITY CARE,CARE ESTABLISHMENT,OP - Hunts Locality - Cost of Care,Hunts OP Team - Care,Supported Living
Cambridgeshire County Council,29-Jan-21,51301511660,"-3,159.82",RADIS COMMUNITY CARE,CARE ESTABLISHMENT,OP - Hunts Locality - Cost of Care,Hunts OP Team - Care,Supported Living
Cambridgeshire County Council,29-Jan-21,51301511660,"-3,159.82",RADIS COMMUNITY CARE,CARE ESTABLISHMENT,OP - Hunts Locality - Cost of Care,Hunts OP Team - Care,Supported Living
Cambridgeshire County Council,29-Jan-21,51301511660,"-3,159.82",RADIS COMMUNITY CARE,CARE ESTABLISHMENT,OP - Hunts Locality - Cost of Care,Hunts OP Team - Care,Supported Living
Cambridgeshire County Council,29-Jan-21,51301511660,"-3,159.82",RADIS COMMUNITY CARE,CARE ESTABLISHMENT,OP - Hunts Locality - Cost of Care,Hunts OP Team - Care,Supported Living
Cambridgeshire County Council,29-Jan-21,51301511660,"-3,159.82",RADIS COMMUNITY CARE,CARE ESTABLISHMENT,OP - Hunts Locality - Cost of Care,Hunts OP Team - Care,Supported Living
Cambridgeshire County Council,29-Jan-21,51301511660,"-3,159.82",RADIS COMMUNITY CARE,CARE ESTABLISHMENT,OP - Hunts Locality - Cost of Care,Hunts OP Team - Care,Supported Living
Cambridgeshire County Council,29-Jan-21,51301511660,"-3,159.82",RADIS COMMUNITY CARE,CARE ESTABLISHMENT,OP - Hunts Locality - Cost of Care,Hunts OP Team - Care,Supported Living
Cambridgeshire County Council,29-Jan-21,51301511660,"-3,159.82",RADIS COMMUNITY CARE,CARE ESTABLISHMENT,OP - Hunts Locality - Cost of Care,Hunts OP Team - Care,Supported Living
Cambridgeshire County Council,29-Jan-21,51301511660,"-3,159.82",RADIS COMMUNITY CARE,CARE ESTABLISHMENT,OP - Hunts Locality - Cost of Care,Hunts OP Team - Care,Supported Living
Cambridgeshire County Council,29-Jan-21,51301511660,"-3,159.82",RADIS COMMUNITY CARE,CARE ESTABLISHMENT,OP - Hunts Locality - Cost of Care,Hunts OP Team - Care,Supported Living
Cambridgeshire County Council,29-Jan-21,51301511660,"-3,159.82",RADIS COMMUNITY CARE,CARE ESTABLISHMENT,OP - Hunts Locality - Cost of Care,Hunts OP Team - Care,Supported Living
Cambridgeshire County Council,29-Jan-21,51301511660,"-3,159.82",RADIS COMMUNITY CARE,CARE ESTABLISHMENT,OP - Hunts Locality - Cost of Care,Hunts OP Team - Care,Supported Living
Cambridgeshire County Council,29-Jan-21,51301511660,"-3,159.82",RADIS COMMUNITY CARE,CARE ESTABLISHMENT,OP - Hunts Locality - Cost of Care,Hunts OP Team - Care,Supported Living
Cambridgeshire County Council,29-Jan-21,51301511660,"-3,159.82",RADIS COMMUNITY CARE,CARE ESTABLISHMENT,OP - Hunts Locality - Cost of Care,Hunts OP Team - Care,Supported Living
Cambridgeshire County Council,29-Jan-21,51301511660,"-3,159.82",RADIS COMMUNITY CARE,CARE ESTABLISHMENT,OP - Hunts Locality - Cost of Care,Hunts OP Team - Care,Supported Living
Cambridgeshire County Council,29-Jan-21,51301511660,"-3,159.82",RADIS COMMUNITY CARE,CARE ESTABLISHMENT,OP - Hunts Locality - Cost of Care,Hunts OP Team - Care,Supported Living
Cambridgeshire County Council,29-Jan-21,51301511660,"-3,159.82",RADIS COMMUNITY CARE,CARE ESTABLISHMENT,OP - Hunts Locality - Cost of Care,Hunts OP Team - Care,Supported Living
Cambridgeshire County Council,29-Jan-21,51301511660,"-3,159.82",RADIS COMMUNITY CARE,CARE ESTABLISHMENT,OP - Hunts Locality - Cost of Care,Hunts OP Team - Care,Supported Living
Cambridgeshire County Council,29-Jan-21,51301511660,"-3,159.82",RADIS COMMUNITY CARE,CARE ESTABLISHMENT,OP - Hunts Locality - Cost of Care,Hunts OP Team - Care,Supported Living
Cambridgeshire County Council,29-Jan-21,51301511660,"-3,159.82",RADIS COMMUNITY CARE,CARE ESTABLISHMENT,OP - Hunts Locality - Cost of Care,Hunts OP Team - Care,Supported Living
Cambridgeshire County Council,29-Jan-21,51301511660,"-3,159.82",RADIS COMMUNITY CARE,CARE ESTABLISHMENT,OP - Hunts Locality - Cost of Care,Hunts OP Team - Care,Supported Living
Cambridgeshire County Council,29-Jan-21,51301511660,"-3,159.82",RADIS COMMUNITY CARE,CARE ESTABLISHMENT,OP - Hunts Locality - Cost of Care,Hunts OP Team - Care,Supported Living
Cambridgeshire County Council,29-Jan-21,51301511660,"-3,159.82",RADIS COMMUNITY CARE,CARE ESTABLISHMENT,OP - Hunts Locality - Cost of Care,Hunts OP Team - Care,Supported Living
Cambridgeshire County Council,29-Jan-21,51301511660,"-3,159.82",RADIS COMMUNITY CARE,CARE ESTABLISHMENT,OP - Hunts Locality - Cost of Care,Hunts OP Team - Care,Supported Living
Cambridgeshire County Council,29-Jan-21,51301511660,"-3,159.82",RADIS COMMUNITY CARE,CARE ESTABLISHMENT,OP - Hunts Locality - Cost of Care,Hunts OP Team - Care,Supported Living
Cambridgeshire County Council,29-Jan-21,51301511660,"-3,159.82",RADIS COMMUNITY CARE,CARE ESTABLISHMENT,OP - Hunts Locality - Cost of Care,Hunts OP Team - Care,Supported Living
Cambridgeshire County Council,29-Jan-21,51301511660,"-3,159.82",RADIS COMMUNITY CARE,CARE ESTABLISHMENT,OP - Hunts Locality - Cost of Care,Hunts OP Team - Care,Supported Living
Cambridgeshire County Council,29-Jan-21,51301511660,"-3,159.82",RADIS COMMUNITY CARE,CARE ESTABLISHMENT,OP - Hunts Locality - Cost of Care,Hunts OP Team - Care,Supported Living
Cambridgeshire County Council,29-Jan-21,51301511660,"-3,159.82",RADIS COMMUNITY CARE,CARE ESTABLISHMENT,OP - Hunts Locality - Cost of Care,Hunts OP Team - Care,Supported Living
Cambridgeshire County Council,22-Jan-21,51301507754,"-2,931.70",LONGHURST GROUP LTD,CARE ESTABLISHMENT,OP - City & South Locality - Cost of Care,Older People - City & South - Care,Supported Living
Cambridgeshire County Council,22-Jan-21,51301507754,"-2,931.70",LONGHURST GROUP LTD,CARE ESTABLISHMENT,OP - City & South Locality - Cost of Care,Older People - City & South - Care,Supported Living
Cambridgeshire County Council,22-Jan-21,51301507754,"-2,931.70",LONGHURST GROUP LTD,CARE ESTABLISHMENT,OP - City & South Locality - Cost of Care,Older People - City & South - Care,Supported Living
Cambridgeshire County Council,22-Jan-21,51301507754,"-2,931.70",LONGHURST GROUP LTD,CARE ESTABLISHMENT,OP - City & South Locality - Cost of Care,Older People - City & South - Care,Supported Living
Cambridgeshire County Council,22-Jan-21,51301507754,"-2,931.70",LONGHURST GROUP LTD,CARE ESTABLISHMENT,OP - City & South Locality - Cost of Care,Older People - City & South - Care,Supported Living
Cambridgeshire County Council,22-Jan-21,51301507754,"-2,931.70",LONGHURST GROUP LTD,CARE ESTABLISHMENT,OP - City & South Locality - Cost of Care,Older People - City & South - Care,Supported Living
Cambridgeshire County Council,22-Jan-21,51301507754,"-2,931.70",LONGHURST GROUP LTD,CARE ESTABLISHMENT,OP - City & South Locality - Cost of Care,Older People - City & South - Care,Supported Living
Cambridgeshire County Council,22-Jan-21,51301507754,"-2,931.70",LONGHURST GROUP LTD,CARE ESTABLISHMENT,OP - City & South Locality - Cost of Care,Older People - City & South - Care,Supported Living
Cambridgeshire County Council,22-Jan-21,51301507754,"-2,931.70",LONGHURST GROUP LTD,CARE ESTABLISHMENT,OP - City & South Locality - Cost of Care,Older People - City & South - Care,Supported Living
Cambridgeshire County Council,22-Jan-21,51301507754,"-2,931.70",LONGHURST GROUP LTD,CARE ESTABLISHMENT,OP - City & South Locality - Cost of Care,Older People - City & South - Care,Supported Living
Cambridgeshire County Council,22-Jan-21,51301507754,"-2,931.70",LONGHURST GROUP LTD,CARE ESTABLISHMENT,OP - City & South Locality - Cost of Care,Older People - City & South - Care,Supported Living
Cambridgeshire County Council,22-Jan-21,51301507754,"-2,931.70",LONGHURST GROUP LTD,CARE ESTABLISHMENT,OP - City & South Locality - Cost of Care,Older People - City & South - Care,Supported Living
Cambridgeshire County Council,22-Jan-21,51301507754,"-2,931.70",LONGHURST GROUP LTD,CARE ESTABLISHMENT,OP - City & South Locality - Cost of Care,Older People - City & South - Care,Supported Living
Cambridgeshire County Council,22-Jan-21,51301507754,"-2,931.70",LONGHURST GROUP LTD,CARE ESTABLISHMENT,OP - City & South Locality - Cost of Care,Older People - City & South - Care,Supported Living
Cambridgeshire County Council,22-Jan-21,51301507754,"-2,931.70",LONGHURST GROUP LTD,CARE ESTABLISHMENT,OP - City & South Locality - Cost of Care,Older People - City & South - Care,Supported Living
Cambridgeshire County Council,22-Jan-21,51301507754,"-2,931.70",LONGHURST GROUP LTD,CARE ESTABLISHMENT,OP - City & South Locality - Cost of Care,Older People - City & South - Care,Supported Living
Cambridgeshire County Council,22-Jan-21,51301507754,"-2,931.70",LONGHURST GROUP LTD,CARE ESTABLISHMENT,OP - City & South Locality - Cost of Care,Older People - City & South - Care,Supported Living
Cambridgeshire County Council,22-Jan-21,51301507754,"-2,931.70",LONGHURST GROUP LTD,CARE ESTABLISHMENT,OP - City & South Locality - Cost of Care,Older People - City & South - Care,Supported Living
Cambridgeshire County Council,22-Jan-21,51301507754,"-2,931.70",LONGHURST GROUP LTD,CARE ESTABLISHMENT,OP - City & South Locality - Cost of Care,Older People - City & South - Care,Supported Living
Cambridgeshire County Council,22-Jan-21,51301507754,"-2,931.70",LONGHURST GROUP LTD,CARE ESTABLISHMENT,OP - City & South Locality - Cost of Care,Older People - City & South - Care,Supported Living
Cambridgeshire County Council,22-Jan-21,51301507754,"-2,931.70",LONGHURST GROUP LTD,CARE ESTABLISHMENT,OP - City & South Locality - Cost of Care,Older People - City & South - Care,Supported Living
Cambridgeshire County Council,22-Jan-21,51301507754,"-2,931.70",LONGHURST GROUP LTD,CARE ESTABLISHMENT,OP - City & South Locality - Cost of Care,Older People - City & South - Care,Supported Living
Cambridgeshire County Council,22-Jan-21,51301507754,"-2,931.70",LONGHURST GROUP LTD,CARE ESTABLISHMENT,OP - City & South Locality - Cost of Care,Older People - City & South - Care,Supported Living
Cambridgeshire County Council,22-Jan-21,51301507754,"-2,931.70",LONGHURST GROUP LTD,CARE ESTABLISHMENT,OP - City & South Locality - Cost of Care,Older People - City & South - Care,Supported Living
Cambridgeshire County Council,22-Jan-21,51301507754,"-2,931.70",LONGHURST GROUP LTD,CARE ESTABLISHMENT,OP - City & South Locality - Cost of Care,Older People - City & South - Care,Supported Living
Cambridgeshire County Council,22-Jan-21,51301507754,"-2,931.70",LONGHURST GROUP LTD,CARE ESTABLISHMENT,OP - City & South Locality - Cost of Care,Older People - City & South - Care,Supported Living
Cambridgeshire County Council,22-Jan-21,51301507754,"-2,931.70",LONGHURST GROUP LTD,CARE ESTABLISHMENT,OP - City & South Locality - Cost of Care,Older People - City & South - Care,Supported Living
Cambridgeshire County Council,22-Jan-21,51301507754,"-2,931.70",LONGHURST GROUP LTD,CARE ESTABLISHMENT,OP - City & South Locality - Cost of Care,Older People - City & South - Care,Supported Living
Cambridgeshire County Council,22-Jan-21,51301507754,"-2,931.70",LONGHURST GROUP LTD,CARE ESTABLISHMENT,OP - City & South Locality - Cost of Care,Older People - City & South - Care,Supported Living
Cambridgeshire County Council,22-Jan-21,51301507754,"-2,931.70",LONGHURST GROUP LTD,CARE ESTABLISHMENT,OP - City & South Locality - Cost of Care,Older People - City & South - Care,Supported Living
Cambridgeshire County Council,22-Jan-21,51301507754,"-2,931.70",LONGHURST GROUP LTD,CARE ESTABLISHMENT,OP - City & South Locality - Cost of Care,Older People - City & South - Care,Supported Living
Cambridgeshire County Council,22-Jan-21,51301507754,"-2,931.70",LONGHURST GROUP LTD,CARE ESTABLISHMENT,OP - City & South Locality - Cost of Care,Older People - City & South - Care,Supported Living
Cambridgeshire County Council,22-Jan-21,51301507754,"-2,931.70",LONGHURST GROUP LTD,CARE ESTABLISHMENT,OP - City & South Locality - Cost of Care,Older People - City & South - Care,Supported Living
Cambridgeshire County Council,22-Jan-21,51301507754,"-2,931.70",LONGHURST GROUP LTD,CARE ESTABLISHMENT,OP - City & South Locality - Cost of Care,Older People - City & South - Care,Supported Living
Cambridgeshire County Council,22-Jan-21,51301507754,"-2,931.70",LONGHURST GROUP LTD,CARE ESTABLISHMENT,OP - City & South Locality - Cost of Care,Older People - City & South - Care,Supported Living
Cambridgeshire County Council,22-Jan-21,51301507754,"-2,931.70",LONGHURST GROUP LTD,CARE ESTABLISHMENT,OP - City & South Locality - Cost of Care,Older People - City & South - Care,Supported Living
Cambridgeshire County Council,22-Jan-21,51301507754,"-2,931.70",LONGHURST GROUP LTD,CARE ESTABLISHMENT,OP - City & South Locality - Cost of Care,Older People - City & South - Care,Supported Living
Cambridgeshire County Council,22-Jan-21,51301507754,"-2,931.70",LONGHURST GROUP LTD,CARE ESTABLISHMENT,OP - City & South Locality - Cost of Care,Older People - City & South - Care,Supported Living
Cambridgeshire County Council,22-Jan-21,51301507754,"-2,931.70",LONGHURST GROUP LTD,CARE ESTABLISHMENT,OP - City & South Locality - Cost of Care,Older People - City & South - Care,Supported Living
Cambridgeshire County Council,22-Jan-21,51301508490,"-2,844.00",WOODLANDS CARE CENTRE,CARE ESTABLISHMENT,OP - Fenland Locality - Cost of Care,Older People - Fenland - Care,Nursing Care
Cambridgeshire County Council,22-Jan-21,51301508490,"-2,844.00",WOODLANDS CARE CENTRE,CARE ESTABLISHMENT,OP - Fenland Locality - Cost of Care,Older People - Fenland - Care,Nursing Care
Cambridgeshire County Council,22-Jan-21,51301507753,"-2,842.81",LONGHURST GROUP LTD,CARE ESTABLISHMENT,OP - City & South Locality - Cost of Care,Older People - City & South - Care,Supported Living
Cambridgeshire County Council,22-Jan-21,51301507753,"-2,842.81",LONGHURST GROUP LTD,CARE ESTABLISHMENT,OP - City & South Locality - Cost of Care,Older People - City & South - Care,Supported Living
Cambridgeshire County Council,22-Jan-21,51301507753,"-2,842.81",LONGHURST GROUP LTD,CARE ESTABLISHMENT,OP - City & South Locality - Cost of Care,Older People - City & South - Care,Supported Living
Cambridgeshire County Council,22-Jan-21,51301507753,"-2,842.81",LONGHURST GROUP LTD,CARE ESTABLISHMENT,OP - City & South Locality - Cost of Care,Older People - City & South - Care,Supported Living
Cambridgeshire County Council,22-Jan-21,51301507753,"-2,842.81",LONGHURST GROUP LTD,CARE ESTABLISHMENT,OP - City & South Locality - Cost of Care,Older People - City & South - Care,Supported Living
Cambridgeshire County Council,22-Jan-21,51301507753,"-2,842.81",LONGHURST GROUP LTD,CARE ESTABLISHMENT,OP - City & South Locality - Cost of Care,Older People - City & South - Care,Supported Living
Cambridgeshire County Council,22-Jan-21,51301507753,"-2,842.81",LONGHURST GROUP LTD,CARE ESTABLISHMENT,OP - City & South Locality - Cost of Care,Older People - City & South - Care,Supported Living
Cambridgeshire County Council,22-Jan-21,51301507753,"-2,842.81",LONGHURST GROUP LTD,CARE ESTABLISHMENT,OP - City & South Locality - Cost of Care,Older People - City & South - Care,Supported Living
Cambridgeshire County Council,22-Jan-21,51301507753,"-2,842.81",LONGHURST GROUP LTD,CARE ESTABLISHMENT,OP - City & South Locality - Cost of Care,Older People - City & South - Care,Supported Living
Cambridgeshire County Council,22-Jan-21,51301507753,"-2,842.81",LONGHURST GROUP LTD,CARE ESTABLISHMENT,OP - City & South Locality - Cost of Care,Older People - City & South - Care,Supported Living
Cambridgeshire County Council,22-Jan-21,51301507753,"-2,842.81",LONGHURST GROUP LTD,CARE ESTABLISHMENT,OP - City & South Locality - Cost of Care,Older People - City & South - Care,Supported Living
Cambridgeshire County Council,22-Jan-21,51301507753,"-2,842.81",LONGHURST GROUP LTD,CARE ESTABLISHMENT,OP - City & South Locality - Cost of Care,Older People - City & South - Care,Supported Living
Cambridgeshire County Council,22-Jan-21,51301507753,"-2,842.81",LONGHURST GROUP LTD,CARE ESTABLISHMENT,OP - City & South Locality - Cost of Care,Older People - City & South - Care,Supported Living
Cambridgeshire County Council,22-Jan-21,51301507753,"-2,842.81",LONGHURST GROUP LTD,CARE ESTABLISHMENT,OP - City & South Locality - Cost of Care,Older People - City & South - Care,Supported Living
Cambridgeshire County Council,22-Jan-21,51301507753,"-2,842.81",LONGHURST GROUP LTD,CARE ESTABLISHMENT,OP - City & South Locality - Cost of Care,Older People - City & South - Care,Supported Living
Cambridgeshire County Council,22-Jan-21,51301507753,"-2,842.81",LONGHURST GROUP LTD,CARE ESTABLISHMENT,OP - City & South Locality - Cost of Care,Older People - City & South - Care,Supported Living
Cambridgeshire County Council,22-Jan-21,51301507753,"-2,842.81",LONGHURST GROUP LTD,CARE ESTABLISHMENT,OP - City & South Locality - Cost of Care,Older People - City & South - Care,Supported Living
Cambridgeshire County Council,22-Jan-21,51301507753,"-2,842.81",LONGHURST GROUP LTD,CARE ESTABLISHMENT,OP - City & South Locality - Cost of Care,Older People - City & South - Care,Supported Living
Cambridgeshire County Council,22-Jan-21,51301507753,"-2,842.81",LONGHURST GROUP LTD,CARE ESTABLISHMENT,OP - City & South Locality - Cost of Care,Older People - City & South - Care,Supported Living
Cambridgeshire County Council,22-Jan-21,51301507753,"-2,842.81",LONGHURST GROUP LTD,CARE ESTABLISHMENT,OP - City & South Locality - Cost of Care,Older People - City & South - Care,Supported Living
Cambridgeshire County Council,22-Jan-21,51301507753,"-2,842.81",LONGHURST GROUP LTD,CARE ESTABLISHMENT,OP - City & South Locality - Cost of Care,Older People - City & South - Care,Supported Living
Cambridgeshire County Council,22-Jan-21,51301507753,"-2,842.81",LONGHURST GROUP LTD,CARE ESTABLISHMENT,OP - City & South Locality - Cost of Care,Older People - City & South - Care,Supported Living
Cambridgeshire County Council,22-Jan-21,51301507753,"-2,842.81",LONGHURST GROUP LTD,CARE ESTABLISHMENT,OP - City & South Locality - Cost of Care,Older People - City & South - Care,Supported Living
Cambridgeshire County Council,22-Jan-21,51301507753,"-2,842.81",LONGHURST GROUP LTD,CARE ESTABLISHMENT,OP - City & South Locality - Cost of Care,Older People - City & South - Care,Supported Living
Cambridgeshire County Council,22-Jan-21,51301507753,"-2,842.81",LONGHURST GROUP LTD,CARE ESTABLISHMENT,OP - City & South Locality - Cost of Care,Older People - City & South - Care,Supported Living
Cambridgeshire County Council,22-Jan-21,51301507753,"-2,842.81",LONGHURST GROUP LTD,CARE ESTABLISHMENT,OP - City & South Locality - Cost of Care,Older People - City & South - Care,Supported Living
Cambridgeshire County Council,22-Jan-21,51301507753,"-2,842.81",LONGHURST GROUP LTD,CARE ESTABLISHMENT,OP - City & South Locality - Cost of Care,Older People - City & South - Care,Supported Living
Cambridgeshire County Council,22-Jan-21,51301507753,"-2,842.81",LONGHURST GROUP LTD,CARE ESTABLISHMENT,OP - City & South Locality - Cost of Care,Older People - City & South - Care,Supported Living
Cambridgeshire County Council,22-Jan-21,51301507753,"-2,842.81",LONGHURST GROUP LTD,CARE ESTABLISHMENT,OP - City & South Locality - Cost of Care,Older People - City & South - Care,Supported Living
Cambridgeshire County Council,22-Jan-21,51301507753,"-2,842.81",LONGHURST GROUP LTD,CARE ESTABLISHMENT,OP - City & South Locality - Cost of Care,Older People - City & South - Care,Supported Living
Cambridgeshire County Council,22-Jan-21,51301507753,"-2,842.81",LONGHURST GROUP LTD,CARE ESTABLISHMENT,OP - City & South Locality - Cost of Care,Older People - City & South - Care,Supported Living
Cambridgeshire County Council,22-Jan-21,51301507753,"-2,842.81",LONGHURST GROUP LTD,CARE ESTABLISHMENT,OP - City & South Locality - Cost of Care,Older People - City & South - Care,Supported Living
Cambridgeshire County Council,22-Jan-21,51301507753,"-2,842.81",LONGHURST GROUP LTD,CARE ESTABLISHMENT,OP - City & South Locality - Cost of Care,Older People - City & South - Care,Supported Living
Cambridgeshire County Council,22-Jan-21,51301507753,"-2,842.81",LONGHURST GROUP LTD,CARE ESTABLISHMENT,OP - City & South Locality - Cost of Care,Older People - City & South - Care,Supported Living
Cambridgeshire County Council,22-Jan-21,51301507753,"-2,842.81",LONGHURST GROUP LTD,CARE ESTABLISHMENT,OP - City & South Locality - Cost of Care,Older People - City & South - Care,Supported Living
Cambridgeshire County Council,22-Jan-21,51301507753,"-2,842.81",LONGHURST GROUP LTD,CARE ESTABLISHMENT,OP - City & South Locality - Cost of Care,Older People - City & South - Care,Supported Living
Cambridgeshire County Council,22-Jan-21,51301507753,"-2,842.81",LONGHURST GROUP LTD,CARE ESTABLISHMENT,OP - City & South Locality - Cost of Care,Older People - City & South - Care,Supported Living
Cambridgeshire County Council,22-Jan-21,51301507753,"-2,842.81",LONGHURST GROUP LTD,CARE ESTABLISHMENT,OP - City & South Locality - Cost of Care,Older People - City & South - Care,Supported Living
Cambridgeshire County Council,22-Jan-21,51301507753,"-2,842.81",LONGHURST GROUP LTD,CARE ESTABLISHMENT,OP - City & South Locality - Cost of Care,Older People - City & South - Care,Supported Living
Cambridgeshire County Council,22-Jan-21,51301501134,"-2,759.52",Next Steps Ltd,COMPANY,OP - City & South Locality - Cost of Care,Older People - City & South - Care,Supported Living
Cambridgeshire County Council,22-Jan-21,51301501134,"-2,759.52",Next Steps Ltd,COMPANY,OP - City & South Locality - Cost of Care,Older People - City & South - Care,Supported Living
Cambridgeshire County Council,22-Jan-21,51301501134,"-2,759.52",Next Steps Ltd,COMPANY,OP - City & South Locality - Cost of Care,Older People - City & South - Care,Supported Living
Cambridgeshire County Council,22-Jan-21,51301501134,"-2,759.52",Next Steps Ltd,COMPANY,OP - City & South Locality - Cost of Care,Older People - City & South - Care,Supported Living
Cambridgeshire County Council,22-Jan-21,51301501134,"-2,759.52",Next Steps Ltd,COMPANY,OP - City & South Locality - Cost of Care,Older People - City & South - Care,Supported Living
Cambridgeshire County Council,22-Jan-21,51301501134,"-2,759.52",Next Steps Ltd,COMPANY,OP - City & South Locality - Cost of Care,Older People - City & South - Care,Supported Living
Cambridgeshire County Council,22-Jan-21,51301501134,"-2,759.52",Next Steps Ltd,COMPANY,OP - City & South Locality - Cost of Care,Older People - City & South - Care,Supported Living
Cambridgeshire County Council,22-Jan-21,51301505533,"-2,652.49",TRIPLE HOME CARE LTD,CARE ESTABLISHMENT,OP - Hunts Locality - Cost of Care,Hunts OP Team - Care,Domiciliary Care
Cambridgeshire County Council,28-Jan-21,51301510230,"-2,221.84",EAST CAMBRIDGESHIRE DISTRICT COUNCIL,OTHER PUBLIC BODIES,Corporate Offices,Ely Register Office,Business rates
Cambridgeshire County Council,22-Jan-21,51301508490,"-2,031.43",WOODLANDS CARE CENTRE,CARE ESTABLISHMENT,OP - Fenland Locality - Cost of Care,Older People - Fenland - Care,Nursing Care
Cambridgeshire County Council,22-Jan-21,51301509866,"-2,031.42",Keys PCE Ltd,CARE ESTABLISHMENT,LAC Placements,Placements - residential disability,Agency Placements - Out of  County
Cambridgeshire County Council,21-Jan-21,51301503636,"-2,031.42",Keys PCE Ltd,CARE ESTABLISHMENT,LAC Placements,Placements - residential homes,Agency Placements - Out of  County
Cambridgeshire County Council,21-Jan-21,51301503639,"-2,031.42",Keys PCE Ltd,CARE ESTABLISHMENT,LAC Placements,Placements - residential homes,Agency Placements - In County
Cambridgeshire County Council,21-Jan-21,51301503642,"-2,031.42",Keys PCE Ltd,CARE ESTABLISHMENT,LAC Placements,Placements - residential homes,Agency Placements - Out of  County
Cambridgeshire County Council,22-Jan-21,51301501134,"-1,971.09",Next Steps Ltd,COMPANY,OP - City & South Locality - Cost of Care,Older People - City & South - Care,Supported Living
Cambridgeshire County Council,22-Jan-21,51301509576,"-1,893.20",VOYAGE,CARE ESTABLISHMENT,LD - Hunts Locality - Cost of Care,LD - Huntingdonshire - Special Needs,Supported Living
Cambridgeshire County Council,22-Jan-21,51301509576,"-1,893.20",VOYAGE,CARE ESTABLISHMENT,LD - Hunts Locality - Cost of Care,LD - Huntingdonshire - Special Needs,Supported Living
Cambridgeshire County Council,22-Jan-21,51301504177,"-1,833.92",GLENHOLME HEALTHCARE LTD,CARE ESTABLISHMENT,LD - Hunts Locality - Cost of Care,LD - Huntingdonshire - Special Needs,Residential Care
Cambridgeshire County Council,22-Jan-21,51301504177,"-1,833.92",GLENHOLME HEALTHCARE LTD,CARE ESTABLISHMENT,LD - Hunts Locality - Cost of Care,LD - Huntingdonshire - Special Needs,Residential Care
Cambridgeshire County Council,22-Jan-21,51301504177,"-1,833.92",GLENHOLME HEALTHCARE LTD,CARE ESTABLISHMENT,LD - Hunts Locality - Cost of Care,LD - Huntingdonshire - Special Needs,Residential Care
Cambridgeshire County Council,22-Jan-21,51301504177,"-1,833.92",GLENHOLME HEALTHCARE LTD,CARE ESTABLISHMENT,LD - Hunts Locality - Cost of Care,LD - Huntingdonshire - Special Needs,Residential Care
Cambridgeshire County Council,22-Jan-21,51301504177,"-1,833.92",GLENHOLME HEALTHCARE LTD,CARE ESTABLISHMENT,LD - Hunts Locality - Cost of Care,LD - Huntingdonshire - Special Needs,Residential Care
Cambridgeshire County Council,22-Jan-21,51301504177,"-1,833.92",GLENHOLME HEALTHCARE LTD,CARE ESTABLISHMENT,LD - Hunts Locality - Cost of Care,LD - Huntingdonshire - Special Needs,Residential Care
Cambridgeshire County Council,22-Jan-21,51301504177,"-1,833.92",GLENHOLME HEALTHCARE LTD,CARE ESTABLISHMENT,LD - Hunts Locality - Cost of Care,LD - Huntingdonshire - Special Needs,Residential Care
Cambridgeshire County Council,22-Jan-21,51301504177,"-1,833.92",GLENHOLME HEALTHCARE LTD,CARE ESTABLISHMENT,LD - Hunts Locality - Cost of Care,LD - Huntingdonshire - Special Needs,Residential Care
Cambridgeshire County Council,22-Jan-21,51301504177,"-1,833.92",GLENHOLME HEALTHCARE LTD,CARE ESTABLISHMENT,LD - Hunts Locality - Cost of Care,LD - Huntingdonshire - Special Needs,Residential Care
Cambridgeshire County Council,22-Jan-21,51301504177,"-1,833.92",GLENHOLME HEALTHCARE LTD,CARE ESTABLISHMENT,LD - Hunts Locality - Cost of Care,LD - Huntingdonshire - Special Needs,Residential Care
Cambridgeshire County Council,22-Jan-21,51301504177,"-1,833.92",GLENHOLME HEALTHCARE LTD,CARE ESTABLISHMENT,LD - Hunts Locality - Cost of Care,LD - Huntingdonshire - Special Needs,Residential Care
Cambridgeshire County Council,22-Jan-21,51301504177,"-1,833.92",GLENHOLME HEALTHCARE LTD,CARE ESTABLISHMENT,LD - Hunts Locality - Cost of Care,LD - Huntingdonshire - Special Needs,Residential Care
Cambridgeshire County Council,22-Jan-21,51301504177,"-1,833.92",GLENHOLME HEALTHCARE LTD,CARE ESTABLISHMENT,LD - Hunts Locality - Cost of Care,LD - Huntingdonshire - Special Needs,Residential Care
Cambridgeshire County Council,22-Jan-21,51301504177,"-1,833.92",GLENHOLME HEALTHCARE LTD,CARE ESTABLISHMENT,LD - Hunts Locality - Cost of Care,LD - Huntingdonshire - Special Needs,Residential Care
Cambridgeshire County Council,22-Jan-21,51301504177,"-1,833.92",GLENHOLME HEALTHCARE LTD,CARE ESTABLISHMENT,LD - Hunts Locality - Cost of Care,LD - Huntingdonshire - Special Needs,Residential Care
Cambridgeshire County Council,22-Jan-21,51301504177,"-1,833.92",GLENHOLME HEALTHCARE LTD,CARE ESTABLISHMENT,LD - Hunts Locality - Cost of Care,LD - Huntingdonshire - Special Needs,Residential Care
Cambridgeshire County Council,22-Jan-21,51301504177,"-1,833.92",GLENHOLME HEALTHCARE LTD,CARE ESTABLISHMENT,LD - Hunts Locality - Cost of Care,LD - Huntingdonshire - Special Needs,Residential Care
Cambridgeshire County Council,29-Jan-21,51301511660,"-1,805.61",RADIS COMMUNITY CARE,CARE ESTABLISHMENT,OP - Hunts Locality - Cost of Care,Hunts OP Team - Care,Supported Living
Cambridgeshire County Council,13-Jan-21,51301500674,"-1,801.14",THE NATIONAL FOSTERING AGENCY,CARE ESTABLISHMENT,LAC Placements,Placements - independent fostering,Agency Placements - Out of  County
Cambridgeshire County Council,25-Jan-21,51301501335,"-1,683.68",LCC SUPPORT SERVICES,TRADE SUPPLIER,Corporate Offices,County Offices General,Building Cleaning
Cambridgeshire County Council,22-Jan-21,51301507754,"-1,675.26",LONGHURST GROUP LTD,CARE ESTABLISHMENT,OP - City & South Locality - Cost of Care,Older People - City & South - Care,Supported Living
Cambridgeshire County Council,22-Jan-21,51301508490,"-1,625.14",WOODLANDS CARE CENTRE,CARE ESTABLISHMENT,OP - Fenland Locality - Cost of Care,Older People - Fenland - Care,Nursing Care
Cambridgeshire County Council,22-Jan-21,51301507753,"-1,624.46",LONGHURST GROUP LTD,CARE ESTABLISHMENT,OP - City & South Locality - Cost of Care,Older People - City & South - Care,Supported Living
Cambridgeshire County Council,22-Jan-21,51301493957,"-1,503.11",CAMBRIDGE MANOR CARE HOME (TLC),CARE ESTABLISHMENT,OPMH - City & South,Older People Mental Health City & South,Nursing Care
Cambridgeshire County Council,22-Jan-21,51301493957,"-1,503.11",CAMBRIDGE MANOR CARE HOME (TLC),CARE ESTABLISHMENT,OPMH - City & South,Older People Mental Health City & South,Nursing Care
Cambridgeshire County Council,22-Jan-21,51301493957,"-1,503.11",CAMBRIDGE MANOR CARE HOME (TLC),CARE ESTABLISHMENT,OPMH - City & South,Older People Mental Health City & South,Nursing Care
Cambridgeshire County Council,22-Jan-21,51301493957,"-1,503.11",CAMBRIDGE MANOR CARE HOME (TLC),CARE ESTABLISHMENT,OPMH - City & South,Older People Mental Health City & South,Nursing Care
Cambridgeshire County Council,22-Jan-21,51301493957,"-1,503.11",CAMBRIDGE MANOR CARE HOME (TLC),CARE ESTABLISHMENT,OPMH - City & South,Older People Mental Health City & South,Nursing Care
Cambridgeshire County Council,22-Jan-21,51301493957,"-1,503.11",CAMBRIDGE MANOR CARE HOME (TLC),CARE ESTABLISHMENT,OPMH - City & South,Older People Mental Health City & South,Nursing Care
Cambridgeshire County Council,22-Jan-21,51301493957,"-1,503.11",CAMBRIDGE MANOR CARE HOME (TLC),CARE ESTABLISHMENT,OPMH - City & South,Older People Mental Health City & South,Nursing Care
Cambridgeshire County Council,22-Jan-21,51301493957,"-1,503.11",CAMBRIDGE MANOR CARE HOME (TLC),CARE ESTABLISHMENT,OPMH - City & South,Older People Mental Health City & South,Nursing Care
Cambridgeshire County Council,22-Jan-21,51301493957,"-1,503.11",CAMBRIDGE MANOR CARE HOME (TLC),CARE ESTABLISHMENT,OPMH - City & South,Older People Mental Health City & South,Nursing Care
Cambridgeshire County Council,22-Jan-21,51301493957,"-1,503.11",CAMBRIDGE MANOR CARE HOME (TLC),CARE ESTABLISHMENT,OPMH - City & South,Older People Mental Health City & South,Nursing Care
Cambridgeshire County Council,22-Jan-21,51301493957,"-1,503.11",CAMBRIDGE MANOR CARE HOME (TLC),CARE ESTABLISHMENT,OPMH - City & South,Older People Mental Health City & South,Nursing Care
Cambridgeshire County Council,22-Jan-21,51301493957,"-1,503.11",CAMBRIDGE MANOR CARE HOME (TLC),CARE ESTABLISHMENT,OPMH - City & South,Older People Mental Health City & South,Nursing Care
Cambridgeshire County Council,22-Jan-21,51301493957,"-1,503.11",CAMBRIDGE MANOR CARE HOME (TLC),CARE ESTABLISHMENT,OPMH - City & South,Older People Mental Health City & South,Nursing Care
Cambridgeshire County Council,22-Jan-21,51301493957,"-1,503.11",CAMBRIDGE MANOR CARE HOME (TLC),CARE ESTABLISHMENT,OPMH - City & South,Older People Mental Health City & South,Nursing Care
Cambridgeshire County Council,22-Jan-21,51301493957,"-1,503.11",CAMBRIDGE MANOR CARE HOME (TLC),CARE ESTABLISHMENT,OPMH - City & South,Older People Mental Health City & South,Nursing Care
Cambridgeshire County Council,22-Jan-21,51301493957,"-1,503.11",CAMBRIDGE MANOR CARE HOME (TLC),CARE ESTABLISHMENT,OPMH - City & South,Older People Mental Health City & South,Nursing Care
Cambridgeshire County Council,22-Jan-21,51301493957,"-1,503.11",CAMBRIDGE MANOR CARE HOME (TLC),CARE ESTABLISHMENT,OPMH - City & South,Older People Mental Health City & South,Nursing Care
Cambridgeshire County Council,22-Jan-21,51301493957,"-1,503.11",CAMBRIDGE MANOR CARE HOME (TLC),CARE ESTABLISHMENT,OPMH - City & South,Older People Mental Health City & South,Nursing Care
Cambridgeshire County Council,22-Jan-21,51301493957,"-1,503.11",CAMBRIDGE MANOR CARE HOME (TLC),CARE ESTABLISHMENT,OPMH - City & South,Older People Mental Health City & South,Nursing Care
Cambridgeshire County Council,22-Jan-21,51301493957,"-1,503.11",CAMBRIDGE MANOR CARE HOME (TLC),CARE ESTABLISHMENT,OPMH - City & South,Older People Mental Health City & South,Nursing Care
Cambridgeshire County Council,22-Jan-21,51301493957,"-1,503.11",CAMBRIDGE MANOR CARE HOME (TLC),CARE ESTABLISHMENT,OPMH - City & South,Older People Mental Health City & South,Nursing Care
Cambridgeshire County Council,22-Jan-21,51301493957,"-1,503.11",CAMBRIDGE MANOR CARE HOME (TLC),CARE ESTABLISHMENT,OPMH - City & South,Older People Mental Health City & South,Nursing Care
Cambridgeshire County Council,22-Jan-21,51301493957,"-1,503.11",CAMBRIDGE MANOR CARE HOME (TLC),CARE ESTABLISHMENT,OPMH - City & South,Older People Mental Health City & South,Nursing Care
Cambridgeshire County Council,22-Jan-21,51301493957,"-1,503.11",CAMBRIDGE MANOR CARE HOME (TLC),CARE ESTABLISHMENT,OPMH - City & South,Older People Mental Health City & South,Nursing Care
Cambridgeshire County Council,22-Jan-21,51301493957,"-1,503.11",CAMBRIDGE MANOR CARE HOME (TLC),CARE ESTABLISHMENT,OPMH - City & South,Older People Mental Health City & South,Nursing Care
Cambridgeshire County Council,22-Jan-21,51301493957,"-1,503.11",CAMBRIDGE MANOR CARE HOME (TLC),CARE ESTABLISHMENT,OPMH - City & South,Older People Mental Health City & South,Nursing Care
Cambridgeshire County Council,22-Jan-21,51301493957,"-1,503.11",CAMBRIDGE MANOR CARE HOME (TLC),CARE ESTABLISHMENT,OPMH - City & South,Older People Mental Health City & South,Nursing Care
Cambridgeshire County Council,22-Jan-21,51301493957,"-1,503.11",CAMBRIDGE MANOR CARE HOME (TLC),CARE ESTABLISHMENT,OPMH - City & South,Older People Mental Health City & South,Nursing Care
Cambridgeshire County Council,22-Jan-21,51301493957,"-1,503.11",CAMBRIDGE MANOR CARE HOME (TLC),CARE ESTABLISHMENT,OPMH - City & South,Older People Mental Health City & South,Nursing Care
Cambridgeshire County Council,22-Jan-21,51301493957,"-1,503.11",CAMBRIDGE MANOR CARE HOME (TLC),CARE ESTABLISHMENT,OPMH - City & South,Older People Mental Health City & South,Nursing Care
Cambridgeshire County Council,22-Jan-21,51301493957,"-1,503.11",CAMBRIDGE MANOR CARE HOME (TLC),CARE ESTABLISHMENT,OPMH - City & South,Older People Mental Health City & South,Nursing Care
Cambridgeshire County Council,22-Jan-21,51301493957,"-1,503.11",CAMBRIDGE MANOR CARE HOME (TLC),CARE ESTABLISHMENT,OPMH - City & South,Older People Mental Health City & South,Nursing Care
Cambridgeshire County Council,22-Jan-21,51301493957,"-1,503.11",CAMBRIDGE MANOR CARE HOME (TLC),CARE ESTABLISHMENT,OPMH - City & South,Older People Mental Health City & South,Nursing Care
Cambridgeshire County Council,22-Jan-21,51301493957,"-1,503.11",CAMBRIDGE MANOR CARE HOME (TLC),CARE ESTABLISHMENT,OPMH - City & South,Older People Mental Health City & South,Nursing Care
Cambridgeshire County Council,22-Jan-21,51301493957,"-1,503.11",CAMBRIDGE MANOR CARE HOME (TLC),CARE ESTABLISHMENT,OPMH - City & South,Older People Mental Health City & South,Nursing Care
Cambridgeshire County Council,22-Jan-21,51301493957,"-1,503.11",CAMBRIDGE MANOR CARE HOME (TLC),CARE ESTABLISHMENT,OPMH - City & South,Older People Mental Health City & South,Nursing Care
Cambridgeshire County Council,22-Jan-21,51301493957,"-1,503.11",CAMBRIDGE MANOR CARE HOME (TLC),CARE ESTABLISHMENT,OPMH - City & South,Older People Mental Health City & South,Nursing Care
Cambridgeshire County Council,22-Jan-21,51301493957,"-1,503.11",CAMBRIDGE MANOR CARE HOME (TLC),CARE ESTABLISHMENT,OPMH - City & South,Older People Mental Health City & South,Nursing Care
Cambridgeshire County Council,22-Jan-21,51301493957,"-1,503.11",CAMBRIDGE MANOR CARE HOME (TLC),CARE ESTABLISHMENT,OPMH - City & South,Older People Mental Health City & South,Nursing Care
Cambridgeshire County Council,22-Jan-21,51301493957,"-1,503.11",CAMBRIDGE MANOR CARE HOME (TLC),CARE ESTABLISHMENT,OPMH - City & South,Older People Mental Health City & South,Nursing Care
Cambridgeshire County Council,22-Jan-21,51301493957,"-1,503.11",CAMBRIDGE MANOR CARE HOME (TLC),CARE ESTABLISHMENT,OPMH - City & South,Older People Mental Health City & South,Nursing Care
Cambridgeshire County Council,22-Jan-21,51301493957,"-1,503.11",CAMBRIDGE MANOR CARE HOME (TLC),CARE ESTABLISHMENT,OPMH - City & South,Older People Mental Health City & South,Nursing Care
Cambridgeshire County Council,22-Jan-21,51301493957,"-1,503.11",CAMBRIDGE MANOR CARE HOME (TLC),CARE ESTABLISHMENT,OPMH - City & South,Older People Mental Health City & South,Nursing Care
Cambridgeshire County Council,22-Jan-21,51301493957,"-1,503.11",CAMBRIDGE MANOR CARE HOME (TLC),CARE ESTABLISHMENT,OPMH - City & South,Older People Mental Health City & South,Nursing Care
Cambridgeshire County Council,22-Jan-21,51301493957,"-1,503.11",CAMBRIDGE MANOR CARE HOME (TLC),CARE ESTABLISHMENT,OPMH - City & South,Older People Mental Health City & South,Nursing Care
Cambridgeshire County Council,22-Jan-21,51301493957,"-1,503.11",CAMBRIDGE MANOR CARE HOME (TLC),CARE ESTABLISHMENT,OPMH - City & South,Older People Mental Health City & South,Nursing Care
Cambridgeshire County Council,22-Jan-21,51301493957,"-1,503.11",CAMBRIDGE MANOR CARE HOME (TLC),CARE ESTABLISHMENT,OPMH - City & South,Older People Mental Health City & South,Nursing Care
Cambridgeshire County Council,22-Jan-21,51301493957,"-1,503.11",CAMBRIDGE MANOR CARE HOME (TLC),CARE ESTABLISHMENT,OPMH - City & South,Older People Mental Health City & South,Nursing Care
Cambridgeshire County Council,22-Jan-21,51301493957,"-1,503.11",CAMBRIDGE MANOR CARE HOME (TLC),CARE ESTABLISHMENT,OPMH - City & South,Older People Mental Health City & South,Nursing Care
Cambridgeshire County Council,22-Jan-21,51301493957,"-1,503.11",CAMBRIDGE MANOR CARE HOME (TLC),CARE ESTABLISHMENT,OPMH - City & South,Older People Mental Health City & South,Nursing Care
Cambridgeshire County Council,22-Jan-21,51301493957,"-1,503.11",CAMBRIDGE MANOR CARE HOME (TLC),CARE ESTABLISHMENT,OPMH - City & South,Older People Mental Health City & South,Nursing Care
Cambridgeshire County Council,22-Jan-21,51301493957,"-1,503.11",CAMBRIDGE MANOR CARE HOME (TLC),CARE ESTABLISHMENT,OPMH - City & South,Older People Mental Health City & South,Nursing Care
Cambridgeshire County Council,22-Jan-21,51301493957,"-1,503.11",CAMBRIDGE MANOR CARE HOME (TLC),CARE ESTABLISHMENT,OPMH - City & South,Older People Mental Health City & South,Nursing Care
Cambridgeshire County Council,22-Jan-21,51301493957,"-1,503.11",CAMBRIDGE MANOR CARE HOME (TLC),CARE ESTABLISHMENT,OPMH - City & South,Older People Mental Health City & South,Nursing Care
Cambridgeshire County Council,22-Jan-21,51301493957,"-1,503.11",CAMBRIDGE MANOR CARE HOME (TLC),CARE ESTABLISHMENT,OPMH - City & South,Older People Mental Health City & South,Nursing Care
Cambridgeshire County Council,22-Jan-21,51301493957,"-1,503.11",CAMBRIDGE MANOR CARE HOME (TLC),CARE ESTABLISHMENT,OPMH - City & South,Older People Mental Health City & South,Nursing Care
Cambridgeshire County Council,22-Jan-21,51301493957,"-1,503.11",CAMBRIDGE MANOR CARE HOME (TLC),CARE ESTABLISHMENT,OPMH - City & South,Older People Mental Health City & South,Nursing Care
Cambridgeshire County Council,22-Jan-21,51301493957,"-1,503.11",CAMBRIDGE MANOR CARE HOME (TLC),CARE ESTABLISHMENT,OPMH - City & South,Older People Mental Health City & South,Nursing Care
Cambridgeshire County Council,22-Jan-21,51301493957,"-1,503.11",CAMBRIDGE MANOR CARE HOME (TLC),CARE ESTABLISHMENT,OPMH - City & South,Older People Mental Health City & South,Nursing Care
Cambridgeshire County Council,22-Jan-21,51301493957,"-1,503.11",CAMBRIDGE MANOR CARE HOME (TLC),CARE ESTABLISHMENT,OPMH - City & South,Older People Mental Health City & South,Nursing Care
Cambridgeshire County Council,22-Jan-21,51301493957,"-1,503.11",CAMBRIDGE MANOR CARE HOME (TLC),CARE ESTABLISHMENT,OPMH - City & South,Older People Mental Health City & South,Nursing Care
Cambridgeshire County Council,22-Jan-21,51301493957,"-1,503.11",CAMBRIDGE MANOR CARE HOME (TLC),CARE ESTABLISHMENT,OPMH - City & South,Older People Mental Health City & South,Nursing Care
Cambridgeshire County Council,22-Jan-21,51301493957,"-1,503.11",CAMBRIDGE MANOR CARE HOME (TLC),CARE ESTABLISHMENT,OPMH - City & South,Older People Mental Health City & South,Nursing Care
Cambridgeshire County Council,22-Jan-21,51301493957,"-1,503.11",CAMBRIDGE MANOR CARE HOME (TLC),CARE ESTABLISHMENT,OPMH - City & South,Older People Mental Health City & South,Nursing Care
Cambridgeshire County Council,22-Jan-21,51301493957,"-1,503.11",CAMBRIDGE MANOR CARE HOME (TLC),CARE ESTABLISHMENT,OPMH - City & South,Older People Mental Health City & South,Nursing Care
Cambridgeshire County Council,22-Jan-21,51301493957,"-1,503.11",CAMBRIDGE MANOR CARE HOME (TLC),CARE ESTABLISHMENT,OPMH - City & South,Older People Mental Health City & South,Nursing Care
Cambridgeshire County Council,22-Jan-21,51301493957,"-1,503.11",CAMBRIDGE MANOR CARE HOME (TLC),CARE ESTABLISHMENT,OPMH - City & South,Older People Mental Health City & South,Nursing Care
Cambridgeshire County Council,22-Jan-21,51301493957,"-1,503.11",CAMBRIDGE MANOR CARE HOME (TLC),CARE ESTABLISHMENT,OPMH - City & South,Older People Mental Health City & South,Nursing Care
Cambridgeshire County Council,22-Jan-21,51301493957,"-1,503.11",CAMBRIDGE MANOR CARE HOME (TLC),CARE ESTABLISHMENT,OPMH - City & South,Older People Mental Health City & South,Nursing Care
Cambridgeshire County Council,22-Jan-21,51301493957,"-1,503.11",CAMBRIDGE MANOR CARE HOME (TLC),CARE ESTABLISHMENT,OPMH - City & South,Older People Mental Health City & South,Nursing Care
Cambridgeshire County Council,22-Jan-21,51301493957,"-1,503.11",CAMBRIDGE MANOR CARE HOME (TLC),CARE ESTABLISHMENT,OPMH - City & South,Older People Mental Health City & South,Nursing Care
Cambridgeshire County Council,22-Jan-21,51301493957,"-1,503.11",CAMBRIDGE MANOR CARE HOME (TLC),CARE ESTABLISHMENT,OPMH - City & South,Older People Mental Health City & South,Nursing Care
Cambridgeshire County Council,22-Jan-21,51301493957,"-1,503.11",CAMBRIDGE MANOR CARE HOME (TLC),CARE ESTABLISHMENT,OPMH - City & South,Older People Mental Health City & South,Nursing Care
Cambridgeshire County Council,22-Jan-21,51301493957,"-1,503.11",CAMBRIDGE MANOR CARE HOME (TLC),CARE ESTABLISHMENT,OPMH - City & South,Older People Mental Health City & South,Nursing Care
Cambridgeshire County Council,22-Jan-21,51301493957,"-1,503.11",CAMBRIDGE MANOR CARE HOME (TLC),CARE ESTABLISHMENT,OPMH - City & South,Older People Mental Health City & South,Nursing Care
Cambridgeshire County Council,22-Jan-21,51301493957,"-1,503.11",CAMBRIDGE MANOR CARE HOME (TLC),CARE ESTABLISHMENT,OPMH - City & South,Older People Mental Health City & South,Nursing Care
Cambridgeshire County Council,22-Jan-21,51301493957,"-1,503.11",CAMBRIDGE MANOR CARE HOME (TLC),CARE ESTABLISHMENT,OPMH - City & South,Older People Mental Health City & South,Nursing Care
Cambridgeshire County Council,22-Jan-21,51301493957,"-1,503.11",CAMBRIDGE MANOR CARE HOME (TLC),CARE ESTABLISHMENT,OPMH - City & South,Older People Mental Health City & South,Nursing Care
Cambridgeshire County Council,22-Jan-21,51301493957,"-1,503.11",CAMBRIDGE MANOR CARE HOME (TLC),CARE ESTABLISHMENT,OPMH - City & South,Older People Mental Health City & South,Nursing Care
Cambridgeshire County Council,22-Jan-21,51301493957,"-1,503.11",CAMBRIDGE MANOR CARE HOME (TLC),CARE ESTABLISHMENT,OPMH - City & South,Older People Mental Health City & South,Nursing Care
Cambridgeshire County Council,22-Jan-21,51301493957,"-1,503.11",CAMBRIDGE MANOR CARE HOME (TLC),CARE ESTABLISHMENT,OPMH - City & South,Older People Mental Health City & South,Nursing Care
Cambridgeshire County Council,22-Jan-21,51301493957,"-1,503.11",CAMBRIDGE MANOR CARE HOME (TLC),CARE ESTABLISHMENT,OPMH - City & South,Older People Mental Health City & South,Nursing Care
Cambridgeshire County Council,22-Jan-21,51301493957,"-1,503.11",CAMBRIDGE MANOR CARE HOME (TLC),CARE ESTABLISHMENT,OPMH - City & South,Older People Mental Health City & South,Nursing Care
Cambridgeshire County Council,22-Jan-21,51301493957,"-1,503.11",CAMBRIDGE MANOR CARE HOME (TLC),CARE ESTABLISHMENT,OPMH - City & South,Older People Mental Health City & South,Nursing Care
Cambridgeshire County Council,22-Jan-21,51301493957,"-1,503.11",CAMBRIDGE MANOR CARE HOME (TLC),CARE ESTABLISHMENT,OPMH - City & South,Older People Mental Health City & South,Nursing Care
Cambridgeshire County Council,22-Jan-21,51301493957,"-1,503.11",CAMBRIDGE MANOR CARE HOME (TLC),CARE ESTABLISHMENT,OPMH - City & South,Older People Mental Health City & South,Nursing Care
Cambridgeshire County Council,22-Jan-21,51301493957,"-1,503.11",CAMBRIDGE MANOR CARE HOME (TLC),CARE ESTABLISHMENT,OPMH - City & South,Older People Mental Health City & South,Nursing Care
Cambridgeshire County Council,22-Jan-21,51301493957,"-1,503.11",CAMBRIDGE MANOR CARE HOME (TLC),CARE ESTABLISHMENT,OPMH - City & South,Older People Mental Health City & South,Nursing Care
Cambridgeshire County Council,22-Jan-21,51301493957,"-1,503.11",CAMBRIDGE MANOR CARE HOME (TLC),CARE ESTABLISHMENT,OPMH - City & South,Older People Mental Health City & South,Nursing Care
Cambridgeshire County Council,22-Jan-21,51301493957,"-1,503.11",CAMBRIDGE MANOR CARE HOME (TLC),CARE ESTABLISHMENT,OPMH - City & South,Older People Mental Health City & South,Nursing Care
Cambridgeshire County Council,22-Jan-21,51301493957,"-1,503.11",CAMBRIDGE MANOR CARE HOME (TLC),CARE ESTABLISHMENT,OPMH - City & South,Older People Mental Health City & South,Nursing Care
Cambridgeshire County Council,22-Jan-21,51301493957,"-1,503.11",CAMBRIDGE MANOR CARE HOME (TLC),CARE ESTABLISHMENT,OPMH - City & South,Older People Mental Health City & South,Nursing Care
Cambridgeshire County Council,22-Jan-21,51301493957,"-1,503.11",CAMBRIDGE MANOR CARE HOME (TLC),CARE ESTABLISHMENT,OPMH - City & South,Older People Mental Health City & South,Nursing Care
Cambridgeshire County Council,22-Jan-21,51301493957,"-1,503.11",CAMBRIDGE MANOR CARE HOME (TLC),CARE ESTABLISHMENT,OPMH - City & South,Older People Mental Health City & South,Nursing Care
Cambridgeshire County Council,22-Jan-21,51301493957,"-1,503.11",CAMBRIDGE MANOR CARE HOME (TLC),CARE ESTABLISHMENT,OPMH - City & South,Older People Mental Health City & South,Nursing Care
Cambridgeshire County Council,22-Jan-21,51301493957,"-1,503.11",CAMBRIDGE MANOR CARE HOME (TLC),CARE ESTABLISHMENT,OPMH - City & South,Older People Mental Health City & South,Nursing Care
Cambridgeshire County Council,22-Jan-21,51301504437,"-1,450.00",ELTISLEY MANOR (PSYCARE LTD),CARE ESTABLISHMENT,Physical Disablity - Cost of Care,Countywide PD Service - Care,Residential Care
Cambridgeshire County Council,22-Jan-21,51301504437,"-1,450.00",ELTISLEY MANOR (PSYCARE LTD),CARE ESTABLISHMENT,Physical Disablity - Cost of Care,Countywide PD Service - Care,Residential Care
Cambridgeshire County Council,22-Jan-21,51301504437,"-1,450.00",ELTISLEY MANOR (PSYCARE LTD),CARE ESTABLISHMENT,Physical Disablity - Cost of Care,Countywide PD Service - Care,Residential Care
Cambridgeshire County Council,22-Jan-21,51301504437,"-1,450.00",ELTISLEY MANOR (PSYCARE LTD),CARE ESTABLISHMENT,Physical Disablity - Cost of Care,Countywide PD Service - Care,Residential Care
Cambridgeshire County Council,22-Jan-21,51301504437,"-1,450.00",ELTISLEY MANOR (PSYCARE LTD),CARE ESTABLISHMENT,Physical Disablity - Cost of Care,Countywide PD Service - Care,Residential Care
Cambridgeshire County Council,22-Jan-21,51301504437,"-1,450.00",ELTISLEY MANOR (PSYCARE LTD),CARE ESTABLISHMENT,Physical Disablity - Cost of Care,Countywide PD Service - Care,Residential Care
Cambridgeshire County Council,22-Jan-21,51301504437,"-1,450.00",ELTISLEY MANOR (PSYCARE LTD),CARE ESTABLISHMENT,Physical Disablity - Cost of Care,Countywide PD Service - Care,Residential Care
Cambridgeshire County Council,29-Jan-21,51301511664,"-1,400.00",WOODLANDS CARE CENTRE,CARE ESTABLISHMENT,AMH - City South,Cambridge South Mental Health,Nursing Care
Cambridgeshire County Council,29-Jan-21,51301511664,"-1,400.00",WOODLANDS CARE CENTRE,CARE ESTABLISHMENT,AMH - City South,Cambridge South Mental Health,Nursing Care
Cambridgeshire County Council,29-Jan-21,51301511664,"-1,400.00",WOODLANDS CARE CENTRE,CARE ESTABLISHMENT,AMH - City South,Cambridge South Mental Health,Nursing Care
Cambridgeshire County Council,29-Jan-21,51301511664,"-1,400.00",WOODLANDS CARE CENTRE,CARE ESTABLISHMENT,AMH - City South,Cambridge South Mental Health,Nursing Care
Cambridgeshire County Council,29-Jan-21,51301511664,"-1,400.00",WOODLANDS CARE CENTRE,CARE ESTABLISHMENT,AMH - City South,Cambridge South Mental Health,Nursing Care
Cambridgeshire County Council,29-Jan-21,51301511664,"-1,400.00",WOODLANDS CARE CENTRE,CARE ESTABLISHMENT,AMH - City South,Cambridge South Mental Health,Nursing Care
Cambridgeshire County Council,29-Jan-21,51301511664,"-1,400.00",WOODLANDS CARE CENTRE,CARE ESTABLISHMENT,AMH - City South,Cambridge South Mental Health,Nursing Care
Cambridgeshire County Council,29-Jan-21,51301511664,"-1,400.00",WOODLANDS CARE CENTRE,CARE ESTABLISHMENT,AMH - City South,Cambridge South Mental Health,Nursing Care
Cambridgeshire County Council,29-Jan-21,51301511664,"-1,400.00",WOODLANDS CARE CENTRE,CARE ESTABLISHMENT,AMH - City South,Cambridge South Mental Health,Nursing Care
Cambridgeshire County Council,29-Jan-21,51301511664,"-1,400.00",WOODLANDS CARE CENTRE,CARE ESTABLISHMENT,AMH - City South,Cambridge South Mental Health,Nursing Care
Cambridgeshire County Council,29-Jan-21,51301511664,"-1,400.00",WOODLANDS CARE CENTRE,CARE ESTABLISHMENT,AMH - City South,Cambridge South Mental Health,Nursing Care
Cambridgeshire County Council,29-Jan-21,51301511664,"-1,400.00",WOODLANDS CARE CENTRE,CARE ESTABLISHMENT,AMH - City South,Cambridge South Mental Health,Nursing Care
Cambridgeshire County Council,29-Jan-21,51301511664,"-1,400.00",WOODLANDS CARE CENTRE,CARE ESTABLISHMENT,AMH - City South,Cambridge South Mental Health,Nursing Care
Cambridgeshire County Council,29-Jan-21,51301511664,"-1,400.00",WOODLANDS CARE CENTRE,CARE ESTABLISHMENT,AMH - City South,Cambridge South Mental Health,Nursing Care
Cambridgeshire County Council,29-Jan-21,51301511664,"-1,400.00",WOODLANDS CARE CENTRE,CARE ESTABLISHMENT,AMH - City South,Cambridge South Mental Health,Nursing Care
Cambridgeshire County Council,29-Jan-21,51301511664,"-1,400.00",WOODLANDS CARE CENTRE,CARE ESTABLISHMENT,AMH - City South,Cambridge South Mental Health,Nursing Care
Cambridgeshire County Council,29-Jan-21,51301511664,"-1,400.00",WOODLANDS CARE CENTRE,CARE ESTABLISHMENT,AMH - City South,Cambridge South Mental Health,Nursing Care
Cambridgeshire County Council,29-Jan-21,51301511664,"-1,400.00",WOODLANDS CARE CENTRE,CARE ESTABLISHMENT,AMH - City South,Cambridge South Mental Health,Nursing Care
Cambridgeshire County Council,29-Jan-21,51301511664,"-1,400.00",WOODLANDS CARE CENTRE,CARE ESTABLISHMENT,AMH - City South,Cambridge South Mental Health,Nursing Care
Cambridgeshire County Council,29-Jan-21,51301511664,"-1,400.00",WOODLANDS CARE CENTRE,CARE ESTABLISHMENT,AMH - City South,Cambridge South Mental Health,Nursing Care
Cambridgeshire County Council,29-Jan-21,51301511664,"-1,400.00",WOODLANDS CARE CENTRE,CARE ESTABLISHMENT,AMH - City South,Cambridge South Mental Health,Nursing Care
Cambridgeshire County Council,29-Jan-21,51301511664,"-1,400.00",WOODLANDS CARE CENTRE,CARE ESTABLISHMENT,AMH - City South,Cambridge South Mental Health,Nursing Care
Cambridgeshire County Council,29-Jan-21,51301511664,"-1,400.00",WOODLANDS CARE CENTRE,CARE ESTABLISHMENT,AMH - City South,Cambridge South Mental Health,Nursing Care
Cambridgeshire County Council,29-Jan-21,51301511664,"-1,400.00",WOODLANDS CARE CENTRE,CARE ESTABLISHMENT,AMH - City South,Cambridge South Mental Health,Nursing Care
Cambridgeshire County Council,29-Jan-21,51301511664,"-1,400.00",WOODLANDS CARE CENTRE,CARE ESTABLISHMENT,AMH - City South,Cambridge South Mental Health,Nursing Care
Cambridgeshire County Council,29-Jan-21,51301511664,"-1,400.00",WOODLANDS CARE CENTRE,CARE ESTABLISHMENT,AMH - City South,Cambridge South Mental Health,Nursing Care
Cambridgeshire County Council,29-Jan-21,51301511664,"-1,400.00",WOODLANDS CARE CENTRE,CARE ESTABLISHMENT,AMH - City South,Cambridge South Mental Health,Nursing Care
Cambridgeshire County Council,29-Jan-21,51301511664,"-1,400.00",WOODLANDS CARE CENTRE,CARE ESTABLISHMENT,AMH - City South,Cambridge South Mental Health,Nursing Care
Cambridgeshire County Council,29-Jan-21,51301511664,"-1,400.00",WOODLANDS CARE CENTRE,CARE ESTABLISHMENT,AMH - City South,Cambridge South Mental Health,Nursing Care
Cambridgeshire County Council,29-Jan-21,51301511664,"-1,400.00",WOODLANDS CARE CENTRE,CARE ESTABLISHMENT,AMH - City South,Cambridge South Mental Health,Nursing Care
Cambridgeshire County Council,29-Jan-21,51301511664,"-1,400.00",WOODLANDS CARE CENTRE,CARE ESTABLISHMENT,AMH - City South,Cambridge South Mental Health,Nursing Care
Cambridgeshire County Council,29-Jan-21,51301511664,"-1,400.00",WOODLANDS CARE CENTRE,CARE ESTABLISHMENT,AMH - City South,Cambridge South Mental Health,Nursing Care
Cambridgeshire County Council,29-Jan-21,51301511664,"-1,400.00",WOODLANDS CARE CENTRE,CARE ESTABLISHMENT,AMH - City South,Cambridge South Mental Health,Nursing Care
Cambridgeshire County Council,29-Jan-21,51301511664,"-1,400.00",WOODLANDS CARE CENTRE,CARE ESTABLISHMENT,AMH - City South,Cambridge South Mental Health,Nursing Care
Cambridgeshire County Council,29-Jan-21,51301511664,"-1,400.00",WOODLANDS CARE CENTRE,CARE ESTABLISHMENT,AMH - City South,Cambridge South Mental Health,Nursing Care
Cambridgeshire County Council,29-Jan-21,51301511664,"-1,400.00",WOODLANDS CARE CENTRE,CARE ESTABLISHMENT,AMH - City South,Cambridge South Mental Health,Nursing Care
Cambridgeshire County Council,29-Jan-21,51301511666,"-1,366.08",WOODLANDS CARE CENTRE,CARE ESTABLISHMENT,OP - East Cambs Locality - Cost of Care,East Cambs - O P Team - Care,Nursing Care
Cambridgeshire County Council,29-Jan-21,51301511666,"-1,366.08",WOODLANDS CARE CENTRE,CARE ESTABLISHMENT,OP - East Cambs Locality - Cost of Care,East Cambs - O P Team - Care,Nursing Care
Cambridgeshire County Council,29-Jan-21,51301511666,"-1,366.08",WOODLANDS CARE CENTRE,CARE ESTABLISHMENT,OP - East Cambs Locality - Cost of Care,East Cambs - O P Team - Care,Nursing Care
Cambridgeshire County Council,29-Jan-21,51301511666,"-1,366.08",WOODLANDS CARE CENTRE,CARE ESTABLISHMENT,OP - East Cambs Locality - Cost of Care,East Cambs - O P Team - Care,Nursing Care
Cambridgeshire County Council,29-Jan-21,51301511666,"-1,366.08",WOODLANDS CARE CENTRE,CARE ESTABLISHMENT,OP - East Cambs Locality - Cost of Care,East Cambs - O P Team - Care,Nursing Care
Cambridgeshire County Council,29-Jan-21,51301511666,"-1,366.08",WOODLANDS CARE CENTRE,CARE ESTABLISHMENT,OP - East Cambs Locality - Cost of Care,East Cambs - O P Team - Care,Nursing Care
Cambridgeshire County Council,29-Jan-21,51301511666,"-1,366.08",WOODLANDS CARE CENTRE,CARE ESTABLISHMENT,OP - East Cambs Locality - Cost of Care,East Cambs - O P Team - Care,Nursing Care
Cambridgeshire County Council,29-Jan-21,51301511666,"-1,366.08",WOODLANDS CARE CENTRE,CARE ESTABLISHMENT,OP - East Cambs Locality - Cost of Care,East Cambs - O P Team - Care,Nursing Care
Cambridgeshire County Council,29-Jan-21,51301511666,"-1,366.08",WOODLANDS CARE CENTRE,CARE ESTABLISHMENT,OP - East Cambs Locality - Cost of Care,East Cambs - O P Team - Care,Nursing Care
Cambridgeshire County Council,29-Jan-21,51301511666,"-1,366.08",WOODLANDS CARE CENTRE,CARE ESTABLISHMENT,OP - East Cambs Locality - Cost of Care,East Cambs - O P Team - Care,Nursing Care
Cambridgeshire County Council,12-Jan-21,51301500290,"-1,354.26",Keys PCE Ltd,CARE ESTABLISHMENT,LAC Placements,Placements - residential disability,Agency Placements - Out of  County
Cambridgeshire County Council,22-Jan-21,51301504177,"-1,309.94",GLENHOLME HEALTHCARE LTD,CARE ESTABLISHMENT,LD - Hunts Locality - Cost of Care,LD - Huntingdonshire - Special Needs,Residential Care
Cambridgeshire County Council,26-Jan-21,65300016356,"-1,298.55",Head Start Ramsey,LOCAL CLUBS & GROUPS,Early Years,SEND Specialist Services - SENIF,Care & Ed Partner Organisations
Cambridgeshire County Council,07-Jan-21,51301498922,"-1,284.01",CARETECH COMMUNITY SERVICES,CARE ESTABLISHMENT,LAC Placements,Placements - supported accommodation,Agency Placements - In County
Cambridgeshire County Council,14-Jan-21,51301501077,"-1,270.26",RNID LEOPOLD MULLER CARE HOME,CARE ESTABLISHMENT,OP - City & South Locality - Cost of Care,Older People - City & South - Care,Nursing Care
Cambridgeshire County Council,14-Jan-21,51301501077,"-1,270.26",RNID LEOPOLD MULLER CARE HOME,CARE ESTABLISHMENT,OP - City & South Locality - Cost of Care,Older People - City & South - Care,Nursing Care
Cambridgeshire County Council,14-Jan-21,51301501077,"-1,270.26",RNID LEOPOLD MULLER CARE HOME,CARE ESTABLISHMENT,OP - City & South Locality - Cost of Care,Older People - City & South - Care,Nursing Care
Cambridgeshire County Council,14-Jan-21,51301501077,"-1,270.26",RNID LEOPOLD MULLER CARE HOME,CARE ESTABLISHMENT,OP - City & South Locality - Cost of Care,Older People - City & South - Care,Nursing Care
Cambridgeshire County Council,14-Jan-21,51301501077,"-1,270.26",RNID LEOPOLD MULLER CARE HOME,CARE ESTABLISHMENT,OP - City & South Locality - Cost of Care,Older People - City & South - Care,Nursing Care
Cambridgeshire County Council,14-Jan-21,51301501077,"-1,270.26",RNID LEOPOLD MULLER CARE HOME,CARE ESTABLISHMENT,OP - City & South Locality - Cost of Care,Older People - City & South - Care,Nursing Care
Cambridgeshire County Council,14-Jan-21,51301501077,"-1,270.26",RNID LEOPOLD MULLER CARE HOME,CARE ESTABLISHMENT,OP - City & South Locality - Cost of Care,Older People - City & South - Care,Nursing Care
Cambridgeshire County Council,14-Jan-21,51301501077,"-1,270.26",RNID LEOPOLD MULLER CARE HOME,CARE ESTABLISHMENT,OP - City & South Locality - Cost of Care,Older People - City & South - Care,Nursing Care
Cambridgeshire County Council,14-Jan-21,51301501077,"-1,270.26",RNID LEOPOLD MULLER CARE HOME,CARE ESTABLISHMENT,OP - City & South Locality - Cost of Care,Older People - City & South - Care,Nursing Care
Cambridgeshire County Council,14-Jan-21,51301501077,"-1,270.26",RNID LEOPOLD MULLER CARE HOME,CARE ESTABLISHMENT,OP - City & South Locality - Cost of Care,Older People - City & South - Care,Nursing Care
Cambridgeshire County Council,14-Jan-21,51301501077,"-1,270.26",RNID LEOPOLD MULLER CARE HOME,CARE ESTABLISHMENT,OP - City & South Locality - Cost of Care,Older People - City & South - Care,Nursing Care
Cambridgeshire County Council,14-Jan-21,51301501077,"-1,270.26",RNID LEOPOLD MULLER CARE HOME,CARE ESTABLISHMENT,OP - City & South Locality - Cost of Care,Older People - City & South - Care,Nursing Care
Cambridgeshire County Council,14-Jan-21,51301501077,"-1,270.26",RNID LEOPOLD MULLER CARE HOME,CARE ESTABLISHMENT,OP - City & South Locality - Cost of Care,Older People - City & South - Care,Nursing Care
Cambridgeshire County Council,14-Jan-21,51301501077,"-1,270.26",RNID LEOPOLD MULLER CARE HOME,CARE ESTABLISHMENT,OP - City & South Locality - Cost of Care,Older People - City & South - Care,Nursing Care
Cambridgeshire County Council,14-Jan-21,51301501077,"-1,270.26",RNID LEOPOLD MULLER CARE HOME,CARE ESTABLISHMENT,OP - City & South Locality - Cost of Care,Older People - City & South - Care,Nursing Care
Cambridgeshire County Council,14-Jan-21,51301501077,"-1,270.26",RNID LEOPOLD MULLER CARE HOME,CARE ESTABLISHMENT,OP - City & South Locality - Cost of Care,Older People - City & South - Care,Nursing Care
Cambridgeshire County Council,14-Jan-21,51301501077,"-1,270.26",RNID LEOPOLD MULLER CARE HOME,CARE ESTABLISHMENT,OP - City & South Locality - Cost of Care,Older People - City & South - Care,Nursing Care
Cambridgeshire County Council,14-Jan-21,51301501077,"-1,270.26",RNID LEOPOLD MULLER CARE HOME,CARE ESTABLISHMENT,OP - City & South Locality - Cost of Care,Older People - City & South - Care,Nursing Care
Cambridgeshire County Council,14-Jan-21,51301501077,"-1,270.26",RNID LEOPOLD MULLER CARE HOME,CARE ESTABLISHMENT,OP - City & South Locality - Cost of Care,Older People - City & South - Care,Nursing Care
Cambridgeshire County Council,14-Jan-21,51301501077,"-1,270.26",RNID LEOPOLD MULLER CARE HOME,CARE ESTABLISHMENT,OP - City & South Locality - Cost of Care,Older People - City & South - Care,Nursing Care
Cambridgeshire County Council,14-Jan-21,51301501077,"-1,270.26",RNID LEOPOLD MULLER CARE HOME,CARE ESTABLISHMENT,OP - City & South Locality - Cost of Care,Older People - City & South - Care,Nursing Care
Cambridgeshire County Council,14-Jan-21,51301501077,"-1,270.26",RNID LEOPOLD MULLER CARE HOME,CARE ESTABLISHMENT,OP - City & South Locality - Cost of Care,Older People - City & South - Care,Nursing Care
Cambridgeshire County Council,14-Jan-21,51301501077,"-1,270.26",RNID LEOPOLD MULLER CARE HOME,CARE ESTABLISHMENT,OP - City & South Locality - Cost of Care,Older People - City & South - Care,Nursing Care
Cambridgeshire County Council,14-Jan-21,51301501077,"-1,270.26",RNID LEOPOLD MULLER CARE HOME,CARE ESTABLISHMENT,OP - City & South Locality - Cost of Care,Older People - City & South - Care,Nursing Care
Cambridgeshire County Council,14-Jan-21,51301501077,"-1,270.26",RNID LEOPOLD MULLER CARE HOME,CARE ESTABLISHMENT,OP - City & South Locality - Cost of Care,Older People - City & South - Care,Nursing Care
Cambridgeshire County Council,14-Jan-21,51301501077,"-1,270.26",RNID LEOPOLD MULLER CARE HOME,CARE ESTABLISHMENT,OP - City & South Locality - Cost of Care,Older People - City & South - Care,Nursing Care
Cambridgeshire County Council,14-Jan-21,51301501077,"-1,270.26",RNID LEOPOLD MULLER CARE HOME,CARE ESTABLISHMENT,OP - City & South Locality - Cost of Care,Older People - City & South - Care,Nursing Care
Cambridgeshire County Council,14-Jan-21,51301501077,"-1,270.26",RNID LEOPOLD MULLER CARE HOME,CARE ESTABLISHMENT,OP - City & South Locality - Cost of Care,Older People - City & South - Care,Nursing Care
Cambridgeshire County Council,14-Jan-21,51301501077,"-1,270.26",RNID LEOPOLD MULLER CARE HOME,CARE ESTABLISHMENT,OP - City & South Locality - Cost of Care,Older People - City & South - Care,Nursing Care
Cambridgeshire County Council,14-Jan-21,51301501077,"-1,270.26",RNID LEOPOLD MULLER CARE HOME,CARE ESTABLISHMENT,OP - City & South Locality - Cost of Care,Older People - City & South - Care,Nursing Care
Cambridgeshire County Council,14-Jan-21,51301501077,"-1,270.26",RNID LEOPOLD MULLER CARE HOME,CARE ESTABLISHMENT,OP - City & South Locality - Cost of Care,Older People - City & South - Care,Nursing Care
Cambridgeshire County Council,14-Jan-21,51301501077,"-1,270.26",RNID LEOPOLD MULLER CARE HOME,CARE ESTABLISHMENT,OP - City & South Locality - Cost of Care,Older People - City & South - Care,Nursing Care
Cambridgeshire County Council,14-Jan-21,51301501077,"-1,270.26",RNID LEOPOLD MULLER CARE HOME,CARE ESTABLISHMENT,OP - City & South Locality - Cost of Care,Older People - City & South - Care,Nursing Care
Cambridgeshire County Council,14-Jan-21,51301501077,"-1,270.26",RNID LEOPOLD MULLER CARE HOME,CARE ESTABLISHMENT,OP - City & South Locality - Cost of Care,Older People - City & South - Care,Nursing Care
Cambridgeshire County Council,14-Jan-21,51301501077,"-1,270.26",RNID LEOPOLD MULLER CARE HOME,CARE ESTABLISHMENT,OP - City & South Locality - Cost of Care,Older People - City & South - Care,Nursing Care
Cambridgeshire County Council,14-Jan-21,51301501077,"-1,270.26",RNID LEOPOLD MULLER CARE HOME,CARE ESTABLISHMENT,OP - City & South Locality - Cost of Care,Older People - City & South - Care,Nursing Care
Cambridgeshire County Council,14-Jan-21,51301501077,"-1,270.26",RNID LEOPOLD MULLER CARE HOME,CARE ESTABLISHMENT,OP - City & South Locality - Cost of Care,Older People - City & South - Care,Nursing Care
Cambridgeshire County Council,14-Jan-21,51301501077,"-1,270.26",RNID LEOPOLD MULLER CARE HOME,CARE ESTABLISHMENT,OP - City & South Locality - Cost of Care,Older People - City & South - Care,Nursing Care
Cambridgeshire County Council,14-Jan-21,51301501077,"-1,270.26",RNID LEOPOLD MULLER CARE HOME,CARE ESTABLISHMENT,OP - City & South Locality - Cost of Care,Older People - City & South - Care,Nursing Care
Cambridgeshire County Council,22-Jan-21,51301508534,"-1,266.08",WOODLANDS CARE CENTRE,CARE ESTABLISHMENT,OP - City & South Locality - Cost of Care,Older People - City & South - Care,Nursing Care
Cambridgeshire County Council,22-Jan-21,51301508534,"-1,266.08",WOODLANDS CARE CENTRE,CARE ESTABLISHMENT,OP - City & South Locality - Cost of Care,Older People - City & South - Care,Nursing Care
Cambridgeshire County Council,22-Jan-21,51301508534,"-1,266.08",WOODLANDS CARE CENTRE,CARE ESTABLISHMENT,OP - City & South Locality - Cost of Care,Older People - City & South - Care,Nursing Care
Cambridgeshire County Council,22-Jan-21,51301504304,"-1,242.58",PAULINE BURNETT HOUSE,CARE ESTABLISHMENT,LD - South Locality - Cost of Care,LD - South Cambs - Care,Residential Care
Cambridgeshire County Council,22-Jan-21,51301504304,"-1,242.58",PAULINE BURNETT HOUSE,CARE ESTABLISHMENT,LD - South Locality - Cost of Care,LD - South Cambs - Care,Residential Care
Cambridgeshire County Council,22-Jan-21,51301504304,"-1,242.58",PAULINE BURNETT HOUSE,CARE ESTABLISHMENT,LD - South Locality - Cost of Care,LD - South Cambs - Care,Residential Care
Cambridgeshire County Council,22-Jan-21,51301504304,"-1,242.58",PAULINE BURNETT HOUSE,CARE ESTABLISHMENT,LD - South Locality - Cost of Care,LD - South Cambs - Care,Residential Care
Cambridgeshire County Council,22-Jan-21,51301506169,"-1,234.44",OAKLANDS CARE HOME,CARE ESTABLISHMENT,OPMH - City & South,Older People Mental Health E Cambs,Nursing Care
Cambridgeshire County Council,22-Jan-21,51301506169,"-1,234.44",OAKLANDS CARE HOME,CARE ESTABLISHMENT,OPMH - City & South,Older People Mental Health E Cambs,Nursing Care
Cambridgeshire County Council,22-Jan-21,51301506169,"-1,234.44",OAKLANDS CARE HOME,CARE ESTABLISHMENT,OPMH - City & South,Older People Mental Health E Cambs,Nursing Care
Cambridgeshire County Council,22-Jan-21,51301506169,"-1,234.44",OAKLANDS CARE HOME,CARE ESTABLISHMENT,OPMH - City & South,Older People Mental Health E Cambs,Nursing Care
Cambridgeshire County Council,22-Jan-21,51301506169,"-1,234.44",OAKLANDS CARE HOME,CARE ESTABLISHMENT,OPMH - City & South,Older People Mental Health E Cambs,Nursing Care
Cambridgeshire County Council,22-Jan-21,51301506169,"-1,234.44",OAKLANDS CARE HOME,CARE ESTABLISHMENT,OPMH - City & South,Older People Mental Health E Cambs,Nursing Care
Cambridgeshire County Council,22-Jan-21,51301506169,"-1,234.44",OAKLANDS CARE HOME,CARE ESTABLISHMENT,OPMH - City & South,Older People Mental Health E Cambs,Nursing Care
Cambridgeshire County Council,22-Jan-21,51301506169,"-1,234.44",OAKLANDS CARE HOME,CARE ESTABLISHMENT,OPMH - City & South,Older People Mental Health E Cambs,Nursing Care
Cambridgeshire County Council,22-Jan-21,51301506169,"-1,234.44",OAKLANDS CARE HOME,CARE ESTABLISHMENT,OPMH - City & South,Older People Mental Health E Cambs,Nursing Care
Cambridgeshire County Council,22-Jan-21,51301506169,"-1,234.44",OAKLANDS CARE HOME,CARE ESTABLISHMENT,OPMH - City & South,Older People Mental Health E Cambs,Nursing Care
Cambridgeshire County Council,22-Jan-21,51301506169,"-1,234.44",OAKLANDS CARE HOME,CARE ESTABLISHMENT,OPMH - City & South,Older People Mental Health E Cambs,Nursing Care
Cambridgeshire County Council,22-Jan-21,51301506169,"-1,234.44",OAKLANDS CARE HOME,CARE ESTABLISHMENT,OPMH - City & South,Older People Mental Health E Cambs,Nursing Care
Cambridgeshire County Council,22-Jan-21,51301506169,"-1,234.44",OAKLANDS CARE HOME,CARE ESTABLISHMENT,OPMH - City & South,Older People Mental Health E Cambs,Nursing Care
Cambridgeshire County Council,22-Jan-21,51301506169,"-1,234.44",OAKLANDS CARE HOME,CARE ESTABLISHMENT,OPMH - City & South,Older People Mental Health E Cambs,Nursing Care
Cambridgeshire County Council,22-Jan-21,51301506169,"-1,234.44",OAKLANDS CARE HOME,CARE ESTABLISHMENT,OPMH - City & South,Older People Mental Health E Cambs,Nursing Care
Cambridgeshire County Council,22-Jan-21,51301506169,"-1,234.44",OAKLANDS CARE HOME,CARE ESTABLISHMENT,OPMH - City & South,Older People Mental Health E Cambs,Nursing Care
Cambridgeshire County Council,22-Jan-21,51301506169,"-1,234.44",OAKLANDS CARE HOME,CARE ESTABLISHMENT,OPMH - City & South,Older People Mental Health E Cambs,Nursing Care
Cambridgeshire County Council,22-Jan-21,51301506169,"-1,234.44",OAKLANDS CARE HOME,CARE ESTABLISHMENT,OPMH - City & South,Older People Mental Health E Cambs,Nursing Care
Cambridgeshire County Council,22-Jan-21,51301506169,"-1,234.44",OAKLANDS CARE HOME,CARE ESTABLISHMENT,OPMH - City & South,Older People Mental Health E Cambs,Nursing Care
Cambridgeshire County Council,22-Jan-21,51301506169,"-1,234.44",OAKLANDS CARE HOME,CARE ESTABLISHMENT,OPMH - City & South,Older People Mental Health E Cambs,Nursing Care
Cambridgeshire County Council,22-Jan-21,51301506169,"-1,234.44",OAKLANDS CARE HOME,CARE ESTABLISHMENT,OPMH - City & South,Older People Mental Health E Cambs,Nursing Care
Cambridgeshire County Council,22-Jan-21,51301506169,"-1,234.44",OAKLANDS CARE HOME,CARE ESTABLISHMENT,OPMH - City & South,Older People Mental Health E Cambs,Nursing Care
Cambridgeshire County Council,22-Jan-21,51301506169,"-1,234.44",OAKLANDS CARE HOME,CARE ESTABLISHMENT,OPMH - City & South,Older People Mental Health E Cambs,Nursing Care
Cambridgeshire County Council,22-Jan-21,51301506169,"-1,234.44",OAKLANDS CARE HOME,CARE ESTABLISHMENT,OPMH - City & South,Older People Mental Health E Cambs,Nursing Care
Cambridgeshire County Council,22-Jan-21,51301508490,"-1,218.86",WOODLANDS CARE CENTRE,CARE ESTABLISHMENT,OP - Fenland Locality - Cost of Care,Older People - Fenland - Care,Nursing Care
Cambridgeshire County Council,22-Jan-21,51301508490,"-1,218.86",WOODLANDS CARE CENTRE,CARE ESTABLISHMENT,OP - Fenland Locality - Cost of Care,Older People - Fenland - Care,Nursing Care
Cambridgeshire County Council,22-Jan-21,51301509778,"-1,216.08",OAKLANDS CARE HOME,CARE ESTABLISHMENT,OP - Hunts Locality - Cost of Care,Hunts OP Team - Care,Short Term Other
Cambridgeshire County Council,22-Jan-21,51301509778,"-1,216.08",OAKLANDS CARE HOME,CARE ESTABLISHMENT,OP - Hunts Locality - Cost of Care,Hunts OP Team - Care,Short Term Other
Cambridgeshire County Council,22-Jan-21,51301509778,"-1,216.08",OAKLANDS CARE HOME,CARE ESTABLISHMENT,OP - Hunts Locality - Cost of Care,Hunts OP Team - Care,Short Term Other
Cambridgeshire County Council,22-Jan-21,51301509778,"-1,216.08",OAKLANDS CARE HOME,CARE ESTABLISHMENT,OP - Hunts Locality - Cost of Care,Hunts OP Team - Care,Short Term Other
Cambridgeshire County Council,22-Jan-21,51301509778,"-1,216.08",OAKLANDS CARE HOME,CARE ESTABLISHMENT,OP - Hunts Locality - Cost of Care,Hunts OP Team - Care,Short Term Other
Cambridgeshire County Council,22-Jan-21,51301509778,"-1,216.08",OAKLANDS CARE HOME,CARE ESTABLISHMENT,OP - Hunts Locality - Cost of Care,Hunts OP Team - Care,Short Term Other
Cambridgeshire County Council,22-Jan-21,51301509778,"-1,216.08",OAKLANDS CARE HOME,CARE ESTABLISHMENT,OP - Hunts Locality - Cost of Care,Hunts OP Team - Care,Short Term Other
Cambridgeshire County Council,22-Jan-21,51301509778,"-1,216.08",OAKLANDS CARE HOME,CARE ESTABLISHMENT,OP - Hunts Locality - Cost of Care,Hunts OP Team - Care,Short Term Other
Cambridgeshire County Council,22-Jan-21,51301509778,"-1,216.08",OAKLANDS CARE HOME,CARE ESTABLISHMENT,OP - Hunts Locality - Cost of Care,Hunts OP Team - Care,Short Term Other
Cambridgeshire County Council,22-Jan-21,51301509778,"-1,216.08",OAKLANDS CARE HOME,CARE ESTABLISHMENT,OP - Hunts Locality - Cost of Care,Hunts OP Team - Care,Short Term Other
Cambridgeshire County Council,22-Jan-21,51301509778,"-1,216.08",OAKLANDS CARE HOME,CARE ESTABLISHMENT,OP - Hunts Locality - Cost of Care,Hunts OP Team - Care,Short Term Other
Cambridgeshire County Council,22-Jan-21,51301506378,"-1,197.38",SOCIAL CARE SOLUTIONS LTD,CARE ESTABLISHMENT,LD - Fenland Locality - Cost of Care,LD - Fenland  - Care,Supported Living
Cambridgeshire County Council,22-Jan-21,51301506378,"-1,197.38",SOCIAL CARE SOLUTIONS LTD,CARE ESTABLISHMENT,LD - Fenland Locality - Cost of Care,LD - Fenland  - Care,Supported Living
Cambridgeshire County Council,22-Jan-21,51301506378,"-1,197.38",SOCIAL CARE SOLUTIONS LTD,CARE ESTABLISHMENT,LD - Fenland Locality - Cost of Care,LD - Fenland  - Care,Supported Living
Cambridgeshire County Council,22-Jan-21,51301506378,"-1,197.38",SOCIAL CARE SOLUTIONS LTD,CARE ESTABLISHMENT,LD - Fenland Locality - Cost of Care,LD - Fenland  - Care,Supported Living
Cambridgeshire County Council,22-Jan-21,51301506378,"-1,197.38",SOCIAL CARE SOLUTIONS LTD,CARE ESTABLISHMENT,LD - Fenland Locality - Cost of Care,LD - Fenland  - Care,Supported Living
Cambridgeshire County Council,22-Jan-21,51301506378,"-1,197.38",SOCIAL CARE SOLUTIONS LTD,CARE ESTABLISHMENT,LD - Fenland Locality - Cost of Care,LD - Fenland  - Care,Supported Living
Cambridgeshire County Council,29-Jan-21,51301511737,"-1,164.36",THE RIVERSIDE GROUP LTD,CARE ESTABLISHMENT,LAC Placements,Placements - 16+,Childrens Lodgings
Cambridgeshire County Council,29-Jan-21,51301511740,"-1,126.80",THE RIVERSIDE GROUP LTD,CARE ESTABLISHMENT,LAC Placements,Placements - 16+,Childrens Lodgings
Cambridgeshire County Council,29-Jan-21,51301511733,"-1,126.80",THE RIVERSIDE GROUP LTD,CARE ESTABLISHMENT,LAC Placements,Placements - 16+,Childrens Lodgings
Cambridgeshire County Council,15-Jan-21,51301499977,"-1,101.04",MLL Telecom Limited,TRADE SUPPLIER,ICT Service,ICT Service Spare 3,Network Support Contracts
Cambridgeshire County Council,22-Jan-21,51301505220,"-1,082.74",Redacted Personal Data ,INDIVIDUAL,LD - Young Adults Team,LD - Young Adults - Special Needs,Direct Payments
Cambridgeshire County Council,22-Jan-21,51301505220,"-1,082.74",Redacted Personal Data ,INDIVIDUAL,LD - Young Adults Team,LD - Young Adults - Special Needs,Direct Payments
Cambridgeshire County Council,22-Jan-21,51301505220,"-1,082.74",Redacted Personal Data ,INDIVIDUAL,LD - Young Adults Team,LD - Young Adults - Special Needs,Direct Payments
Cambridgeshire County Council,22-Jan-21,51301505220,"-1,082.74",Redacted Personal Data ,INDIVIDUAL,LD - Young Adults Team,LD - Young Adults - Special Needs,Direct Payments
Cambridgeshire County Council,22-Jan-21,51301505220,"-1,082.74",Redacted Personal Data ,INDIVIDUAL,LD - Young Adults Team,LD - Young Adults - Special Needs,Direct Payments
Cambridgeshire County Council,22-Jan-21,51301505220,"-1,082.74",Redacted Personal Data ,INDIVIDUAL,LD - Young Adults Team,LD - Young Adults - Special Needs,Direct Payments
Cambridgeshire County Council,22-Jan-21,51301505220,"-1,082.74",Redacted Personal Data ,INDIVIDUAL,LD - Young Adults Team,LD - Young Adults - Special Needs,Direct Payments
Cambridgeshire County Council,22-Jan-21,51301505220,"-1,082.74",Redacted Personal Data ,INDIVIDUAL,LD - Young Adults Team,LD - Young Adults - Special Needs,Direct Payments
Cambridgeshire County Council,22-Jan-21,51301505220,"-1,082.74",Redacted Personal Data ,INDIVIDUAL,LD - Young Adults Team,LD - Young Adults - Special Needs,Direct Payments
Cambridgeshire County Council,22-Jan-21,51301505220,"-1,082.74",Redacted Personal Data ,INDIVIDUAL,LD - Young Adults Team,LD - Young Adults - Special Needs,Direct Payments
Cambridgeshire County Council,22-Jan-21,51301505220,"-1,082.74",Redacted Personal Data ,INDIVIDUAL,LD - Young Adults Team,LD - Young Adults - Special Needs,Direct Payments
Cambridgeshire County Council,22-Jan-21,51301505220,"-1,082.74",Redacted Personal Data ,INDIVIDUAL,LD - Young Adults Team,LD - Young Adults - Special Needs,Direct Payments
Cambridgeshire County Council,22-Jan-21,51301505220,"-1,082.74",Redacted Personal Data ,INDIVIDUAL,LD - Young Adults Team,LD - Young Adults - Special Needs,Direct Payments
Cambridgeshire County Council,22-Jan-21,51301493957,"-1,073.65",CAMBRIDGE MANOR CARE HOME (TLC),CARE ESTABLISHMENT,OPMH - City & South,Older People Mental Health City & South,Nursing Care
Cambridgeshire County Council,07-Jan-21,65300016337,"-1,059.75",LADYBIRD DAY NURSERY ICP,NURSERY,Early Years Specialist Support,Procurement - TA Inclusion & Access (EARLY YEARS),Independent School Placements
Cambridgeshire County Council,08-Jan-21,51301499201,"-1,038.49",RENTON COURT (VOYAGE),CARE ESTABLISHMENT,LD - Hunts Locality - Cost of Care,LD - Huntingdonshire - Care,Supported Living
Cambridgeshire County Council,08-Jan-21,51301499201,"-1,038.49",RENTON COURT (VOYAGE),CARE ESTABLISHMENT,LD - Hunts Locality - Cost of Care,LD - Huntingdonshire - Care,Supported Living
Cambridgeshire County Council,08-Jan-21,51301499201,"-1,038.49",RENTON COURT (VOYAGE),CARE ESTABLISHMENT,LD - Hunts Locality - Cost of Care,LD - Huntingdonshire - Care,Supported Living
Cambridgeshire County Council,07-Jan-21,51301497769,"-1,036.80",LGSS LAW LTD,TRADE SUPPLIER,Legal Proceedings,Legal Proceedings,External Legal Fees
Cambridgeshire County Council,22-Jan-21,51301479226,"-1,030.71",LINKAGE COMMUNITY TRUST LTD,TRUST (OTHER),LD - Hunts Locality - Cost of Care,LD - Huntingdonshire - Care,Residential Care
Cambridgeshire County Council,22-Jan-21,51301479226,"-1,030.71",LINKAGE COMMUNITY TRUST LTD,TRUST (OTHER),LD - Hunts Locality - Cost of Care,LD - Huntingdonshire - Care,Residential Care
Cambridgeshire County Council,22-Jan-21,51301479226,"-1,030.71",LINKAGE COMMUNITY TRUST LTD,TRUST (OTHER),LD - Hunts Locality - Cost of Care,LD - Huntingdonshire - Care,Residential Care
Cambridgeshire County Council,22-Jan-21,51301479226,"-1,030.71",LINKAGE COMMUNITY TRUST LTD,TRUST (OTHER),LD - Hunts Locality - Cost of Care,LD - Huntingdonshire - Care,Residential Care
Cambridgeshire County Council,22-Jan-21,51301479226,"-1,030.71",LINKAGE COMMUNITY TRUST LTD,TRUST (OTHER),LD - Hunts Locality - Cost of Care,LD - Huntingdonshire - Care,Residential Care
Cambridgeshire County Council,22-Jan-21,51301479226,"-1,030.71",LINKAGE COMMUNITY TRUST LTD,TRUST (OTHER),LD - Hunts Locality - Cost of Care,LD - Huntingdonshire - Care,Residential Care
Cambridgeshire County Council,22-Jan-21,51301479226,"-1,030.71",LINKAGE COMMUNITY TRUST LTD,TRUST (OTHER),LD - Hunts Locality - Cost of Care,LD - Huntingdonshire - Care,Residential Care
Cambridgeshire County Council,22-Jan-21,51301479226,"-1,030.71",LINKAGE COMMUNITY TRUST LTD,TRUST (OTHER),LD - Hunts Locality - Cost of Care,LD - Huntingdonshire - Care,Residential Care
Cambridgeshire County Council,22-Jan-21,51301479226,"-1,030.71",LINKAGE COMMUNITY TRUST LTD,TRUST (OTHER),LD - Hunts Locality - Cost of Care,LD - Huntingdonshire - Care,Residential Care
Cambridgeshire County Council,22-Jan-21,51301479226,"-1,030.71",LINKAGE COMMUNITY TRUST LTD,TRUST (OTHER),LD - Hunts Locality - Cost of Care,LD - Huntingdonshire - Care,Residential Care
Cambridgeshire County Council,22-Jan-21,51301479226,"-1,030.71",LINKAGE COMMUNITY TRUST LTD,TRUST (OTHER),LD - Hunts Locality - Cost of Care,LD - Huntingdonshire - Care,Residential Care
Cambridgeshire County Council,22-Jan-21,51301479226,"-1,030.71",LINKAGE COMMUNITY TRUST LTD,TRUST (OTHER),LD - Hunts Locality - Cost of Care,LD - Huntingdonshire - Care,Residential Care
Cambridgeshire County Council,22-Jan-21,51301479226,"-1,030.71",LINKAGE COMMUNITY TRUST LTD,TRUST (OTHER),LD - Hunts Locality - Cost of Care,LD - Huntingdonshire - Care,Residential Care
Cambridgeshire County Council,22-Jan-21,51301479226,"-1,030.71",LINKAGE COMMUNITY TRUST LTD,TRUST (OTHER),LD - Hunts Locality - Cost of Care,LD - Huntingdonshire - Care,Residential Care
Cambridgeshire County Council,22-Jan-21,51301479226,"-1,030.71",LINKAGE COMMUNITY TRUST LTD,TRUST (OTHER),LD - Hunts Locality - Cost of Care,LD - Huntingdonshire - Care,Residential Care
Cambridgeshire County Council,22-Jan-21,51301479226,"-1,030.71",LINKAGE COMMUNITY TRUST LTD,TRUST (OTHER),LD - Hunts Locality - Cost of Care,LD - Huntingdonshire - Care,Residential Care
Cambridgeshire County Council,22-Jan-21,51301479226,"-1,030.71",LINKAGE COMMUNITY TRUST LTD,TRUST (OTHER),LD - Hunts Locality - Cost of Care,LD - Huntingdonshire - Care,Residential Care
Cambridgeshire County Council,22-Jan-21,51301479226,"-1,030.71",LINKAGE COMMUNITY TRUST LTD,TRUST (OTHER),LD - Hunts Locality - Cost of Care,LD - Huntingdonshire - Care,Residential Care
Cambridgeshire County Council,22-Jan-21,51301479226,"-1,030.71",LINKAGE COMMUNITY TRUST LTD,TRUST (OTHER),LD - Hunts Locality - Cost of Care,LD - Huntingdonshire - Care,Residential Care
Cambridgeshire County Council,22-Jan-21,51301479226,"-1,030.71",LINKAGE COMMUNITY TRUST LTD,TRUST (OTHER),LD - Hunts Locality - Cost of Care,LD - Huntingdonshire - Care,Residential Care
Cambridgeshire County Council,22-Jan-21,51301479226,"-1,030.71",LINKAGE COMMUNITY TRUST LTD,TRUST (OTHER),LD - Hunts Locality - Cost of Care,LD - Huntingdonshire - Care,Residential Care
Cambridgeshire County Council,22-Jan-21,51301479226,"-1,030.71",LINKAGE COMMUNITY TRUST LTD,TRUST (OTHER),LD - Hunts Locality - Cost of Care,LD - Huntingdonshire - Care,Residential Care
Cambridgeshire County Council,22-Jan-21,51301479226,"-1,030.71",LINKAGE COMMUNITY TRUST LTD,TRUST (OTHER),LD - Hunts Locality - Cost of Care,LD - Huntingdonshire - Care,Residential Care
Cambridgeshire County Council,22-Jan-21,51301479226,"-1,030.71",LINKAGE COMMUNITY TRUST LTD,TRUST (OTHER),LD - Hunts Locality - Cost of Care,LD - Huntingdonshire - Care,Residential Care
Cambridgeshire County Council,22-Jan-21,51301479226,"-1,030.71",LINKAGE COMMUNITY TRUST LTD,TRUST (OTHER),LD - Hunts Locality - Cost of Care,LD - Huntingdonshire - Care,Residential Care
Cambridgeshire County Council,22-Jan-21,51301479226,"-1,030.71",LINKAGE COMMUNITY TRUST LTD,TRUST (OTHER),LD - Hunts Locality - Cost of Care,LD - Huntingdonshire - Care,Residential Care
Cambridgeshire County Council,22-Jan-21,51301479226,"-1,030.71",LINKAGE COMMUNITY TRUST LTD,TRUST (OTHER),LD - Hunts Locality - Cost of Care,LD - Huntingdonshire - Care,Residential Care
Cambridgeshire County Council,22-Jan-21,51301479226,"-1,030.71",LINKAGE COMMUNITY TRUST LTD,TRUST (OTHER),LD - Hunts Locality - Cost of Care,LD - Huntingdonshire - Care,Residential Care
Cambridgeshire County Council,22-Jan-21,51301479226,"-1,030.71",LINKAGE COMMUNITY TRUST LTD,TRUST (OTHER),LD - Hunts Locality - Cost of Care,LD - Huntingdonshire - Care,Residential Care
Cambridgeshire County Council,22-Jan-21,51301479226,"-1,030.71",LINKAGE COMMUNITY TRUST LTD,TRUST (OTHER),LD - Hunts Locality - Cost of Care,LD - Huntingdonshire - Care,Residential Care
Cambridgeshire County Council,22-Jan-21,51301479226,"-1,030.71",LINKAGE COMMUNITY TRUST LTD,TRUST (OTHER),LD - Hunts Locality - Cost of Care,LD - Huntingdonshire - Care,Residential Care
Cambridgeshire County Council,22-Jan-21,51301479226,"-1,030.71",LINKAGE COMMUNITY TRUST LTD,TRUST (OTHER),LD - Hunts Locality - Cost of Care,LD - Huntingdonshire - Care,Residential Care
Cambridgeshire County Council,22-Jan-21,51301479226,"-1,030.71",LINKAGE COMMUNITY TRUST LTD,TRUST (OTHER),LD - Hunts Locality - Cost of Care,LD - Huntingdonshire - Care,Residential Care
Cambridgeshire County Council,22-Jan-21,51301479226,"-1,030.71",LINKAGE COMMUNITY TRUST LTD,TRUST (OTHER),LD - Hunts Locality - Cost of Care,LD - Huntingdonshire - Care,Residential Care
Cambridgeshire County Council,22-Jan-21,51301479226,"-1,030.71",LINKAGE COMMUNITY TRUST LTD,TRUST (OTHER),LD - Hunts Locality - Cost of Care,LD - Huntingdonshire - Care,Residential Care
Cambridgeshire County Council,22-Jan-21,51301479226,"-1,030.71",LINKAGE COMMUNITY TRUST LTD,TRUST (OTHER),LD - Hunts Locality - Cost of Care,LD - Huntingdonshire - Care,Residential Care
Cambridgeshire County Council,22-Jan-21,51301479226,"-1,030.71",LINKAGE COMMUNITY TRUST LTD,TRUST (OTHER),LD - Hunts Locality - Cost of Care,LD - Huntingdonshire - Care,Residential Care
Cambridgeshire County Council,22-Jan-21,51301479226,"-1,030.71",LINKAGE COMMUNITY TRUST LTD,TRUST (OTHER),LD - Hunts Locality - Cost of Care,LD - Huntingdonshire - Care,Residential Care
Cambridgeshire County Council,22-Jan-21,51301479226,"-1,030.71",LINKAGE COMMUNITY TRUST LTD,TRUST (OTHER),LD - Hunts Locality - Cost of Care,LD - Huntingdonshire - Care,Residential Care
Cambridgeshire County Council,22-Jan-21,51301479226,"-1,030.71",LINKAGE COMMUNITY TRUST LTD,TRUST (OTHER),LD - Hunts Locality - Cost of Care,LD - Huntingdonshire - Care,Residential Care
Cambridgeshire County Council,22-Jan-21,51301479226,"-1,030.71",LINKAGE COMMUNITY TRUST LTD,TRUST (OTHER),LD - Hunts Locality - Cost of Care,LD - Huntingdonshire - Care,Residential Care
Cambridgeshire County Council,22-Jan-21,51301479226,"-1,030.71",LINKAGE COMMUNITY TRUST LTD,TRUST (OTHER),LD - Hunts Locality - Cost of Care,LD - Huntingdonshire - Care,Residential Care
Cambridgeshire County Council,22-Jan-21,51301479226,"-1,030.71",LINKAGE COMMUNITY TRUST LTD,TRUST (OTHER),LD - Hunts Locality - Cost of Care,LD - Huntingdonshire - Care,Residential Care
Cambridgeshire County Council,22-Jan-21,51301479226,"-1,030.71",LINKAGE COMMUNITY TRUST LTD,TRUST (OTHER),LD - Hunts Locality - Cost of Care,LD - Huntingdonshire - Care,Residential Care
Cambridgeshire County Council,22-Jan-21,51301479226,"-1,030.71",LINKAGE COMMUNITY TRUST LTD,TRUST (OTHER),LD - Hunts Locality - Cost of Care,LD - Huntingdonshire - Care,Residential Care
Cambridgeshire County Council,22-Jan-21,51301479226,"-1,030.71",LINKAGE COMMUNITY TRUST LTD,TRUST (OTHER),LD - Hunts Locality - Cost of Care,LD - Huntingdonshire - Care,Residential Care
Cambridgeshire County Council,22-Jan-21,51301479226,"-1,030.71",LINKAGE COMMUNITY TRUST LTD,TRUST (OTHER),LD - Hunts Locality - Cost of Care,LD - Huntingdonshire - Care,Residential Care
Cambridgeshire County Council,22-Jan-21,51301479226,"-1,030.71",LINKAGE COMMUNITY TRUST LTD,TRUST (OTHER),LD - Hunts Locality - Cost of Care,LD - Huntingdonshire - Care,Residential Care
Cambridgeshire County Council,22-Jan-21,51301479226,"-1,030.71",LINKAGE COMMUNITY TRUST LTD,TRUST (OTHER),LD - Hunts Locality - Cost of Care,LD - Huntingdonshire - Care,Residential Care
Cambridgeshire County Council,22-Jan-21,51301479226,"-1,030.71",LINKAGE COMMUNITY TRUST LTD,TRUST (OTHER),LD - Hunts Locality - Cost of Care,LD - Huntingdonshire - Care,Residential Care
Cambridgeshire County Council,22-Jan-21,51301479226,"-1,030.71",LINKAGE COMMUNITY TRUST LTD,TRUST (OTHER),LD - Hunts Locality - Cost of Care,LD - Huntingdonshire - Care,Residential Care
Cambridgeshire County Council,22-Jan-21,51301479226,"-1,030.71",LINKAGE COMMUNITY TRUST LTD,TRUST (OTHER),LD - Hunts Locality - Cost of Care,LD - Huntingdonshire - Care,Residential Care
Cambridgeshire County Council,22-Jan-21,51301479226,"-1,030.71",LINKAGE COMMUNITY TRUST LTD,TRUST (OTHER),LD - Hunts Locality - Cost of Care,LD - Huntingdonshire - Care,Residential Care
Cambridgeshire County Council,22-Jan-21,51301479226,"-1,030.71",LINKAGE COMMUNITY TRUST LTD,TRUST (OTHER),LD - Hunts Locality - Cost of Care,LD - Huntingdonshire - Care,Residential Care
Cambridgeshire County Council,22-Jan-21,51301479226,"-1,030.71",LINKAGE COMMUNITY TRUST LTD,TRUST (OTHER),LD - Hunts Locality - Cost of Care,LD - Huntingdonshire - Care,Residential Care
Cambridgeshire County Council,22-Jan-21,51301479226,"-1,030.71",LINKAGE COMMUNITY TRUST LTD,TRUST (OTHER),LD - Hunts Locality - Cost of Care,LD - Huntingdonshire - Care,Residential Care
Cambridgeshire County Council,22-Jan-21,51301479226,"-1,030.71",LINKAGE COMMUNITY TRUST LTD,TRUST (OTHER),LD - Hunts Locality - Cost of Care,LD - Huntingdonshire - Care,Residential Care
Cambridgeshire County Council,22-Jan-21,51301479226,"-1,030.71",LINKAGE COMMUNITY TRUST LTD,TRUST (OTHER),LD - Hunts Locality - Cost of Care,LD - Huntingdonshire - Care,Residential Care
Cambridgeshire County Council,22-Jan-21,51301479226,"-1,030.71",LINKAGE COMMUNITY TRUST LTD,TRUST (OTHER),LD - Hunts Locality - Cost of Care,LD - Huntingdonshire - Care,Residential Care
Cambridgeshire County Council,22-Jan-21,51301479226,"-1,030.71",LINKAGE COMMUNITY TRUST LTD,TRUST (OTHER),LD - Hunts Locality - Cost of Care,LD - Huntingdonshire - Care,Residential Care
Cambridgeshire County Council,22-Jan-21,51301479226,"-1,030.71",LINKAGE COMMUNITY TRUST LTD,TRUST (OTHER),LD - Hunts Locality - Cost of Care,LD - Huntingdonshire - Care,Residential Care
Cambridgeshire County Council,22-Jan-21,51301479226,"-1,030.71",LINKAGE COMMUNITY TRUST LTD,TRUST (OTHER),LD - Hunts Locality - Cost of Care,LD - Huntingdonshire - Care,Residential Care
Cambridgeshire County Council,22-Jan-21,51301479226,"-1,030.71",LINKAGE COMMUNITY TRUST LTD,TRUST (OTHER),LD - Hunts Locality - Cost of Care,LD - Huntingdonshire - Care,Residential Care
Cambridgeshire County Council,22-Jan-21,51301479226,"-1,030.71",LINKAGE COMMUNITY TRUST LTD,TRUST (OTHER),LD - Hunts Locality - Cost of Care,LD - Huntingdonshire - Care,Residential Care
Cambridgeshire County Council,22-Jan-21,51301479226,"-1,030.71",LINKAGE COMMUNITY TRUST LTD,TRUST (OTHER),LD - Hunts Locality - Cost of Care,LD - Huntingdonshire - Care,Residential Care
Cambridgeshire County Council,22-Jan-21,51301479226,"-1,030.71",LINKAGE COMMUNITY TRUST LTD,TRUST (OTHER),LD - Hunts Locality - Cost of Care,LD - Huntingdonshire - Care,Residential Care
Cambridgeshire County Council,22-Jan-21,51301479226,"-1,030.71",LINKAGE COMMUNITY TRUST LTD,TRUST (OTHER),LD - Hunts Locality - Cost of Care,LD - Huntingdonshire - Care,Residential Care
Cambridgeshire County Council,22-Jan-21,51301479226,"-1,030.71",LINKAGE COMMUNITY TRUST LTD,TRUST (OTHER),LD - Hunts Locality - Cost of Care,LD - Huntingdonshire - Care,Residential Care
Cambridgeshire County Council,22-Jan-21,51301479226,"-1,030.71",LINKAGE COMMUNITY TRUST LTD,TRUST (OTHER),LD - Hunts Locality - Cost of Care,LD - Huntingdonshire - Care,Residential Care
Cambridgeshire County Council,22-Jan-21,51301479226,"-1,030.71",LINKAGE COMMUNITY TRUST LTD,TRUST (OTHER),LD - Hunts Locality - Cost of Care,LD - Huntingdonshire - Care,Residential Care
Cambridgeshire County Council,22-Jan-21,51301479226,"-1,030.71",LINKAGE COMMUNITY TRUST LTD,TRUST (OTHER),LD - Hunts Locality - Cost of Care,LD - Huntingdonshire - Care,Residential Care
Cambridgeshire County Council,22-Jan-21,51301479226,"-1,030.71",LINKAGE COMMUNITY TRUST LTD,TRUST (OTHER),LD - Hunts Locality - Cost of Care,LD - Huntingdonshire - Care,Residential Care
Cambridgeshire County Council,22-Jan-21,51301479226,"-1,030.71",LINKAGE COMMUNITY TRUST LTD,TRUST (OTHER),LD - Hunts Locality - Cost of Care,LD - Huntingdonshire - Care,Residential Care
Cambridgeshire County Council,22-Jan-21,51301479226,"-1,030.71",LINKAGE COMMUNITY TRUST LTD,TRUST (OTHER),LD - Hunts Locality - Cost of Care,LD - Huntingdonshire - Care,Residential Care
Cambridgeshire County Council,22-Jan-21,51301479226,"-1,030.71",LINKAGE COMMUNITY TRUST LTD,TRUST (OTHER),LD - Hunts Locality - Cost of Care,LD - Huntingdonshire - Care,Residential Care
Cambridgeshire County Council,22-Jan-21,51301479226,"-1,030.71",LINKAGE COMMUNITY TRUST LTD,TRUST (OTHER),LD - Hunts Locality - Cost of Care,LD - Huntingdonshire - Care,Residential Care
Cambridgeshire County Council,22-Jan-21,51301479226,"-1,030.71",LINKAGE COMMUNITY TRUST LTD,TRUST (OTHER),LD - Hunts Locality - Cost of Care,LD - Huntingdonshire - Care,Residential Care
Cambridgeshire County Council,22-Jan-21,51301479226,"-1,030.71",LINKAGE COMMUNITY TRUST LTD,TRUST (OTHER),LD - Hunts Locality - Cost of Care,LD - Huntingdonshire - Care,Residential Care
Cambridgeshire County Council,22-Jan-21,51301479226,"-1,030.71",LINKAGE COMMUNITY TRUST LTD,TRUST (OTHER),LD - Hunts Locality - Cost of Care,LD - Huntingdonshire - Care,Residential Care
Cambridgeshire County Council,22-Jan-21,51301479226,"-1,030.71",LINKAGE COMMUNITY TRUST LTD,TRUST (OTHER),LD - Hunts Locality - Cost of Care,LD - Huntingdonshire - Care,Residential Care
Cambridgeshire County Council,22-Jan-21,51301479226,"-1,030.71",LINKAGE COMMUNITY TRUST LTD,TRUST (OTHER),LD - Hunts Locality - Cost of Care,LD - Huntingdonshire - Care,Residential Care
Cambridgeshire County Council,22-Jan-21,51301479226,"-1,030.71",LINKAGE COMMUNITY TRUST LTD,TRUST (OTHER),LD - Hunts Locality - Cost of Care,LD - Huntingdonshire - Care,Residential Care
Cambridgeshire County Council,22-Jan-21,51301479226,"-1,030.71",LINKAGE COMMUNITY TRUST LTD,TRUST (OTHER),LD - Hunts Locality - Cost of Care,LD - Huntingdonshire - Care,Residential Care
Cambridgeshire County Council,22-Jan-21,51301479226,"-1,030.71",LINKAGE COMMUNITY TRUST LTD,TRUST (OTHER),LD - Hunts Locality - Cost of Care,LD - Huntingdonshire - Care,Residential Care
Cambridgeshire County Council,22-Jan-21,51301479226,"-1,030.71",LINKAGE COMMUNITY TRUST LTD,TRUST (OTHER),LD - Hunts Locality - Cost of Care,LD - Huntingdonshire - Care,Residential Care
Cambridgeshire County Council,22-Jan-21,51301479226,"-1,030.71",LINKAGE COMMUNITY TRUST LTD,TRUST (OTHER),LD - Hunts Locality - Cost of Care,LD - Huntingdonshire - Care,Residential Care
Cambridgeshire County Council,22-Jan-21,51301479226,"-1,030.71",LINKAGE COMMUNITY TRUST LTD,TRUST (OTHER),LD - Hunts Locality - Cost of Care,LD - Huntingdonshire - Care,Residential Care
Cambridgeshire County Council,22-Jan-21,51301479226,"-1,030.71",LINKAGE COMMUNITY TRUST LTD,TRUST (OTHER),LD - Hunts Locality - Cost of Care,LD - Huntingdonshire - Care,Residential Care
Cambridgeshire County Council,22-Jan-21,51301479226,"-1,030.71",LINKAGE COMMUNITY TRUST LTD,TRUST (OTHER),LD - Hunts Locality - Cost of Care,LD - Huntingdonshire - Care,Residential Care
Cambridgeshire County Council,22-Jan-21,51301479226,"-1,030.71",LINKAGE COMMUNITY TRUST LTD,TRUST (OTHER),LD - Hunts Locality - Cost of Care,LD - Huntingdonshire - Care,Residential Care
Cambridgeshire County Council,22-Jan-21,51301479226,"-1,030.71",LINKAGE COMMUNITY TRUST LTD,TRUST (OTHER),LD - Hunts Locality - Cost of Care,LD - Huntingdonshire - Care,Residential Care
Cambridgeshire County Council,22-Jan-21,51301479226,"-1,030.71",LINKAGE COMMUNITY TRUST LTD,TRUST (OTHER),LD - Hunts Locality - Cost of Care,LD - Huntingdonshire - Care,Residential Care
Cambridgeshire County Council,22-Jan-21,51301479226,"-1,030.71",LINKAGE COMMUNITY TRUST LTD,TRUST (OTHER),LD - Hunts Locality - Cost of Care,LD - Huntingdonshire - Care,Residential Care
Cambridgeshire County Council,22-Jan-21,51301479226,"-1,030.71",LINKAGE COMMUNITY TRUST LTD,TRUST (OTHER),LD - Hunts Locality - Cost of Care,LD - Huntingdonshire - Care,Residential Care
Cambridgeshire County Council,22-Jan-21,51301479226,"-1,030.71",LINKAGE COMMUNITY TRUST LTD,TRUST (OTHER),LD - Hunts Locality - Cost of Care,LD - Huntingdonshire - Care,Residential Care
Cambridgeshire County Council,22-Jan-21,51301479226,"-1,030.71",LINKAGE COMMUNITY TRUST LTD,TRUST (OTHER),LD - Hunts Locality - Cost of Care,LD - Huntingdonshire - Care,Residential Care
Cambridgeshire County Council,22-Jan-21,51301479226,"-1,030.71",LINKAGE COMMUNITY TRUST LTD,TRUST (OTHER),LD - Hunts Locality - Cost of Care,LD - Huntingdonshire - Care,Residential Care
Cambridgeshire County Council,22-Jan-21,51301479226,"-1,030.71",LINKAGE COMMUNITY TRUST LTD,TRUST (OTHER),LD - Hunts Locality - Cost of Care,LD - Huntingdonshire - Care,Residential Care
Cambridgeshire County Council,22-Jan-21,51301479226,"-1,030.71",LINKAGE COMMUNITY TRUST LTD,TRUST (OTHER),LD - Hunts Locality - Cost of Care,LD - Huntingdonshire - Care,Residential Care
Cambridgeshire County Council,22-Jan-21,51301506378,"-1,026.33",SOCIAL CARE SOLUTIONS LTD,CARE ESTABLISHMENT,LD - Fenland Locality - Cost of Care,LD - Fenland  - Care,Supported Living
Cambridgeshire County Council,19-Jan-21,51301502865,"-1,008.00",24/7 Support UK Limited,CARE ESTABLISHMENT,LAC Placements,Placements - supported accommodation,Agency Placements - In County
Cambridgeshire County Council,27-Jan-21,51301511203,"-1,006.89",SOCIAL CARE SOLUTIONS LTD,CARE ESTABLISHMENT,LD - Hunts Locality - Cost of Care,LD - Huntingdonshire - Special Needs,Supported Living
Cambridgeshire County Council,27-Jan-21,51301511203,"-1,006.89",SOCIAL CARE SOLUTIONS LTD,CARE ESTABLISHMENT,LD - Hunts Locality - Cost of Care,LD - Huntingdonshire - Special Needs,Supported Living
Cambridgeshire County Council,27-Jan-21,51301511203,"-1,006.89",SOCIAL CARE SOLUTIONS LTD,CARE ESTABLISHMENT,LD - Hunts Locality - Cost of Care,LD - Huntingdonshire - Special Needs,Supported Living
Cambridgeshire County Council,27-Jan-21,51301511203,"-1,006.89",SOCIAL CARE SOLUTIONS LTD,CARE ESTABLISHMENT,LD - Hunts Locality - Cost of Care,LD - Huntingdonshire - Special Needs,Supported Living
Cambridgeshire County Council,27-Jan-21,51301511203,"-1,006.89",SOCIAL CARE SOLUTIONS LTD,CARE ESTABLISHMENT,LD - Hunts Locality - Cost of Care,LD - Huntingdonshire - Special Needs,Supported Living
Cambridgeshire County Council,27-Jan-21,51301511203,"-1,006.89",SOCIAL CARE SOLUTIONS LTD,CARE ESTABLISHMENT,LD - Hunts Locality - Cost of Care,LD - Huntingdonshire - Special Needs,Supported Living
Cambridgeshire County Council,27-Jan-21,51301511203,"-1,006.89",SOCIAL CARE SOLUTIONS LTD,CARE ESTABLISHMENT,LD - Hunts Locality - Cost of Care,LD - Huntingdonshire - Special Needs,Supported Living
Cambridgeshire County Council,27-Jan-21,51301511203,"-1,006.89",SOCIAL CARE SOLUTIONS LTD,CARE ESTABLISHMENT,LD - Hunts Locality - Cost of Care,LD - Huntingdonshire - Special Needs,Supported Living
Cambridgeshire County Council,27-Jan-21,51301511203,"-1,006.89",SOCIAL CARE SOLUTIONS LTD,CARE ESTABLISHMENT,LD - Hunts Locality - Cost of Care,LD - Huntingdonshire - Special Needs,Supported Living
Cambridgeshire County Council,27-Jan-21,51301511203,"-1,006.89",SOCIAL CARE SOLUTIONS LTD,CARE ESTABLISHMENT,LD - Hunts Locality - Cost of Care,LD - Huntingdonshire - Special Needs,Supported Living
Cambridgeshire County Council,27-Jan-21,51301511203,"-1,006.89",SOCIAL CARE SOLUTIONS LTD,CARE ESTABLISHMENT,LD - Hunts Locality - Cost of Care,LD - Huntingdonshire - Special Needs,Supported Living
Cambridgeshire County Council,27-Jan-21,51301511203,"-1,006.89",SOCIAL CARE SOLUTIONS LTD,CARE ESTABLISHMENT,LD - Hunts Locality - Cost of Care,LD - Huntingdonshire - Special Needs,Supported Living
Cambridgeshire County Council,22-Jan-21,51301504430,"-1,000.00",AVERY HOUSE CARE HOME,CARE ESTABLISHMENT,OP - Fenland Locality - Cost of Care,Older People - Fenland - Care,Residential Care
Cambridgeshire County Council,22-Jan-21,51301504430,"-1,000.00",AVERY HOUSE CARE HOME,CARE ESTABLISHMENT,OP - Fenland Locality - Cost of Care,Older People - Fenland - Care,Residential Care
Cambridgeshire County Council,22-Jan-21,51301504430,"-1,000.00",AVERY HOUSE CARE HOME,CARE ESTABLISHMENT,OP - Fenland Locality - Cost of Care,Older People - Fenland - Care,Residential Care
Cambridgeshire County Council,22-Jan-21,51301504430,"-1,000.00",AVERY HOUSE CARE HOME,CARE ESTABLISHMENT,OP - Fenland Locality - Cost of Care,Older People - Fenland - Care,Residential Care
Cambridgeshire County Council,22-Jan-21,51301504430,"-1,000.00",AVERY HOUSE CARE HOME,CARE ESTABLISHMENT,OP - Fenland Locality - Cost of Care,Older People - Fenland - Care,Residential Care
Cambridgeshire County Council,22-Jan-21,51301504430,"-1,000.00",AVERY HOUSE CARE HOME,CARE ESTABLISHMENT,OP - Fenland Locality - Cost of Care,Older People - Fenland - Care,Residential Care
Cambridgeshire County Council,22-Jan-21,51301504430,"-1,000.00",AVERY HOUSE CARE HOME,CARE ESTABLISHMENT,OP - Fenland Locality - Cost of Care,Older People - Fenland - Care,Residential Care
Cambridgeshire County Council,22-Jan-21,51301504430,"-1,000.00",AVERY HOUSE CARE HOME,CARE ESTABLISHMENT,OP - Fenland Locality - Cost of Care,Older People - Fenland - Care,Residential Care
Cambridgeshire County Council,22-Jan-21,51301479286,-958.00,LINKAGE COMMUNITY TRUST LTD,TRUST (OTHER),LD - Hunts Locality - Cost of Care,LD - Huntingdonshire - Care,Residential Care
Cambridgeshire County Council,08-Jan-21,51301499200,-945.98,17 HAMLETT CLOSE (VOYAGE),CARE ESTABLISHMENT,LD - Hunts Locality - Cost of Care,LD - Huntingdonshire - Care,Supported Living
Cambridgeshire County Council,08-Jan-21,51301499200,-945.98,17 HAMLETT CLOSE (VOYAGE),CARE ESTABLISHMENT,LD - Hunts Locality - Cost of Care,LD - Huntingdonshire - Care,Supported Living
Cambridgeshire County Council,08-Jan-21,51301499200,-945.98,17 HAMLETT CLOSE (VOYAGE),CARE ESTABLISHMENT,LD - Hunts Locality - Cost of Care,LD - Huntingdonshire - Care,Supported Living
Cambridgeshire County Council,08-Jan-21,51301499200,-945.98,17 HAMLETT CLOSE (VOYAGE),CARE ESTABLISHMENT,LD - Hunts Locality - Cost of Care,LD - Huntingdonshire - Care,Supported Living
Cambridgeshire County Council,08-Jan-21,51301499200,-945.98,17 HAMLETT CLOSE (VOYAGE),CARE ESTABLISHMENT,LD - Hunts Locality - Cost of Care,LD - Huntingdonshire - Care,Supported Living
Cambridgeshire County Council,08-Jan-21,51301499200,-945.98,17 HAMLETT CLOSE (VOYAGE),CARE ESTABLISHMENT,LD - Hunts Locality - Cost of Care,LD - Huntingdonshire - Care,Supported Living
Cambridgeshire County Council,08-Jan-21,51301499200,-945.98,17 HAMLETT CLOSE (VOYAGE),CARE ESTABLISHMENT,LD - Hunts Locality - Cost of Care,LD - Huntingdonshire - Care,Supported Living
Cambridgeshire County Council,08-Jan-21,51301499200,-945.98,17 HAMLETT CLOSE (VOYAGE),CARE ESTABLISHMENT,LD - Hunts Locality - Cost of Care,LD - Huntingdonshire - Care,Supported Living
Cambridgeshire County Council,08-Jan-21,51301499200,-945.98,17 HAMLETT CLOSE (VOYAGE),CARE ESTABLISHMENT,LD - Hunts Locality - Cost of Care,LD - Huntingdonshire - Care,Supported Living
Cambridgeshire County Council,08-Jan-21,51301499200,-945.98,17 HAMLETT CLOSE (VOYAGE),CARE ESTABLISHMENT,LD - Hunts Locality - Cost of Care,LD - Huntingdonshire - Care,Supported Living
Cambridgeshire County Council,08-Jan-21,51301499200,-945.98,17 HAMLETT CLOSE (VOYAGE),CARE ESTABLISHMENT,LD - Hunts Locality - Cost of Care,LD - Huntingdonshire - Care,Supported Living
Cambridgeshire County Council,08-Jan-21,51301499200,-945.98,17 HAMLETT CLOSE (VOYAGE),CARE ESTABLISHMENT,LD - Hunts Locality - Cost of Care,LD - Huntingdonshire - Care,Supported Living
Cambridgeshire County Council,08-Jan-21,51301499200,-945.98,17 HAMLETT CLOSE (VOYAGE),CARE ESTABLISHMENT,LD - Hunts Locality - Cost of Care,LD - Huntingdonshire - Care,Supported Living
Cambridgeshire County Council,08-Jan-21,51301499200,-945.98,17 HAMLETT CLOSE (VOYAGE),CARE ESTABLISHMENT,LD - Hunts Locality - Cost of Care,LD - Huntingdonshire - Care,Supported Living
Cambridgeshire County Council,08-Jan-21,51301499200,-945.98,17 HAMLETT CLOSE (VOYAGE),CARE ESTABLISHMENT,LD - Hunts Locality - Cost of Care,LD - Huntingdonshire - Care,Supported Living
Cambridgeshire County Council,08-Jan-21,51301499200,-945.98,17 HAMLETT CLOSE (VOYAGE),CARE ESTABLISHMENT,LD - Hunts Locality - Cost of Care,LD - Huntingdonshire - Care,Supported Living
Cambridgeshire County Council,08-Jan-21,51301499200,-945.98,17 HAMLETT CLOSE (VOYAGE),CARE ESTABLISHMENT,LD - Hunts Locality - Cost of Care,LD - Huntingdonshire - Care,Supported Living
Cambridgeshire County Council,08-Jan-21,51301499200,-945.98,17 HAMLETT CLOSE (VOYAGE),CARE ESTABLISHMENT,LD - Hunts Locality - Cost of Care,LD - Huntingdonshire - Care,Supported Living
Cambridgeshire County Council,08-Jan-21,51301499200,-945.98,17 HAMLETT CLOSE (VOYAGE),CARE ESTABLISHMENT,LD - Hunts Locality - Cost of Care,LD - Huntingdonshire - Care,Supported Living
Cambridgeshire County Council,08-Jan-21,51301499200,-945.98,17 HAMLETT CLOSE (VOYAGE),CARE ESTABLISHMENT,LD - Hunts Locality - Cost of Care,LD - Huntingdonshire - Care,Supported Living
Cambridgeshire County Council,08-Jan-21,51301499200,-945.98,17 HAMLETT CLOSE (VOYAGE),CARE ESTABLISHMENT,LD - Hunts Locality - Cost of Care,LD - Huntingdonshire - Care,Supported Living
Cambridgeshire County Council,08-Jan-21,51301499200,-945.98,17 HAMLETT CLOSE (VOYAGE),CARE ESTABLISHMENT,LD - Hunts Locality - Cost of Care,LD - Huntingdonshire - Care,Supported Living
Cambridgeshire County Council,08-Jan-21,51301499199,-935.78,17 HAMLETT CLOSE (VOYAGE),CARE ESTABLISHMENT,LD - Hunts Locality - Cost of Care,LD - Huntingdonshire - Care,Supported Living
Cambridgeshire County Council,08-Jan-21,51301499199,-935.78,17 HAMLETT CLOSE (VOYAGE),CARE ESTABLISHMENT,LD - Hunts Locality - Cost of Care,LD - Huntingdonshire - Care,Supported Living
Cambridgeshire County Council,08-Jan-21,51301499199,-935.78,17 HAMLETT CLOSE (VOYAGE),CARE ESTABLISHMENT,LD - Hunts Locality - Cost of Care,LD - Huntingdonshire - Care,Supported Living
Cambridgeshire County Council,08-Jan-21,51301499199,-935.78,17 HAMLETT CLOSE (VOYAGE),CARE ESTABLISHMENT,LD - Hunts Locality - Cost of Care,LD - Huntingdonshire - Care,Supported Living
Cambridgeshire County Council,08-Jan-21,51301499199,-935.78,17 HAMLETT CLOSE (VOYAGE),CARE ESTABLISHMENT,LD - Hunts Locality - Cost of Care,LD - Huntingdonshire - Care,Supported Living
Cambridgeshire County Council,08-Jan-21,51301499199,-935.78,17 HAMLETT CLOSE (VOYAGE),CARE ESTABLISHMENT,LD - Hunts Locality - Cost of Care,LD - Huntingdonshire - Care,Supported Living
Cambridgeshire County Council,08-Jan-21,51301499199,-935.78,17 HAMLETT CLOSE (VOYAGE),CARE ESTABLISHMENT,LD - Hunts Locality - Cost of Care,LD - Huntingdonshire - Care,Supported Living
Cambridgeshire County Council,08-Jan-21,51301499199,-935.78,17 HAMLETT CLOSE (VOYAGE),CARE ESTABLISHMENT,LD - Hunts Locality - Cost of Care,LD - Huntingdonshire - Care,Supported Living
Cambridgeshire County Council,08-Jan-21,51301499199,-935.78,17 HAMLETT CLOSE (VOYAGE),CARE ESTABLISHMENT,LD - Hunts Locality - Cost of Care,LD - Huntingdonshire - Care,Supported Living
Cambridgeshire County Council,08-Jan-21,51301499199,-935.78,17 HAMLETT CLOSE (VOYAGE),CARE ESTABLISHMENT,LD - Hunts Locality - Cost of Care,LD - Huntingdonshire - Care,Supported Living
Cambridgeshire County Council,08-Jan-21,51301499199,-935.78,17 HAMLETT CLOSE (VOYAGE),CARE ESTABLISHMENT,LD - Hunts Locality - Cost of Care,LD - Huntingdonshire - Care,Supported Living
Cambridgeshire County Council,08-Jan-21,51301499199,-935.78,17 HAMLETT CLOSE (VOYAGE),CARE ESTABLISHMENT,LD - Hunts Locality - Cost of Care,LD - Huntingdonshire - Care,Supported Living
Cambridgeshire County Council,08-Jan-21,51301499199,-935.78,17 HAMLETT CLOSE (VOYAGE),CARE ESTABLISHMENT,LD - Hunts Locality - Cost of Care,LD - Huntingdonshire - Care,Supported Living
Cambridgeshire County Council,08-Jan-21,51301499199,-935.78,17 HAMLETT CLOSE (VOYAGE),CARE ESTABLISHMENT,LD - Hunts Locality - Cost of Care,LD - Huntingdonshire - Care,Supported Living
Cambridgeshire County Council,08-Jan-21,51301499199,-935.78,17 HAMLETT CLOSE (VOYAGE),CARE ESTABLISHMENT,LD - Hunts Locality - Cost of Care,LD - Huntingdonshire - Care,Supported Living
Cambridgeshire County Council,08-Jan-21,51301499199,-935.78,17 HAMLETT CLOSE (VOYAGE),CARE ESTABLISHMENT,LD - Hunts Locality - Cost of Care,LD - Huntingdonshire - Care,Supported Living
Cambridgeshire County Council,08-Jan-21,51301499199,-935.78,17 HAMLETT CLOSE (VOYAGE),CARE ESTABLISHMENT,LD - Hunts Locality - Cost of Care,LD - Huntingdonshire - Care,Supported Living
Cambridgeshire County Council,08-Jan-21,51301499199,-935.78,17 HAMLETT CLOSE (VOYAGE),CARE ESTABLISHMENT,LD - Hunts Locality - Cost of Care,LD - Huntingdonshire - Care,Supported Living
Cambridgeshire County Council,08-Jan-21,51301499199,-935.78,17 HAMLETT CLOSE (VOYAGE),CARE ESTABLISHMENT,LD - Hunts Locality - Cost of Care,LD - Huntingdonshire - Care,Supported Living
Cambridgeshire County Council,08-Jan-21,51301499199,-935.78,17 HAMLETT CLOSE (VOYAGE),CARE ESTABLISHMENT,LD - Hunts Locality - Cost of Care,LD - Huntingdonshire - Care,Supported Living
Cambridgeshire County Council,08-Jan-21,51301499199,-935.78,17 HAMLETT CLOSE (VOYAGE),CARE ESTABLISHMENT,LD - Hunts Locality - Cost of Care,LD - Huntingdonshire - Care,Supported Living
Cambridgeshire County Council,08-Jan-21,51301499199,-935.78,17 HAMLETT CLOSE (VOYAGE),CARE ESTABLISHMENT,LD - Hunts Locality - Cost of Care,LD - Huntingdonshire - Care,Supported Living
Cambridgeshire County Council,22-Jan-21,51301509255,-911.08,PARK HOUSE NURSING HOME,CARE ESTABLISHMENT,OP - Fenland Locality - Cost of Care,Older People - Fenland - Care,Nursing Care
Cambridgeshire County Council,22-Jan-21,51301509255,-911.08,PARK HOUSE NURSING HOME,CARE ESTABLISHMENT,OP - Fenland Locality - Cost of Care,Older People - Fenland - Care,Nursing Care
Cambridgeshire County Council,22-Jan-21,51301509255,-911.08,PARK HOUSE NURSING HOME,CARE ESTABLISHMENT,OP - Fenland Locality - Cost of Care,Older People - Fenland - Care,Nursing Care
Cambridgeshire County Council,22-Jan-21,51301509255,-911.08,PARK HOUSE NURSING HOME,CARE ESTABLISHMENT,OP - Fenland Locality - Cost of Care,Older People - Fenland - Care,Nursing Care
Cambridgeshire County Council,22-Jan-21,51301509255,-911.08,PARK HOUSE NURSING HOME,CARE ESTABLISHMENT,OP - Fenland Locality - Cost of Care,Older People - Fenland - Care,Nursing Care
Cambridgeshire County Council,22-Jan-21,51301509255,-911.08,PARK HOUSE NURSING HOME,CARE ESTABLISHMENT,OP - Fenland Locality - Cost of Care,Older People - Fenland - Care,Nursing Care
Cambridgeshire County Council,22-Jan-21,51301509255,-911.08,PARK HOUSE NURSING HOME,CARE ESTABLISHMENT,OP - Fenland Locality - Cost of Care,Older People - Fenland - Care,Nursing Care
Cambridgeshire County Council,22-Jan-21,51301509255,-911.08,PARK HOUSE NURSING HOME,CARE ESTABLISHMENT,OP - Fenland Locality - Cost of Care,Older People - Fenland - Care,Nursing Care
Cambridgeshire County Council,14-Jan-21,51301501015,-907.37,ACTION ON HEARING LOSS,CARE ESTABLISHMENT,OP - City & South Locality - Cost of Care,Older People - City & South - Care,Residential Care
Cambridgeshire County Council,14-Jan-21,51301501015,-907.37,ACTION ON HEARING LOSS,CARE ESTABLISHMENT,OP - City & South Locality - Cost of Care,Older People - City & South - Care,Residential Care
Cambridgeshire County Council,14-Jan-21,51301501015,-907.37,ACTION ON HEARING LOSS,CARE ESTABLISHMENT,OP - City & South Locality - Cost of Care,Older People - City & South - Care,Residential Care
Cambridgeshire County Council,14-Jan-21,51301501015,-907.37,ACTION ON HEARING LOSS,CARE ESTABLISHMENT,OP - City & South Locality - Cost of Care,Older People - City & South - Care,Residential Care
Cambridgeshire County Council,14-Jan-21,51301501015,-907.37,ACTION ON HEARING LOSS,CARE ESTABLISHMENT,OP - City & South Locality - Cost of Care,Older People - City & South - Care,Residential Care
Cambridgeshire County Council,14-Jan-21,51301501015,-907.37,ACTION ON HEARING LOSS,CARE ESTABLISHMENT,OP - City & South Locality - Cost of Care,Older People - City & South - Care,Residential Care
Cambridgeshire County Council,14-Jan-21,51301501015,-907.37,ACTION ON HEARING LOSS,CARE ESTABLISHMENT,OP - City & South Locality - Cost of Care,Older People - City & South - Care,Residential Care
Cambridgeshire County Council,14-Jan-21,51301501015,-907.37,ACTION ON HEARING LOSS,CARE ESTABLISHMENT,OP - City & South Locality - Cost of Care,Older People - City & South - Care,Residential Care
Cambridgeshire County Council,14-Jan-21,51301501015,-907.37,ACTION ON HEARING LOSS,CARE ESTABLISHMENT,OP - City & South Locality - Cost of Care,Older People - City & South - Care,Residential Care
Cambridgeshire County Council,14-Jan-21,51301501015,-907.37,ACTION ON HEARING LOSS,CARE ESTABLISHMENT,OP - City & South Locality - Cost of Care,Older People - City & South - Care,Residential Care
Cambridgeshire County Council,14-Jan-21,51301501015,-907.37,ACTION ON HEARING LOSS,CARE ESTABLISHMENT,OP - City & South Locality - Cost of Care,Older People - City & South - Care,Residential Care
Cambridgeshire County Council,14-Jan-21,51301501015,-907.37,ACTION ON HEARING LOSS,CARE ESTABLISHMENT,OP - City & South Locality - Cost of Care,Older People - City & South - Care,Residential Care
Cambridgeshire County Council,14-Jan-21,51301501015,-907.37,ACTION ON HEARING LOSS,CARE ESTABLISHMENT,OP - City & South Locality - Cost of Care,Older People - City & South - Care,Residential Care
Cambridgeshire County Council,14-Jan-21,51301501015,-907.37,ACTION ON HEARING LOSS,CARE ESTABLISHMENT,OP - City & South Locality - Cost of Care,Older People - City & South - Care,Residential Care
Cambridgeshire County Council,14-Jan-21,51301501015,-907.37,ACTION ON HEARING LOSS,CARE ESTABLISHMENT,OP - City & South Locality - Cost of Care,Older People - City & South - Care,Residential Care
Cambridgeshire County Council,14-Jan-21,51301501015,-907.37,ACTION ON HEARING LOSS,CARE ESTABLISHMENT,OP - City & South Locality - Cost of Care,Older People - City & South - Care,Residential Care
Cambridgeshire County Council,14-Jan-21,51301501015,-907.37,ACTION ON HEARING LOSS,CARE ESTABLISHMENT,OP - City & South Locality - Cost of Care,Older People - City & South - Care,Residential Care
Cambridgeshire County Council,14-Jan-21,51301501015,-907.37,ACTION ON HEARING LOSS,CARE ESTABLISHMENT,OP - City & South Locality - Cost of Care,Older People - City & South - Care,Residential Care
Cambridgeshire County Council,14-Jan-21,51301501015,-907.37,ACTION ON HEARING LOSS,CARE ESTABLISHMENT,OP - City & South Locality - Cost of Care,Older People - City & South - Care,Residential Care
Cambridgeshire County Council,14-Jan-21,51301501015,-907.37,ACTION ON HEARING LOSS,CARE ESTABLISHMENT,OP - City & South Locality - Cost of Care,Older People - City & South - Care,Residential Care
Cambridgeshire County Council,14-Jan-21,51301501015,-907.37,ACTION ON HEARING LOSS,CARE ESTABLISHMENT,OP - City & South Locality - Cost of Care,Older People - City & South - Care,Residential Care
Cambridgeshire County Council,14-Jan-21,51301501015,-907.37,ACTION ON HEARING LOSS,CARE ESTABLISHMENT,OP - City & South Locality - Cost of Care,Older People - City & South - Care,Residential Care
Cambridgeshire County Council,14-Jan-21,51301501015,-907.37,ACTION ON HEARING LOSS,CARE ESTABLISHMENT,OP - City & South Locality - Cost of Care,Older People - City & South - Care,Residential Care
Cambridgeshire County Council,14-Jan-21,51301501015,-907.37,ACTION ON HEARING LOSS,CARE ESTABLISHMENT,OP - City & South Locality - Cost of Care,Older People - City & South - Care,Residential Care
Cambridgeshire County Council,14-Jan-21,51301501015,-907.37,ACTION ON HEARING LOSS,CARE ESTABLISHMENT,OP - City & South Locality - Cost of Care,Older People - City & South - Care,Residential Care
Cambridgeshire County Council,14-Jan-21,51301501015,-907.37,ACTION ON HEARING LOSS,CARE ESTABLISHMENT,OP - City & South Locality - Cost of Care,Older People - City & South - Care,Residential Care
Cambridgeshire County Council,14-Jan-21,51301501015,-907.37,ACTION ON HEARING LOSS,CARE ESTABLISHMENT,OP - City & South Locality - Cost of Care,Older People - City & South - Care,Residential Care
Cambridgeshire County Council,14-Jan-21,51301501015,-907.37,ACTION ON HEARING LOSS,CARE ESTABLISHMENT,OP - City & South Locality - Cost of Care,Older People - City & South - Care,Residential Care
Cambridgeshire County Council,14-Jan-21,51301501015,-907.37,ACTION ON HEARING LOSS,CARE ESTABLISHMENT,OP - City & South Locality - Cost of Care,Older People - City & South - Care,Residential Care
Cambridgeshire County Council,14-Jan-21,51301501015,-907.37,ACTION ON HEARING LOSS,CARE ESTABLISHMENT,OP - City & South Locality - Cost of Care,Older People - City & South - Care,Residential Care
Cambridgeshire County Council,14-Jan-21,51301501015,-907.37,ACTION ON HEARING LOSS,CARE ESTABLISHMENT,OP - City & South Locality - Cost of Care,Older People - City & South - Care,Residential Care
Cambridgeshire County Council,14-Jan-21,51301501015,-907.37,ACTION ON HEARING LOSS,CARE ESTABLISHMENT,OP - City & South Locality - Cost of Care,Older People - City & South - Care,Residential Care
Cambridgeshire County Council,14-Jan-21,51301501015,-907.37,ACTION ON HEARING LOSS,CARE ESTABLISHMENT,OP - City & South Locality - Cost of Care,Older People - City & South - Care,Residential Care
Cambridgeshire County Council,14-Jan-21,51301501015,-907.37,ACTION ON HEARING LOSS,CARE ESTABLISHMENT,OP - City & South Locality - Cost of Care,Older People - City & South - Care,Residential Care
Cambridgeshire County Council,14-Jan-21,51301501015,-907.37,ACTION ON HEARING LOSS,CARE ESTABLISHMENT,OP - City & South Locality - Cost of Care,Older People - City & South - Care,Residential Care
Cambridgeshire County Council,14-Jan-21,51301501015,-907.37,ACTION ON HEARING LOSS,CARE ESTABLISHMENT,OP - City & South Locality - Cost of Care,Older People - City & South - Care,Residential Care
Cambridgeshire County Council,14-Jan-21,51301501015,-907.37,ACTION ON HEARING LOSS,CARE ESTABLISHMENT,OP - City & South Locality - Cost of Care,Older People - City & South - Care,Residential Care
Cambridgeshire County Council,14-Jan-21,51301501015,-907.37,ACTION ON HEARING LOSS,CARE ESTABLISHMENT,OP - City & South Locality - Cost of Care,Older People - City & South - Care,Residential Care
Cambridgeshire County Council,14-Jan-21,51301501015,-907.37,ACTION ON HEARING LOSS,CARE ESTABLISHMENT,OP - City & South Locality - Cost of Care,Older People - City & South - Care,Residential Care
Cambridgeshire County Council,14-Jan-21,51301501015,-907.37,ACTION ON HEARING LOSS,CARE ESTABLISHMENT,OP - City & South Locality - Cost of Care,Older People - City & South - Care,Residential Care
Cambridgeshire County Council,14-Jan-21,51301501015,-907.37,ACTION ON HEARING LOSS,CARE ESTABLISHMENT,OP - City & South Locality - Cost of Care,Older People - City & South - Care,Residential Care
Cambridgeshire County Council,14-Jan-21,51301501015,-907.37,ACTION ON HEARING LOSS,CARE ESTABLISHMENT,OP - City & South Locality - Cost of Care,Older People - City & South - Care,Residential Care
Cambridgeshire County Council,14-Jan-21,51301501015,-907.37,ACTION ON HEARING LOSS,CARE ESTABLISHMENT,OP - City & South Locality - Cost of Care,Older People - City & South - Care,Residential Care
Cambridgeshire County Council,22-Jan-21,51301507950,-900.00,ALIWAL HEALTHCARE LTD,CARE ESTABLISHMENT,OP - Fenland Locality - Cost of Care,Older People - Fenland - Care,Residential Care
Cambridgeshire County Council,22-Jan-21,51301507950,-900.00,ALIWAL HEALTHCARE LTD,CARE ESTABLISHMENT,OP - Fenland Locality - Cost of Care,Older People - Fenland - Care,Residential Care
Cambridgeshire County Council,22-Jan-21,51301507950,-900.00,ALIWAL HEALTHCARE LTD,CARE ESTABLISHMENT,OP - Fenland Locality - Cost of Care,Older People - Fenland - Care,Residential Care
Cambridgeshire County Council,08-Jan-21,51301499201,-890.13,RENTON COURT (VOYAGE),CARE ESTABLISHMENT,LD - Hunts Locality - Cost of Care,LD - Huntingdonshire - Care,Supported Living
Cambridgeshire County Council,22-Jan-21,51301507961,-874.00,FORD HOUSE CARE HOME,CARE ESTABLISHMENT,OP - Hunts Locality - Cost of Care,Hunts OP Team - Care,Nursing Care
Cambridgeshire County Council,22-Jan-21,51301507961,-874.00,FORD HOUSE CARE HOME,CARE ESTABLISHMENT,OP - Hunts Locality - Cost of Care,Hunts OP Team - Care,Nursing Care
Cambridgeshire County Council,12-Jan-21,51301500197,-872.86,BANYA FAMILY PLACEMENT AGENCY,CARE ESTABLISHMENT,LAC Placements,Placements - independent fostering,Agency Placements - Out of  County
Cambridgeshire County Council,22-Jan-21,51301507846,-866.64,HC-ONE,CARE ESTABLISHMENT,OPMH - Hunts & Fens,Older People Mental Health Fenland,Nursing Care
Cambridgeshire County Council,22-Jan-21,51301507846,-866.64,HC-ONE,CARE ESTABLISHMENT,OPMH - Hunts & Fens,Older People Mental Health Fenland,Nursing Care
Cambridgeshire County Council,22-Jan-21,51301507846,-866.64,HC-ONE,CARE ESTABLISHMENT,OPMH - Hunts & Fens,Older People Mental Health Fenland,Nursing Care
Cambridgeshire County Council,22-Jan-21,51301507846,-866.64,HC-ONE,CARE ESTABLISHMENT,OPMH - Hunts & Fens,Older People Mental Health Fenland,Nursing Care
Cambridgeshire County Council,22-Jan-21,51301507846,-866.64,HC-ONE,CARE ESTABLISHMENT,OPMH - Hunts & Fens,Older People Mental Health Fenland,Nursing Care
Cambridgeshire County Council,22-Jan-21,51301507846,-866.64,HC-ONE,CARE ESTABLISHMENT,OPMH - Hunts & Fens,Older People Mental Health Fenland,Nursing Care
Cambridgeshire County Council,22-Jan-21,51301507846,-866.64,HC-ONE,CARE ESTABLISHMENT,OPMH - Hunts & Fens,Older People Mental Health Fenland,Nursing Care
Cambridgeshire County Council,22-Jan-21,51301507846,-866.64,HC-ONE,CARE ESTABLISHMENT,OPMH - Hunts & Fens,Older People Mental Health Fenland,Nursing Care
Cambridgeshire County Council,22-Jan-21,51301507846,-866.64,HC-ONE,CARE ESTABLISHMENT,OPMH - Hunts & Fens,Older People Mental Health Fenland,Nursing Care
Cambridgeshire County Council,22-Jan-21,51301507846,-866.64,HC-ONE,CARE ESTABLISHMENT,OPMH - Hunts & Fens,Older People Mental Health Fenland,Nursing Care
Cambridgeshire County Council,22-Jan-21,51301507846,-866.64,HC-ONE,CARE ESTABLISHMENT,OPMH - Hunts & Fens,Older People Mental Health Fenland,Nursing Care
Cambridgeshire County Council,22-Jan-21,51301507846,-866.64,HC-ONE,CARE ESTABLISHMENT,OPMH - Hunts & Fens,Older People Mental Health Fenland,Nursing Care
Cambridgeshire County Council,22-Jan-21,51301507846,-866.64,HC-ONE,CARE ESTABLISHMENT,OPMH - Hunts & Fens,Older People Mental Health Fenland,Nursing Care
Cambridgeshire County Council,22-Jan-21,51301507846,-866.64,HC-ONE,CARE ESTABLISHMENT,OPMH - Hunts & Fens,Older People Mental Health Fenland,Nursing Care
Cambridgeshire County Council,22-Jan-21,51301507846,-866.64,HC-ONE,CARE ESTABLISHMENT,OPMH - Hunts & Fens,Older People Mental Health Fenland,Nursing Care
Cambridgeshire County Council,22-Jan-21,51301507846,-866.64,HC-ONE,CARE ESTABLISHMENT,OPMH - Hunts & Fens,Older People Mental Health Fenland,Nursing Care
Cambridgeshire County Council,22-Jan-21,51301507846,-866.64,HC-ONE,CARE ESTABLISHMENT,OPMH - Hunts & Fens,Older People Mental Health Fenland,Nursing Care
Cambridgeshire County Council,22-Jan-21,51301507846,-866.64,HC-ONE,CARE ESTABLISHMENT,OPMH - Hunts & Fens,Older People Mental Health Fenland,Nursing Care
Cambridgeshire County Council,22-Jan-21,51301507846,-866.64,HC-ONE,CARE ESTABLISHMENT,OPMH - Hunts & Fens,Older People Mental Health Fenland,Nursing Care
Cambridgeshire County Council,22-Jan-21,51301507846,-866.64,HC-ONE,CARE ESTABLISHMENT,OPMH - Hunts & Fens,Older People Mental Health Fenland,Nursing Care
Cambridgeshire County Council,22-Jan-21,51301507846,-866.64,HC-ONE,CARE ESTABLISHMENT,OPMH - Hunts & Fens,Older People Mental Health Fenland,Nursing Care
Cambridgeshire County Council,22-Jan-21,51301507846,-866.64,HC-ONE,CARE ESTABLISHMENT,OPMH - Hunts & Fens,Older People Mental Health Fenland,Nursing Care
Cambridgeshire County Council,22-Jan-21,51301507846,-866.64,HC-ONE,CARE ESTABLISHMENT,OPMH - Hunts & Fens,Older People Mental Health Fenland,Nursing Care
Cambridgeshire County Council,22-Jan-21,51301507846,-866.64,HC-ONE,CARE ESTABLISHMENT,OPMH - Hunts & Fens,Older People Mental Health Fenland,Nursing Care
Cambridgeshire County Council,22-Jan-21,51301507846,-866.64,HC-ONE,CARE ESTABLISHMENT,OPMH - Hunts & Fens,Older People Mental Health Fenland,Nursing Care
Cambridgeshire County Council,22-Jan-21,51301507846,-866.64,HC-ONE,CARE ESTABLISHMENT,OPMH - Hunts & Fens,Older People Mental Health Fenland,Nursing Care
Cambridgeshire County Council,22-Jan-21,51301507846,-866.64,HC-ONE,CARE ESTABLISHMENT,OPMH - Hunts & Fens,Older People Mental Health Fenland,Nursing Care
Cambridgeshire County Council,22-Jan-21,51301507846,-866.64,HC-ONE,CARE ESTABLISHMENT,OPMH - Hunts & Fens,Older People Mental Health Fenland,Nursing Care
Cambridgeshire County Council,22-Jan-21,51301507846,-866.64,HC-ONE,CARE ESTABLISHMENT,OPMH - Hunts & Fens,Older People Mental Health Fenland,Nursing Care
Cambridgeshire County Council,22-Jan-21,51301507846,-866.64,HC-ONE,CARE ESTABLISHMENT,OPMH - Hunts & Fens,Older People Mental Health Fenland,Nursing Care
Cambridgeshire County Council,22-Jan-21,51301507846,-866.64,HC-ONE,CARE ESTABLISHMENT,OPMH - Hunts & Fens,Older People Mental Health Fenland,Nursing Care
Cambridgeshire County Council,22-Jan-21,51301507846,-866.64,HC-ONE,CARE ESTABLISHMENT,OPMH - Hunts & Fens,Older People Mental Health Fenland,Nursing Care
Cambridgeshire County Council,22-Jan-21,51301507846,-866.64,HC-ONE,CARE ESTABLISHMENT,OPMH - Hunts & Fens,Older People Mental Health Fenland,Nursing Care
Cambridgeshire County Council,22-Jan-21,51301507846,-866.64,HC-ONE,CARE ESTABLISHMENT,OPMH - Hunts & Fens,Older People Mental Health Fenland,Nursing Care
Cambridgeshire County Council,22-Jan-21,51301507846,-866.64,HC-ONE,CARE ESTABLISHMENT,OPMH - Hunts & Fens,Older People Mental Health Fenland,Nursing Care
Cambridgeshire County Council,22-Jan-21,51301507846,-866.64,HC-ONE,CARE ESTABLISHMENT,OPMH - Hunts & Fens,Older People Mental Health Fenland,Nursing Care
Cambridgeshire County Council,22-Jan-21,51301507846,-866.64,HC-ONE,CARE ESTABLISHMENT,OPMH - Hunts & Fens,Older People Mental Health Fenland,Nursing Care
Cambridgeshire County Council,22-Jan-21,51301507846,-866.64,HC-ONE,CARE ESTABLISHMENT,OPMH - Hunts & Fens,Older People Mental Health Fenland,Nursing Care
Cambridgeshire County Council,22-Jan-21,51301507846,-866.64,HC-ONE,CARE ESTABLISHMENT,OPMH - Hunts & Fens,Older People Mental Health Fenland,Nursing Care
Cambridgeshire County Council,22-Jan-21,51301507846,-866.64,HC-ONE,CARE ESTABLISHMENT,OPMH - Hunts & Fens,Older People Mental Health Fenland,Nursing Care
Cambridgeshire County Council,22-Jan-21,51301507846,-866.64,HC-ONE,CARE ESTABLISHMENT,OPMH - Hunts & Fens,Older People Mental Health Fenland,Nursing Care
Cambridgeshire County Council,22-Jan-21,51301507846,-866.64,HC-ONE,CARE ESTABLISHMENT,OPMH - Hunts & Fens,Older People Mental Health Fenland,Nursing Care
Cambridgeshire County Council,22-Jan-21,51301507846,-866.64,HC-ONE,CARE ESTABLISHMENT,OPMH - Hunts & Fens,Older People Mental Health Fenland,Nursing Care
Cambridgeshire County Council,22-Jan-21,51301507846,-866.64,HC-ONE,CARE ESTABLISHMENT,OPMH - Hunts & Fens,Older People Mental Health Fenland,Nursing Care
Cambridgeshire County Council,22-Jan-21,51301507846,-866.64,HC-ONE,CARE ESTABLISHMENT,OPMH - Hunts & Fens,Older People Mental Health Fenland,Nursing Care
Cambridgeshire County Council,22-Jan-21,51301507846,-866.64,HC-ONE,CARE ESTABLISHMENT,OPMH - Hunts & Fens,Older People Mental Health Fenland,Nursing Care
Cambridgeshire County Council,22-Jan-21,51301507846,-866.64,HC-ONE,CARE ESTABLISHMENT,OPMH - Hunts & Fens,Older People Mental Health Fenland,Nursing Care
Cambridgeshire County Council,22-Jan-21,51301507846,-866.64,HC-ONE,CARE ESTABLISHMENT,OPMH - Hunts & Fens,Older People Mental Health Fenland,Nursing Care
Cambridgeshire County Council,22-Jan-21,51301507846,-866.64,HC-ONE,CARE ESTABLISHMENT,OPMH - Hunts & Fens,Older People Mental Health Fenland,Nursing Care
Cambridgeshire County Council,22-Jan-21,51301507846,-866.64,HC-ONE,CARE ESTABLISHMENT,OPMH - Hunts & Fens,Older People Mental Health Fenland,Nursing Care
Cambridgeshire County Council,22-Jan-21,51301507846,-866.64,HC-ONE,CARE ESTABLISHMENT,OPMH - Hunts & Fens,Older People Mental Health Fenland,Nursing Care
Cambridgeshire County Council,27-Jan-21,51301511203,-863.05,SOCIAL CARE SOLUTIONS LTD,CARE ESTABLISHMENT,LD - Hunts Locality - Cost of Care,LD - Huntingdonshire - Special Needs,Supported Living
Cambridgeshire County Council,22-Jan-21,51301506571,-850.00,ORCHARD HOUSE (SAWSTON),CARE ESTABLISHMENT,OP - City & South Locality - Cost of Care,Older People - City & South - Care,Residential Care
Cambridgeshire County Council,22-Jan-21,51301506571,-850.00,ORCHARD HOUSE (SAWSTON),CARE ESTABLISHMENT,OP - City & South Locality - Cost of Care,Older People - City & South - Care,Residential Care
Cambridgeshire County Council,22-Jan-21,51301506571,-850.00,ORCHARD HOUSE (SAWSTON),CARE ESTABLISHMENT,OP - City & South Locality - Cost of Care,Older People - City & South - Care,Residential Care
Cambridgeshire County Council,22-Jan-21,51301504442,-850.00,AVERY HOUSE CARE HOME,CARE ESTABLISHMENT,OP - Hunts Locality - Cost of Care,Hunts OP Team - Care,Residential Care
Cambridgeshire County Council,22-Jan-21,51301504442,-850.00,AVERY HOUSE CARE HOME,CARE ESTABLISHMENT,OP - Hunts Locality - Cost of Care,Hunts OP Team - Care,Residential Care
Cambridgeshire County Council,22-Jan-21,51301504442,-850.00,AVERY HOUSE CARE HOME,CARE ESTABLISHMENT,OP - Hunts Locality - Cost of Care,Hunts OP Team - Care,Residential Care
Cambridgeshire County Council,22-Jan-21,51301504442,-850.00,AVERY HOUSE CARE HOME,CARE ESTABLISHMENT,OP - Hunts Locality - Cost of Care,Hunts OP Team - Care,Residential Care
Cambridgeshire County Council,22-Jan-21,51301504442,-850.00,AVERY HOUSE CARE HOME,CARE ESTABLISHMENT,OP - Hunts Locality - Cost of Care,Hunts OP Team - Care,Residential Care
Cambridgeshire County Council,22-Jan-21,51301504442,-850.00,AVERY HOUSE CARE HOME,CARE ESTABLISHMENT,OP - Hunts Locality - Cost of Care,Hunts OP Team - Care,Residential Care
Cambridgeshire County Council,22-Jan-21,51301504442,-850.00,AVERY HOUSE CARE HOME,CARE ESTABLISHMENT,OP - Hunts Locality - Cost of Care,Hunts OP Team - Care,Residential Care
Cambridgeshire County Council,22-Jan-21,51301504442,-850.00,AVERY HOUSE CARE HOME,CARE ESTABLISHMENT,OP - Hunts Locality - Cost of Care,Hunts OP Team - Care,Residential Care
Cambridgeshire County Council,22-Jan-21,51301505158,-843.27,Redacted Personal Data ,INDIVIDUAL,Physical Disablity - Cost of Care,Countywide PD Service - Care,Direct Payments
Cambridgeshire County Council,22-Jan-21,51301505158,-843.27,Redacted Personal Data ,INDIVIDUAL,Physical Disablity - Cost of Care,Countywide PD Service - Care,Direct Payments
Cambridgeshire County Council,22-Jan-21,51301505158,-843.27,Redacted Personal Data ,INDIVIDUAL,Physical Disablity - Cost of Care,Countywide PD Service - Care,Direct Payments
Cambridgeshire County Council,22-Jan-21,51301505158,-843.27,Redacted Personal Data ,INDIVIDUAL,Physical Disablity - Cost of Care,Countywide PD Service - Care,Direct Payments
Cambridgeshire County Council,22-Jan-21,51301505158,-843.27,Redacted Personal Data ,INDIVIDUAL,Physical Disablity - Cost of Care,Countywide PD Service - Care,Direct Payments
Cambridgeshire County Council,22-Jan-21,51301505158,-843.27,Redacted Personal Data ,INDIVIDUAL,Physical Disablity - Cost of Care,Countywide PD Service - Care,Direct Payments
Cambridgeshire County Council,22-Jan-21,51301505158,-843.27,Redacted Personal Data ,INDIVIDUAL,Physical Disablity - Cost of Care,Countywide PD Service - Care,Direct Payments
Cambridgeshire County Council,22-Jan-21,51301507925,-831.73,Redacted Personal Data ,INDIVIDUAL,OP - Fenland Locality - Cost of Care,Older People - Fenland - Care,Nursing Care
Cambridgeshire County Council,22-Jan-21,51301507925,-831.73,Redacted Personal Data ,INDIVIDUAL,OP - Fenland Locality - Cost of Care,Older People - Fenland - Care,Nursing Care
Cambridgeshire County Council,22-Jan-21,51301507925,-831.73,Redacted Personal Data ,INDIVIDUAL,OP - Fenland Locality - Cost of Care,Older People - Fenland - Care,Nursing Care
Cambridgeshire County Council,22-Jan-21,51301507925,-831.73,Redacted Personal Data ,INDIVIDUAL,OP - Fenland Locality - Cost of Care,Older People - Fenland - Care,Nursing Care
Cambridgeshire County Council,22-Jan-21,51301507925,-831.73,Redacted Personal Data ,INDIVIDUAL,OP - Fenland Locality - Cost of Care,Older People - Fenland - Care,Nursing Care
Cambridgeshire County Council,22-Jan-21,51301504437,-828.57,ELTISLEY MANOR (PSYCARE LTD),CARE ESTABLISHMENT,Physical Disablity - Cost of Care,Countywide PD Service - Care,Residential Care
Cambridgeshire County Council,06-Jan-21,65300016365,-803.52,A&B BETTA CARS LTD,TRADE SUPPLIER,LD - Hunts Locality - Cost of Care,LD - Huntingdonshire - Care,Service User Transport
Cambridgeshire County Council,22-Jan-21,51301504444,-800.00,AVERY HOUSE CARE HOME,CARE ESTABLISHMENT,OP - Fenland Locality - Cost of Care,Older People - Fenland - Care,Residential Care
Cambridgeshire County Council,22-Jan-21,51301504444,-800.00,AVERY HOUSE CARE HOME,CARE ESTABLISHMENT,OP - Fenland Locality - Cost of Care,Older People - Fenland - Care,Residential Care
Cambridgeshire County Council,22-Jan-21,51301504444,-800.00,AVERY HOUSE CARE HOME,CARE ESTABLISHMENT,OP - Fenland Locality - Cost of Care,Older People - Fenland - Care,Residential Care
Cambridgeshire County Council,22-Jan-21,51301508118,-800.00,A CLASS CARE LTD,CARE ESTABLISHMENT,OP - City & South Locality - Cost of Care,Older People - City & South - Care,Homecare
Cambridgeshire County Council,22-Jan-21,51301508118,-800.00,A CLASS CARE LTD,CARE ESTABLISHMENT,OP - City & South Locality - Cost of Care,Older People - City & South - Care,Homecare
Cambridgeshire County Council,29-Jan-21,51301511627,-784.44,THE GABLES SPECIALIST NURSING HOME,CARE ESTABLISHMENT,OPMH - City & South,Older People Mental Health E Cambs,Nursing Care
Cambridgeshire County Council,29-Jan-21,51301511627,-784.44,THE GABLES SPECIALIST NURSING HOME,CARE ESTABLISHMENT,OPMH - City & South,Older People Mental Health E Cambs,Nursing Care
Cambridgeshire County Council,29-Jan-21,51301511627,-784.44,THE GABLES SPECIALIST NURSING HOME,CARE ESTABLISHMENT,OPMH - City & South,Older People Mental Health E Cambs,Nursing Care
Cambridgeshire County Council,29-Jan-21,51301511627,-784.44,THE GABLES SPECIALIST NURSING HOME,CARE ESTABLISHMENT,OPMH - City & South,Older People Mental Health E Cambs,Nursing Care
Cambridgeshire County Council,29-Jan-21,51301511627,-784.44,THE GABLES SPECIALIST NURSING HOME,CARE ESTABLISHMENT,OPMH - City & South,Older People Mental Health E Cambs,Nursing Care
Cambridgeshire County Council,29-Jan-21,51301511627,-784.44,THE GABLES SPECIALIST NURSING HOME,CARE ESTABLISHMENT,OPMH - City & South,Older People Mental Health E Cambs,Nursing Care
Cambridgeshire County Council,22-Jan-21,51301506671,-781.64,KINGFISHER HOUSE,CARE ESTABLISHMENT,OP - East Cambs Locality - Cost of Care,East Cambs - O P Team - Care,Nursing Care
Cambridgeshire County Council,22-Jan-21,51301506671,-781.64,KINGFISHER HOUSE,CARE ESTABLISHMENT,OP - East Cambs Locality - Cost of Care,East Cambs - O P Team - Care,Nursing Care
Cambridgeshire County Council,22-Jan-21,51301506671,-781.64,KINGFISHER HOUSE,CARE ESTABLISHMENT,OP - East Cambs Locality - Cost of Care,East Cambs - O P Team - Care,Nursing Care
Cambridgeshire County Council,22-Jan-21,51301506671,-781.64,KINGFISHER HOUSE,CARE ESTABLISHMENT,OP - East Cambs Locality - Cost of Care,East Cambs - O P Team - Care,Nursing Care
Cambridgeshire County Council,22-Jan-21,51301506671,-781.64,KINGFISHER HOUSE,CARE ESTABLISHMENT,OP - East Cambs Locality - Cost of Care,East Cambs - O P Team - Care,Nursing Care
Cambridgeshire County Council,22-Jan-21,51301506671,-781.64,KINGFISHER HOUSE,CARE ESTABLISHMENT,OP - East Cambs Locality - Cost of Care,East Cambs - O P Team - Care,Nursing Care
Cambridgeshire County Council,22-Jan-21,51301506671,-781.64,KINGFISHER HOUSE,CARE ESTABLISHMENT,OP - East Cambs Locality - Cost of Care,East Cambs - O P Team - Care,Nursing Care
Cambridgeshire County Council,22-Jan-21,51301506671,-781.64,KINGFISHER HOUSE,CARE ESTABLISHMENT,OP - East Cambs Locality - Cost of Care,East Cambs - O P Team - Care,Nursing Care
Cambridgeshire County Council,22-Jan-21,51301506671,-781.64,KINGFISHER HOUSE,CARE ESTABLISHMENT,OP - East Cambs Locality - Cost of Care,East Cambs - O P Team - Care,Nursing Care
Cambridgeshire County Council,22-Jan-21,51301506671,-781.64,KINGFISHER HOUSE,CARE ESTABLISHMENT,OP - East Cambs Locality - Cost of Care,East Cambs - O P Team - Care,Nursing Care
Cambridgeshire County Council,22-Jan-21,51301506671,-781.64,KINGFISHER HOUSE,CARE ESTABLISHMENT,OP - East Cambs Locality - Cost of Care,East Cambs - O P Team - Care,Nursing Care
Cambridgeshire County Council,22-Jan-21,51301506671,-781.64,KINGFISHER HOUSE,CARE ESTABLISHMENT,OP - East Cambs Locality - Cost of Care,East Cambs - O P Team - Care,Nursing Care
Cambridgeshire County Council,22-Jan-21,51301506671,-781.64,KINGFISHER HOUSE,CARE ESTABLISHMENT,OP - East Cambs Locality - Cost of Care,East Cambs - O P Team - Care,Nursing Care
Cambridgeshire County Council,22-Jan-21,51301506671,-781.64,KINGFISHER HOUSE,CARE ESTABLISHMENT,OP - East Cambs Locality - Cost of Care,East Cambs - O P Team - Care,Nursing Care
Cambridgeshire County Council,22-Jan-21,51301508529,-780.00,THE ELMS NURSING HOME,CARE ESTABLISHMENT,OP - Fenland Locality - Cost of Care,Older People - Fenland - Care,Residential Care
Cambridgeshire County Council,22-Jan-21,51301508529,-780.00,THE ELMS NURSING HOME,CARE ESTABLISHMENT,OP - Fenland Locality - Cost of Care,Older People - Fenland - Care,Residential Care
Cambridgeshire County Council,22-Jan-21,51301508529,-780.00,THE ELMS NURSING HOME,CARE ESTABLISHMENT,OP - Fenland Locality - Cost of Care,Older People - Fenland - Care,Residential Care
Cambridgeshire County Council,22-Jan-21,51301508529,-780.00,THE ELMS NURSING HOME,CARE ESTABLISHMENT,OP - Fenland Locality - Cost of Care,Older People - Fenland - Care,Residential Care
Cambridgeshire County Council,22-Jan-21,51301508529,-780.00,THE ELMS NURSING HOME,CARE ESTABLISHMENT,OP - Fenland Locality - Cost of Care,Older People - Fenland - Care,Residential Care
Cambridgeshire County Council,22-Jan-21,51301508529,-780.00,THE ELMS NURSING HOME,CARE ESTABLISHMENT,OP - Fenland Locality - Cost of Care,Older People - Fenland - Care,Residential Care
Cambridgeshire County Council,22-Jan-21,51301508529,-780.00,THE ELMS NURSING HOME,CARE ESTABLISHMENT,OP - Fenland Locality - Cost of Care,Older People - Fenland - Care,Residential Care
Cambridgeshire County Council,22-Jan-21,51301508529,-780.00,THE ELMS NURSING HOME,CARE ESTABLISHMENT,OP - Fenland Locality - Cost of Care,Older People - Fenland - Care,Residential Care
Cambridgeshire County Council,22-Jan-21,51301508529,-780.00,THE ELMS NURSING HOME,CARE ESTABLISHMENT,OP - Fenland Locality - Cost of Care,Older People - Fenland - Care,Residential Care
Cambridgeshire County Council,22-Jan-21,51301508529,-780.00,THE ELMS NURSING HOME,CARE ESTABLISHMENT,OP - Fenland Locality - Cost of Care,Older People - Fenland - Care,Residential Care
Cambridgeshire County Council,22-Jan-21,51301508529,-780.00,THE ELMS NURSING HOME,CARE ESTABLISHMENT,OP - Fenland Locality - Cost of Care,Older People - Fenland - Care,Residential Care
Cambridgeshire County Council,22-Jan-21,51301508529,-780.00,THE ELMS NURSING HOME,CARE ESTABLISHMENT,OP - Fenland Locality - Cost of Care,Older People - Fenland - Care,Residential Care
Cambridgeshire County Council,22-Jan-21,51301508529,-780.00,THE ELMS NURSING HOME,CARE ESTABLISHMENT,OP - Fenland Locality - Cost of Care,Older People - Fenland - Care,Residential Care
Cambridgeshire County Council,22-Jan-21,51301508529,-780.00,THE ELMS NURSING HOME,CARE ESTABLISHMENT,OP - Fenland Locality - Cost of Care,Older People - Fenland - Care,Residential Care
Cambridgeshire County Council,22-Jan-21,51301508529,-780.00,THE ELMS NURSING HOME,CARE ESTABLISHMENT,OP - Fenland Locality - Cost of Care,Older People - Fenland - Care,Residential Care
Cambridgeshire County Council,22-Jan-21,51301508529,-780.00,THE ELMS NURSING HOME,CARE ESTABLISHMENT,OP - Fenland Locality - Cost of Care,Older People - Fenland - Care,Residential Care
Cambridgeshire County Council,22-Jan-21,51301508529,-780.00,THE ELMS NURSING HOME,CARE ESTABLISHMENT,OP - Fenland Locality - Cost of Care,Older People - Fenland - Care,Residential Care
Cambridgeshire County Council,22-Jan-21,51301508529,-780.00,THE ELMS NURSING HOME,CARE ESTABLISHMENT,OP - Fenland Locality - Cost of Care,Older People - Fenland - Care,Residential Care
Cambridgeshire County Council,22-Jan-21,51301507671,-775.28,QUALITY HOMECARE,CARE ESTABLISHMENT,Physical Disablity - Cost of Care,Countywide PD Service - Care,Domiciliary Care
Cambridgeshire County Council,22-Jan-21,51301507377,-770.50,Olive Healthcare Solutions Limited,CARE ESTABLISHMENT,OP - Fenland Locality - Cost of Care,Older People - Fenland - Care,Domiciliary Care
Cambridgeshire County Council,22-Jan-21,51301508508,-766.08,THE CAMBRIDGE NURSING CENTRE,CARE ESTABLISHMENT,OP - City & South Locality - Cost of Care,Older People - City & South - Care,Nursing Care
Cambridgeshire County Council,22-Jan-21,51301508508,-766.08,THE CAMBRIDGE NURSING CENTRE,CARE ESTABLISHMENT,OP - City & South Locality - Cost of Care,Older People - City & South - Care,Nursing Care
Cambridgeshire County Council,22-Jan-21,51301508508,-766.08,THE CAMBRIDGE NURSING CENTRE,CARE ESTABLISHMENT,OP - City & South Locality - Cost of Care,Older People - City & South - Care,Nursing Care
Cambridgeshire County Council,22-Jan-21,51301508508,-766.08,THE CAMBRIDGE NURSING CENTRE,CARE ESTABLISHMENT,OP - City & South Locality - Cost of Care,Older People - City & South - Care,Nursing Care
Cambridgeshire County Council,22-Jan-21,51301504267,-760.97,GRACEFIELD NURSING AND RESIDENTIAL HOME,CARE ESTABLISHMENT,AMH - City South,Cambridge South Mental Health,Nursing Care
Cambridgeshire County Council,22-Jan-21,51301504267,-760.97,GRACEFIELD NURSING AND RESIDENTIAL HOME,CARE ESTABLISHMENT,AMH - City South,Cambridge South Mental Health,Nursing Care
Cambridgeshire County Council,22-Jan-21,51301504267,-760.97,GRACEFIELD NURSING AND RESIDENTIAL HOME,CARE ESTABLISHMENT,AMH - City South,Cambridge South Mental Health,Nursing Care
Cambridgeshire County Council,22-Jan-21,51301504267,-760.97,GRACEFIELD NURSING AND RESIDENTIAL HOME,CARE ESTABLISHMENT,AMH - City South,Cambridge South Mental Health,Nursing Care
Cambridgeshire County Council,22-Jan-21,51301504267,-760.97,GRACEFIELD NURSING AND RESIDENTIAL HOME,CARE ESTABLISHMENT,AMH - City South,Cambridge South Mental Health,Nursing Care
Cambridgeshire County Council,22-Jan-21,51301504267,-760.97,GRACEFIELD NURSING AND RESIDENTIAL HOME,CARE ESTABLISHMENT,AMH - City South,Cambridge South Mental Health,Nursing Care
Cambridgeshire County Council,14-Jan-21,51301501097,-760.00,HOME MEADOW LTD,CARE ESTABLISHMENT,Physical Disablity - Cost of Care,Countywide PD Service - Care,Residential Care
Cambridgeshire County Council,14-Jan-21,51301501097,-760.00,HOME MEADOW LTD,CARE ESTABLISHMENT,Physical Disablity - Cost of Care,Countywide PD Service - Care,Residential Care
Cambridgeshire County Council,22-Jan-21,51301506079,-759.40,ORCHARD HOUSE NURSING HOME,CARE ESTABLISHMENT,Physical Disablity - Cost of Care,Countywide PD Service - Care,Nursing Care
Cambridgeshire County Council,22-Jan-21,51301506079,-759.40,ORCHARD HOUSE NURSING HOME,CARE ESTABLISHMENT,Physical Disablity - Cost of Care,Countywide PD Service - Care,Nursing Care
Cambridgeshire County Council,22-Jan-21,51301506079,-759.40,ORCHARD HOUSE NURSING HOME,CARE ESTABLISHMENT,Physical Disablity - Cost of Care,Countywide PD Service - Care,Nursing Care
Cambridgeshire County Council,22-Jan-21,51301506079,-759.40,ORCHARD HOUSE NURSING HOME,CARE ESTABLISHMENT,Physical Disablity - Cost of Care,Countywide PD Service - Care,Nursing Care
Cambridgeshire County Council,22-Jan-21,51301506079,-759.40,ORCHARD HOUSE NURSING HOME,CARE ESTABLISHMENT,Physical Disablity - Cost of Care,Countywide PD Service - Care,Nursing Care
Cambridgeshire County Council,22-Jan-21,51301506079,-759.40,ORCHARD HOUSE NURSING HOME,CARE ESTABLISHMENT,Physical Disablity - Cost of Care,Countywide PD Service - Care,Nursing Care
Cambridgeshire County Council,22-Jan-21,51301506079,-759.40,ORCHARD HOUSE NURSING HOME,CARE ESTABLISHMENT,Physical Disablity - Cost of Care,Countywide PD Service - Care,Nursing Care
Cambridgeshire County Council,22-Jan-21,51301506079,-759.40,ORCHARD HOUSE NURSING HOME,CARE ESTABLISHMENT,Physical Disablity - Cost of Care,Countywide PD Service - Care,Nursing Care
Cambridgeshire County Council,22-Jan-21,51301506079,-759.40,ORCHARD HOUSE NURSING HOME,CARE ESTABLISHMENT,Physical Disablity - Cost of Care,Countywide PD Service - Care,Nursing Care
Cambridgeshire County Council,22-Jan-21,51301506147,-750.00,ARIA COURT,CARE ESTABLISHMENT,OP - Fenland Locality - Cost of Care,Older People - Fenland - Care,Residential Care
Cambridgeshire County Council,22-Jan-21,51301506147,-750.00,ARIA COURT,CARE ESTABLISHMENT,OP - Fenland Locality - Cost of Care,Older People - Fenland - Care,Residential Care
Cambridgeshire County Council,22-Jan-21,51301506147,-750.00,ARIA COURT,CARE ESTABLISHMENT,OP - Fenland Locality - Cost of Care,Older People - Fenland - Care,Residential Care
Cambridgeshire County Council,22-Jan-21,51301506147,-750.00,ARIA COURT,CARE ESTABLISHMENT,OP - Fenland Locality - Cost of Care,Older People - Fenland - Care,Residential Care
Cambridgeshire County Council,22-Jan-21,51301506147,-750.00,ARIA COURT,CARE ESTABLISHMENT,OP - Fenland Locality - Cost of Care,Older People - Fenland - Care,Residential Care
Cambridgeshire County Council,22-Jan-21,51301506147,-750.00,ARIA COURT,CARE ESTABLISHMENT,OP - Fenland Locality - Cost of Care,Older People - Fenland - Care,Residential Care
Cambridgeshire County Council,22-Jan-21,51301506147,-750.00,ARIA COURT,CARE ESTABLISHMENT,OP - Fenland Locality - Cost of Care,Older People - Fenland - Care,Residential Care
Cambridgeshire County Council,22-Jan-21,51301506147,-750.00,ARIA COURT,CARE ESTABLISHMENT,OP - Fenland Locality - Cost of Care,Older People - Fenland - Care,Residential Care
Cambridgeshire County Council,22-Jan-21,51301506147,-750.00,ARIA COURT,CARE ESTABLISHMENT,OP - Fenland Locality - Cost of Care,Older People - Fenland - Care,Residential Care
Cambridgeshire County Council,22-Jan-21,51301506147,-750.00,ARIA COURT,CARE ESTABLISHMENT,OP - Fenland Locality - Cost of Care,Older People - Fenland - Care,Residential Care
Cambridgeshire County Council,22-Jan-21,51301506147,-750.00,ARIA COURT,CARE ESTABLISHMENT,OP - Fenland Locality - Cost of Care,Older People - Fenland - Care,Residential Care
Cambridgeshire County Council,22-Jan-21,51301506767,-750.00,HATLEY COURT HAVEN LTD,CARE ESTABLISHMENT,OP - City & South Locality - Cost of Care,Older People - City & South - Care,Residential Care
Cambridgeshire County Council,22-Jan-21,51301506767,-750.00,HATLEY COURT HAVEN LTD,CARE ESTABLISHMENT,OP - City & South Locality - Cost of Care,Older People - City & South - Care,Residential Care
Cambridgeshire County Council,22-Jan-21,51301506767,-750.00,HATLEY COURT HAVEN LTD,CARE ESTABLISHMENT,OP - City & South Locality - Cost of Care,Older People - City & South - Care,Residential Care
Cambridgeshire County Council,22-Jan-21,51301506767,-750.00,HATLEY COURT HAVEN LTD,CARE ESTABLISHMENT,OP - City & South Locality - Cost of Care,Older People - City & South - Care,Residential Care
Cambridgeshire County Council,22-Jan-21,51301506613,-750.00,FERRARS HALL CARE HOME,CARE ESTABLISHMENT,OP - Hunts Locality - Cost of Care,Hunts OP Team - Care,Residential Care
Cambridgeshire County Council,22-Jan-21,51301507970,-750.00,The Maltings - Pride Care Home,CARE ESTABLISHMENT,OP - Hunts Locality - Cost of Care,Hunts OP Team - Care,Residential Care
Cambridgeshire County Council,22-Jan-21,51301507900,-750.00,GREENSLEEVES HOMES  TRUST - ROSE COTTACE,CARE ESTABLISHMENT,OP - Hunts Locality - Cost of Care,Hunts OP Team - Care,Residential Care
Cambridgeshire County Council,22-Jan-21,51301507900,-750.00,GREENSLEEVES HOMES  TRUST - ROSE COTTACE,CARE ESTABLISHMENT,OP - Hunts Locality - Cost of Care,Hunts OP Team - Care,Residential Care
Cambridgeshire County Council,22-Jan-21,51301509261,-750.00,THE TUDORS RESIDENTIAL HOME,CARE ESTABLISHMENT,OPMH - Hunts & Fens,Older People Mental Health Hunts,Residential Care
Cambridgeshire County Council,22-Jan-21,51301509261,-750.00,THE TUDORS RESIDENTIAL HOME,CARE ESTABLISHMENT,OPMH - Hunts & Fens,Older People Mental Health Hunts,Residential Care
Cambridgeshire County Council,22-Jan-21,51301509261,-750.00,THE TUDORS RESIDENTIAL HOME,CARE ESTABLISHMENT,OPMH - Hunts & Fens,Older People Mental Health Hunts,Residential Care
Cambridgeshire County Council,22-Jan-21,51301509261,-750.00,THE TUDORS RESIDENTIAL HOME,CARE ESTABLISHMENT,OPMH - Hunts & Fens,Older People Mental Health Hunts,Residential Care
Cambridgeshire County Council,22-Jan-21,51301509261,-750.00,THE TUDORS RESIDENTIAL HOME,CARE ESTABLISHMENT,OPMH - Hunts & Fens,Older People Mental Health Hunts,Residential Care
Cambridgeshire County Council,22-Jan-21,51301509261,-750.00,THE TUDORS RESIDENTIAL HOME,CARE ESTABLISHMENT,OPMH - Hunts & Fens,Older People Mental Health Hunts,Residential Care
Cambridgeshire County Council,22-Jan-21,51301509261,-750.00,THE TUDORS RESIDENTIAL HOME,CARE ESTABLISHMENT,OPMH - Hunts & Fens,Older People Mental Health Hunts,Residential Care
Cambridgeshire County Council,22-Jan-21,51301509261,-750.00,THE TUDORS RESIDENTIAL HOME,CARE ESTABLISHMENT,OPMH - Hunts & Fens,Older People Mental Health Hunts,Residential Care
Cambridgeshire County Council,22-Jan-21,51301509261,-750.00,THE TUDORS RESIDENTIAL HOME,CARE ESTABLISHMENT,OPMH - Hunts & Fens,Older People Mental Health Hunts,Residential Care
Cambridgeshire County Council,22-Jan-21,51301509261,-750.00,THE TUDORS RESIDENTIAL HOME,CARE ESTABLISHMENT,OPMH - Hunts & Fens,Older People Mental Health Hunts,Residential Care
Cambridgeshire County Council,22-Jan-21,51301509261,-750.00,THE TUDORS RESIDENTIAL HOME,CARE ESTABLISHMENT,OPMH - Hunts & Fens,Older People Mental Health Hunts,Residential Care
Cambridgeshire County Council,22-Jan-21,51301504469,-730.80,TRINITY CARESTAFF SOLUTIONS LIMITED,CARE ESTABLISHMENT,OP - City & South Locality - Cost of Care,Older People - City & South - Care,Domiciliary Care
Cambridgeshire County Council,22-Jan-21,51301504469,-730.80,TRINITY CARESTAFF SOLUTIONS LIMITED,CARE ESTABLISHMENT,OP - City & South Locality - Cost of Care,Older People - City & South - Care,Domiciliary Care
Cambridgeshire County Council,29-Jan-21,51301509256,-728.08,STAR RESIDENTIAL HOME LTD,CARE ESTABLISHMENT,Physical Disablity - Cost of Care,Countywide PD Service - Care,Nursing Care
Cambridgeshire County Council,29-Jan-21,51301509256,-728.08,STAR RESIDENTIAL HOME LTD,CARE ESTABLISHMENT,Physical Disablity - Cost of Care,Countywide PD Service - Care,Nursing Care
Cambridgeshire County Council,29-Jan-21,51301509256,-728.08,STAR RESIDENTIAL HOME LTD,CARE ESTABLISHMENT,Physical Disablity - Cost of Care,Countywide PD Service - Care,Nursing Care
Cambridgeshire County Council,29-Jan-21,51301509256,-728.08,STAR RESIDENTIAL HOME LTD,CARE ESTABLISHMENT,Physical Disablity - Cost of Care,Countywide PD Service - Care,Nursing Care
Cambridgeshire County Council,29-Jan-21,51301509256,-728.08,STAR RESIDENTIAL HOME LTD,CARE ESTABLISHMENT,Physical Disablity - Cost of Care,Countywide PD Service - Care,Nursing Care
Cambridgeshire County Council,29-Jan-21,51301509256,-728.08,STAR RESIDENTIAL HOME LTD,CARE ESTABLISHMENT,Physical Disablity - Cost of Care,Countywide PD Service - Care,Nursing Care
Cambridgeshire County Council,29-Jan-21,51301509256,-728.08,STAR RESIDENTIAL HOME LTD,CARE ESTABLISHMENT,Physical Disablity - Cost of Care,Countywide PD Service - Care,Nursing Care
Cambridgeshire County Council,14-Jan-21,51301501077,-725.86,RNID LEOPOLD MULLER CARE HOME,CARE ESTABLISHMENT,OP - City & South Locality - Cost of Care,Older People - City & South - Care,Nursing Care
Cambridgeshire County Council,22-Jan-21,51301506157,-725.00,ORCHARD HOUSE NURSING HOME,CARE ESTABLISHMENT,OP - Fenland Locality - Cost of Care,Older People - Fenland - Care,Residential Care
Cambridgeshire County Council,22-Jan-21,51301506157,-725.00,ORCHARD HOUSE NURSING HOME,CARE ESTABLISHMENT,OP - Fenland Locality - Cost of Care,Older People - Fenland - Care,Residential Care
Cambridgeshire County Council,22-Jan-21,51301506157,-725.00,ORCHARD HOUSE NURSING HOME,CARE ESTABLISHMENT,OP - Fenland Locality - Cost of Care,Older People - Fenland - Care,Residential Care
Cambridgeshire County Council,22-Jan-21,51301506157,-725.00,ORCHARD HOUSE NURSING HOME,CARE ESTABLISHMENT,OP - Fenland Locality - Cost of Care,Older People - Fenland - Care,Residential Care
Cambridgeshire County Council,22-Jan-21,51301506157,-725.00,ORCHARD HOUSE NURSING HOME,CARE ESTABLISHMENT,OP - Fenland Locality - Cost of Care,Older People - Fenland - Care,Residential Care
Cambridgeshire County Council,29-Jan-21,51301511626,-724.44,ORCHARD HOUSE NURSING HOME,CARE ESTABLISHMENT,OP - Fenland Locality - Cost of Care,Older People - Fenland - Care,Nursing Care
Cambridgeshire County Council,29-Jan-21,51301511626,-724.44,ORCHARD HOUSE NURSING HOME,CARE ESTABLISHMENT,OP - Fenland Locality - Cost of Care,Older People - Fenland - Care,Nursing Care
Cambridgeshire County Council,29-Jan-21,51301511626,-724.44,ORCHARD HOUSE NURSING HOME,CARE ESTABLISHMENT,OP - Fenland Locality - Cost of Care,Older People - Fenland - Care,Nursing Care
Cambridgeshire County Council,29-Jan-21,51301511626,-724.44,ORCHARD HOUSE NURSING HOME,CARE ESTABLISHMENT,OP - Fenland Locality - Cost of Care,Older People - Fenland - Care,Nursing Care
Cambridgeshire County Council,29-Jan-21,51301511626,-724.44,ORCHARD HOUSE NURSING HOME,CARE ESTABLISHMENT,OP - Fenland Locality - Cost of Care,Older People - Fenland - Care,Nursing Care
Cambridgeshire County Council,29-Jan-21,51301511626,-724.44,ORCHARD HOUSE NURSING HOME,CARE ESTABLISHMENT,OP - Fenland Locality - Cost of Care,Older People - Fenland - Care,Nursing Care
Cambridgeshire County Council,29-Jan-21,51301511626,-724.44,ORCHARD HOUSE NURSING HOME,CARE ESTABLISHMENT,OP - Fenland Locality - Cost of Care,Older People - Fenland - Care,Nursing Care
Cambridgeshire County Council,29-Jan-21,51301511626,-724.44,ORCHARD HOUSE NURSING HOME,CARE ESTABLISHMENT,OP - Fenland Locality - Cost of Care,Older People - Fenland - Care,Nursing Care
Cambridgeshire County Council,29-Jan-21,51301511626,-724.44,ORCHARD HOUSE NURSING HOME,CARE ESTABLISHMENT,OP - Fenland Locality - Cost of Care,Older People - Fenland - Care,Nursing Care
Cambridgeshire County Council,29-Jan-21,51301511626,-724.44,ORCHARD HOUSE NURSING HOME,CARE ESTABLISHMENT,OP - Fenland Locality - Cost of Care,Older People - Fenland - Care,Nursing Care
Cambridgeshire County Council,29-Jan-21,51301511626,-724.44,ORCHARD HOUSE NURSING HOME,CARE ESTABLISHMENT,OP - Fenland Locality - Cost of Care,Older People - Fenland - Care,Nursing Care
Cambridgeshire County Council,29-Jan-21,51301511626,-724.44,ORCHARD HOUSE NURSING HOME,CARE ESTABLISHMENT,OP - Fenland Locality - Cost of Care,Older People - Fenland - Care,Nursing Care
Cambridgeshire County Council,29-Jan-21,51301511626,-724.44,ORCHARD HOUSE NURSING HOME,CARE ESTABLISHMENT,OP - Fenland Locality - Cost of Care,Older People - Fenland - Care,Nursing Care
Cambridgeshire County Council,29-Jan-21,51301511626,-724.44,ORCHARD HOUSE NURSING HOME,CARE ESTABLISHMENT,OP - Fenland Locality - Cost of Care,Older People - Fenland - Care,Nursing Care
Cambridgeshire County Council,22-Jan-21,51301508538,-716.08,ABBEY HEALTHCARE (HUNTINGDON) LTD,CARE ESTABLISHMENT,OP - Fenland Locality - Cost of Care,Older People - Fenland - Care,Nursing Care
Cambridgeshire County Council,22-Jan-21,51301508538,-716.08,ABBEY HEALTHCARE (HUNTINGDON) LTD,CARE ESTABLISHMENT,OP - Fenland Locality - Cost of Care,Older People - Fenland - Care,Nursing Care
Cambridgeshire County Council,22-Jan-21,51301506746,-716.08,KINGFISHER HOUSE,CARE ESTABLISHMENT,OP - East Cambs Locality - Cost of Care,East Cambs - O P Team - Care,Nursing Care
Cambridgeshire County Council,22-Jan-21,51301506746,-716.08,KINGFISHER HOUSE,CARE ESTABLISHMENT,OP - East Cambs Locality - Cost of Care,East Cambs - O P Team - Care,Nursing Care
Cambridgeshire County Council,14-Jan-21,51301501131,-714.90,Fairview House Care home,COMPANY,OP - City & South Locality - Cost of Care,Older People - City & South - Care,Short Term Other
Cambridgeshire County Council,14-Jan-21,51301501131,-714.90,Fairview House Care home,COMPANY,OP - City & South Locality - Cost of Care,Older People - City & South - Care,Short Term Other
Cambridgeshire County Council,14-Jan-21,51301501131,-714.90,Fairview House Care home,COMPANY,OP - City & South Locality - Cost of Care,Older People - City & South - Care,Short Term Other
Cambridgeshire County Council,14-Jan-21,51301501131,-714.90,Fairview House Care home,COMPANY,OP - City & South Locality - Cost of Care,Older People - City & South - Care,Short Term Other
Cambridgeshire County Council,14-Jan-21,51301501131,-714.90,Fairview House Care home,COMPANY,OP - City & South Locality - Cost of Care,Older People - City & South - Care,Short Term Other
Cambridgeshire County Council,14-Jan-21,51301501131,-714.90,Fairview House Care home,COMPANY,OP - City & South Locality - Cost of Care,Older People - City & South - Care,Short Term Other
Cambridgeshire County Council,14-Jan-21,51301501131,-714.90,Fairview House Care home,COMPANY,OP - City & South Locality - Cost of Care,Older People - City & South - Care,Short Term Other
Cambridgeshire County Council,14-Jan-21,51301501131,-714.90,Fairview House Care home,COMPANY,OP - City & South Locality - Cost of Care,Older People - City & South - Care,Short Term Other
Cambridgeshire County Council,14-Jan-21,51301501131,-714.90,Fairview House Care home,COMPANY,OP - City & South Locality - Cost of Care,Older People - City & South - Care,Short Term Other
Cambridgeshire County Council,14-Jan-21,51301501131,-714.90,Fairview House Care home,COMPANY,OP - City & South Locality - Cost of Care,Older People - City & South - Care,Short Term Other
Cambridgeshire County Council,14-Jan-21,51301501131,-714.90,Fairview House Care home,COMPANY,OP - City & South Locality - Cost of Care,Older People - City & South - Care,Short Term Other
Cambridgeshire County Council,14-Jan-21,51301501131,-714.90,Fairview House Care home,COMPANY,OP - City & South Locality - Cost of Care,Older People - City & South - Care,Short Term Other
Cambridgeshire County Council,14-Jan-21,51301501131,-714.90,Fairview House Care home,COMPANY,OP - City & South Locality - Cost of Care,Older People - City & South - Care,Short Term Other
Cambridgeshire County Council,14-Jan-21,51301501131,-714.90,Fairview House Care home,COMPANY,OP - City & South Locality - Cost of Care,Older People - City & South - Care,Short Term Other
Cambridgeshire County Council,14-Jan-21,51301501131,-714.90,Fairview House Care home,COMPANY,OP - City & South Locality - Cost of Care,Older People - City & South - Care,Short Term Other
Cambridgeshire County Council,14-Jan-21,51301501131,-714.90,Fairview House Care home,COMPANY,OP - City & South Locality - Cost of Care,Older People - City & South - Care,Short Term Other
Cambridgeshire County Council,14-Jan-21,51301501131,-714.90,Fairview House Care home,COMPANY,OP - City & South Locality - Cost of Care,Older People - City & South - Care,Short Term Other
Cambridgeshire County Council,14-Jan-21,51301501131,-714.90,Fairview House Care home,COMPANY,OP - City & South Locality - Cost of Care,Older People - City & South - Care,Short Term Other
Cambridgeshire County Council,14-Jan-21,51301501131,-714.90,Fairview House Care home,COMPANY,OP - City & South Locality - Cost of Care,Older People - City & South - Care,Short Term Other
Cambridgeshire County Council,14-Jan-21,51301501131,-714.90,Fairview House Care home,COMPANY,OP - City & South Locality - Cost of Care,Older People - City & South - Care,Short Term Other
Cambridgeshire County Council,14-Jan-21,51301501131,-714.90,Fairview House Care home,COMPANY,OP - City & South Locality - Cost of Care,Older People - City & South - Care,Short Term Other
Cambridgeshire County Council,14-Jan-21,51301501131,-714.90,Fairview House Care home,COMPANY,OP - City & South Locality - Cost of Care,Older People - City & South - Care,Short Term Other
Cambridgeshire County Council,14-Jan-21,51301501131,-714.90,Fairview House Care home,COMPANY,OP - City & South Locality - Cost of Care,Older People - City & South - Care,Short Term Other
Cambridgeshire County Council,14-Jan-21,51301501131,-714.90,Fairview House Care home,COMPANY,OP - City & South Locality - Cost of Care,Older People - City & South - Care,Short Term Other
Cambridgeshire County Council,14-Jan-21,51301501131,-714.90,Fairview House Care home,COMPANY,OP - City & South Locality - Cost of Care,Older People - City & South - Care,Short Term Other
Cambridgeshire County Council,14-Jan-21,51301501131,-714.90,Fairview House Care home,COMPANY,OP - City & South Locality - Cost of Care,Older People - City & South - Care,Short Term Other
Cambridgeshire County Council,14-Jan-21,51301501131,-714.90,Fairview House Care home,COMPANY,OP - City & South Locality - Cost of Care,Older People - City & South - Care,Short Term Other
Cambridgeshire County Council,14-Jan-21,51301501131,-714.90,Fairview House Care home,COMPANY,OP - City & South Locality - Cost of Care,Older People - City & South - Care,Short Term Other
Cambridgeshire County Council,14-Jan-21,51301501131,-714.90,Fairview House Care home,COMPANY,OP - City & South Locality - Cost of Care,Older People - City & South - Care,Short Term Other
Cambridgeshire County Council,14-Jan-21,51301501131,-714.90,Fairview House Care home,COMPANY,OP - City & South Locality - Cost of Care,Older People - City & South - Care,Short Term Other
Cambridgeshire County Council,14-Jan-21,51301501131,-714.90,Fairview House Care home,COMPANY,OP - City & South Locality - Cost of Care,Older People - City & South - Care,Short Term Other
Cambridgeshire County Council,14-Jan-21,51301501131,-714.90,Fairview House Care home,COMPANY,OP - City & South Locality - Cost of Care,Older People - City & South - Care,Short Term Other
Cambridgeshire County Council,14-Jan-21,51301501131,-714.90,Fairview House Care home,COMPANY,OP - City & South Locality - Cost of Care,Older People - City & South - Care,Short Term Other
Cambridgeshire County Council,14-Jan-21,51301501131,-714.90,Fairview House Care home,COMPANY,OP - City & South Locality - Cost of Care,Older People - City & South - Care,Short Term Other
Cambridgeshire County Council,14-Jan-21,51301501131,-714.90,Fairview House Care home,COMPANY,OP - City & South Locality - Cost of Care,Older People - City & South - Care,Short Term Other
Cambridgeshire County Council,14-Jan-21,51301501131,-714.90,Fairview House Care home,COMPANY,OP - City & South Locality - Cost of Care,Older People - City & South - Care,Short Term Other
Cambridgeshire County Council,14-Jan-21,51301501131,-714.90,Fairview House Care home,COMPANY,OP - City & South Locality - Cost of Care,Older People - City & South - Care,Short Term Other
Cambridgeshire County Council,14-Jan-21,51301501131,-714.90,Fairview House Care home,COMPANY,OP - City & South Locality - Cost of Care,Older People - City & South - Care,Short Term Other
Cambridgeshire County Council,22-Jan-21,51301504430,-714.29,AVERY HOUSE CARE HOME,CARE ESTABLISHMENT,OP - Fenland Locality - Cost of Care,Older People - Fenland - Care,Residential Care
Cambridgeshire County Council,22-Jan-21,51301506639,-709.44,HUNTERS HEALTHCARE (HUNTERS DOWN),CARE ESTABLISHMENT,OP - Hunts Locality - Cost of Care,Hunts OP Team - Care,Nursing Care
Cambridgeshire County Council,22-Jan-21,51301506639,-709.44,HUNTERS HEALTHCARE (HUNTERS DOWN),CARE ESTABLISHMENT,OP - Hunts Locality - Cost of Care,Hunts OP Team - Care,Nursing Care
Cambridgeshire County Council,22-Jan-21,51301506639,-709.44,HUNTERS HEALTHCARE (HUNTERS DOWN),CARE ESTABLISHMENT,OP - Hunts Locality - Cost of Care,Hunts OP Team - Care,Nursing Care
Cambridgeshire County Council,22-Jan-21,51301506639,-709.44,HUNTERS HEALTHCARE (HUNTERS DOWN),CARE ESTABLISHMENT,OP - Hunts Locality - Cost of Care,Hunts OP Team - Care,Nursing Care
Cambridgeshire County Council,22-Jan-21,51301506760,-703.00,THE RED HOUSE RESIDENTIAL & NURSING HOME,CARE ESTABLISHMENT,OP - Hunts Locality - Cost of Care,Hunts OP Team - Care,Nursing Care
Cambridgeshire County Council,29-Jan-21,51301511631,-701.64,CROMWELL HOUSE HEALTH CARE,CARE ESTABLISHMENT,OP - Hunts Locality - Cost of Care,Hunts OP Team - Care,Nursing Care
Cambridgeshire County Council,29-Jan-21,51301511631,-701.64,CROMWELL HOUSE HEALTH CARE,CARE ESTABLISHMENT,OP - Hunts Locality - Cost of Care,Hunts OP Team - Care,Nursing Care
Cambridgeshire County Council,29-Jan-21,51301511631,-701.64,CROMWELL HOUSE HEALTH CARE,CARE ESTABLISHMENT,OP - Hunts Locality - Cost of Care,Hunts OP Team - Care,Nursing Care
Cambridgeshire County Council,29-Jan-21,51301511631,-701.64,CROMWELL HOUSE HEALTH CARE,CARE ESTABLISHMENT,OP - Hunts Locality - Cost of Care,Hunts OP Team - Care,Nursing Care
Cambridgeshire County Council,29-Jan-21,51301511631,-701.64,CROMWELL HOUSE HEALTH CARE,CARE ESTABLISHMENT,OP - Hunts Locality - Cost of Care,Hunts OP Team - Care,Nursing Care
Cambridgeshire County Council,29-Jan-21,51301511631,-701.64,CROMWELL HOUSE HEALTH CARE,CARE ESTABLISHMENT,OP - Hunts Locality - Cost of Care,Hunts OP Team - Care,Nursing Care
Cambridgeshire County Council,29-Jan-21,51301511631,-701.64,CROMWELL HOUSE HEALTH CARE,CARE ESTABLISHMENT,OP - Hunts Locality - Cost of Care,Hunts OP Team - Care,Nursing Care
Cambridgeshire County Council,29-Jan-21,51301511631,-701.64,CROMWELL HOUSE HEALTH CARE,CARE ESTABLISHMENT,OP - Hunts Locality - Cost of Care,Hunts OP Team - Care,Nursing Care
Cambridgeshire County Council,29-Jan-21,51301511631,-701.64,CROMWELL HOUSE HEALTH CARE,CARE ESTABLISHMENT,OP - Hunts Locality - Cost of Care,Hunts OP Team - Care,Nursing Care
Cambridgeshire County Council,29-Jan-21,51301511631,-701.64,CROMWELL HOUSE HEALTH CARE,CARE ESTABLISHMENT,OP - Hunts Locality - Cost of Care,Hunts OP Team - Care,Nursing Care
Cambridgeshire County Council,29-Jan-21,51301511631,-701.64,CROMWELL HOUSE HEALTH CARE,CARE ESTABLISHMENT,OP - Hunts Locality - Cost of Care,Hunts OP Team - Care,Nursing Care
Cambridgeshire County Council,29-Jan-21,51301511631,-701.64,CROMWELL HOUSE HEALTH CARE,CARE ESTABLISHMENT,OP - Hunts Locality - Cost of Care,Hunts OP Team - Care,Nursing Care
Cambridgeshire County Council,29-Jan-21,51301511631,-701.64,CROMWELL HOUSE HEALTH CARE,CARE ESTABLISHMENT,OP - Hunts Locality - Cost of Care,Hunts OP Team - Care,Nursing Care
Cambridgeshire County Council,29-Jan-21,51301511631,-701.64,CROMWELL HOUSE HEALTH CARE,CARE ESTABLISHMENT,OP - Hunts Locality - Cost of Care,Hunts OP Team - Care,Nursing Care
Cambridgeshire County Council,29-Jan-21,51301511631,-701.64,CROMWELL HOUSE HEALTH CARE,CARE ESTABLISHMENT,OP - Hunts Locality - Cost of Care,Hunts OP Team - Care,Nursing Care
Cambridgeshire County Council,29-Jan-21,51301511631,-701.64,CROMWELL HOUSE HEALTH CARE,CARE ESTABLISHMENT,OP - Hunts Locality - Cost of Care,Hunts OP Team - Care,Nursing Care
Cambridgeshire County Council,29-Jan-21,51301511631,-701.64,CROMWELL HOUSE HEALTH CARE,CARE ESTABLISHMENT,OP - Hunts Locality - Cost of Care,Hunts OP Team - Care,Nursing Care
Cambridgeshire County Council,29-Jan-21,51301511631,-701.64,CROMWELL HOUSE HEALTH CARE,CARE ESTABLISHMENT,OP - Hunts Locality - Cost of Care,Hunts OP Team - Care,Nursing Care
Cambridgeshire County Council,14-Jan-21,51301496808,-701.64,CROMWELL HOUSE HEALTH CARE,CARE ESTABLISHMENT,OP - Hunts Locality - Cost of Care,Hunts OP Team - Care,Nursing Care
Cambridgeshire County Council,29-Jan-21,51301511667,-700.00,THE ELMS NURSING HOME,CARE ESTABLISHMENT,OP - Hunts Locality - Cost of Care,Hunts OP Team - Care,Residential Care
Cambridgeshire County Council,29-Jan-21,51301511667,-700.00,THE ELMS NURSING HOME,CARE ESTABLISHMENT,OP - Hunts Locality - Cost of Care,Hunts OP Team - Care,Residential Care
Cambridgeshire County Council,29-Jan-21,51301511667,-700.00,THE ELMS NURSING HOME,CARE ESTABLISHMENT,OP - Hunts Locality - Cost of Care,Hunts OP Team - Care,Residential Care
Cambridgeshire County Council,29-Jan-21,51301511667,-700.00,THE ELMS NURSING HOME,CARE ESTABLISHMENT,OP - Hunts Locality - Cost of Care,Hunts OP Team - Care,Residential Care
Cambridgeshire County Council,29-Jan-21,51301511667,-700.00,THE ELMS NURSING HOME,CARE ESTABLISHMENT,OP - Hunts Locality - Cost of Care,Hunts OP Team - Care,Residential Care
Cambridgeshire County Council,29-Jan-21,51301511667,-700.00,THE ELMS NURSING HOME,CARE ESTABLISHMENT,OP - Hunts Locality - Cost of Care,Hunts OP Team - Care,Residential Care
Cambridgeshire County Council,29-Jan-21,51301511667,-700.00,THE ELMS NURSING HOME,CARE ESTABLISHMENT,OP - Hunts Locality - Cost of Care,Hunts OP Team - Care,Residential Care
Cambridgeshire County Council,29-Jan-21,51301511667,-700.00,THE ELMS NURSING HOME,CARE ESTABLISHMENT,OP - Hunts Locality - Cost of Care,Hunts OP Team - Care,Residential Care
Cambridgeshire County Council,29-Jan-21,51301511667,-700.00,THE ELMS NURSING HOME,CARE ESTABLISHMENT,OP - Hunts Locality - Cost of Care,Hunts OP Team - Care,Residential Care
Cambridgeshire County Council,29-Jan-21,51301511667,-700.00,THE ELMS NURSING HOME,CARE ESTABLISHMENT,OP - Hunts Locality - Cost of Care,Hunts OP Team - Care,Residential Care
Cambridgeshire County Council,22-Jan-21,51301505521,-700.00,MK WORLDWIDE LTD (T/A LEAD CARE),CARE ESTABLISHMENT,OP - City & South Locality - Cost of Care,Older People - City & South - Care,Homecare
Cambridgeshire County Council,22-Jan-21,51301505521,-700.00,MK WORLDWIDE LTD (T/A LEAD CARE),CARE ESTABLISHMENT,OP - City & South Locality - Cost of Care,Older People - City & South - Care,Homecare
Cambridgeshire County Council,22-Jan-21,51301505521,-700.00,MK WORLDWIDE LTD (T/A LEAD CARE),CARE ESTABLISHMENT,OP - City & South Locality - Cost of Care,Older People - City & South - Care,Homecare
Cambridgeshire County Council,22-Jan-21,51301506743,-700.00,HILL HOUSE RESIDENTIAL HOME,CARE ESTABLISHMENT,OP - Hunts Locality - Cost of Care,Hunts OP Team - Care,Residential Care
Cambridgeshire County Council,22-Jan-21,51301506743,-700.00,HILL HOUSE RESIDENTIAL HOME,CARE ESTABLISHMENT,OP - Hunts Locality - Cost of Care,Hunts OP Team - Care,Residential Care
Cambridgeshire County Council,22-Jan-21,51301506743,-700.00,HILL HOUSE RESIDENTIAL HOME,CARE ESTABLISHMENT,OP - Hunts Locality - Cost of Care,Hunts OP Team - Care,Residential Care
Cambridgeshire County Council,22-Jan-21,51301506743,-700.00,HILL HOUSE RESIDENTIAL HOME,CARE ESTABLISHMENT,OP - Hunts Locality - Cost of Care,Hunts OP Team - Care,Residential Care
Cambridgeshire County Council,22-Jan-21,51301506247,-700.00,Glenholme Senior Living (Vera James House) limited,CARE ESTABLISHMENT,OP - East Cambs Locality - Cost of Care,East Cambs - O P Team - Care,Residential Care
Cambridgeshire County Council,22-Jan-21,51301506247,-700.00,Glenholme Senior Living (Vera James House) limited,CARE ESTABLISHMENT,OP - East Cambs Locality - Cost of Care,East Cambs - O P Team - Care,Residential Care
Cambridgeshire County Council,22-Jan-21,51301506550,-700.00,ORCHARD HOUSE (SAWSTON),CARE ESTABLISHMENT,OP - City & South Locality - Cost of Care,Older People - City & South - Care,Residential Care
Cambridgeshire County Council,22-Jan-21,51301506550,-700.00,ORCHARD HOUSE (SAWSTON),CARE ESTABLISHMENT,OP - City & South Locality - Cost of Care,Older People - City & South - Care,Residential Care
Cambridgeshire County Council,22-Jan-21,51301506550,-700.00,ORCHARD HOUSE (SAWSTON),CARE ESTABLISHMENT,OP - City & South Locality - Cost of Care,Older People - City & South - Care,Residential Care
Cambridgeshire County Council,22-Jan-21,51301506550,-700.00,ORCHARD HOUSE (SAWSTON),CARE ESTABLISHMENT,OP - City & South Locality - Cost of Care,Older People - City & South - Care,Residential Care
Cambridgeshire County Council,22-Jan-21,51301506637,-700.00,ORCHARD HOUSE (SAWSTON),CARE ESTABLISHMENT,OP - City & South Locality - Cost of Care,Older People - City & South - Care,Residential Care
Cambridgeshire County Council,22-Jan-21,51301506637,-700.00,ORCHARD HOUSE (SAWSTON),CARE ESTABLISHMENT,OP - City & South Locality - Cost of Care,Older People - City & South - Care,Residential Care
Cambridgeshire County Council,22-Jan-21,51301506637,-700.00,ORCHARD HOUSE (SAWSTON),CARE ESTABLISHMENT,OP - City & South Locality - Cost of Care,Older People - City & South - Care,Residential Care
Cambridgeshire County Council,22-Jan-21,51301506637,-700.00,ORCHARD HOUSE (SAWSTON),CARE ESTABLISHMENT,OP - City & South Locality - Cost of Care,Older People - City & South - Care,Residential Care
Cambridgeshire County Council,22-Jan-21,51301506637,-700.00,ORCHARD HOUSE (SAWSTON),CARE ESTABLISHMENT,OP - City & South Locality - Cost of Care,Older People - City & South - Care,Residential Care
Cambridgeshire County Council,22-Jan-21,51301506637,-700.00,ORCHARD HOUSE (SAWSTON),CARE ESTABLISHMENT,OP - City & South Locality - Cost of Care,Older People - City & South - Care,Residential Care
Cambridgeshire County Council,22-Jan-21,51301506637,-700.00,ORCHARD HOUSE (SAWSTON),CARE ESTABLISHMENT,OP - City & South Locality - Cost of Care,Older People - City & South - Care,Residential Care
Cambridgeshire County Council,22-Jan-21,51301506637,-700.00,ORCHARD HOUSE (SAWSTON),CARE ESTABLISHMENT,OP - City & South Locality - Cost of Care,Older People - City & South - Care,Residential Care
Cambridgeshire County Council,22-Jan-21,51301506637,-700.00,ORCHARD HOUSE (SAWSTON),CARE ESTABLISHMENT,OP - City & South Locality - Cost of Care,Older People - City & South - Care,Residential Care
Cambridgeshire County Council,22-Jan-21,51301506637,-700.00,ORCHARD HOUSE (SAWSTON),CARE ESTABLISHMENT,OP - City & South Locality - Cost of Care,Older People - City & South - Care,Residential Care
Cambridgeshire County Council,22-Jan-21,51301506637,-700.00,ORCHARD HOUSE (SAWSTON),CARE ESTABLISHMENT,OP - City & South Locality - Cost of Care,Older People - City & South - Care,Residential Care
Cambridgeshire County Council,22-Jan-21,51301506637,-700.00,ORCHARD HOUSE (SAWSTON),CARE ESTABLISHMENT,OP - City & South Locality - Cost of Care,Older People - City & South - Care,Residential Care
Cambridgeshire County Council,22-Jan-21,51301506637,-700.00,ORCHARD HOUSE (SAWSTON),CARE ESTABLISHMENT,OP - City & South Locality - Cost of Care,Older People - City & South - Care,Residential Care
Cambridgeshire County Council,22-Jan-21,51301506637,-700.00,ORCHARD HOUSE (SAWSTON),CARE ESTABLISHMENT,OP - City & South Locality - Cost of Care,Older People - City & South - Care,Residential Care
Cambridgeshire County Council,22-Jan-21,51301506637,-700.00,ORCHARD HOUSE (SAWSTON),CARE ESTABLISHMENT,OP - City & South Locality - Cost of Care,Older People - City & South - Care,Residential Care
Cambridgeshire County Council,22-Jan-21,51301506637,-700.00,ORCHARD HOUSE (SAWSTON),CARE ESTABLISHMENT,OP - City & South Locality - Cost of Care,Older People - City & South - Care,Residential Care
Cambridgeshire County Council,22-Jan-21,51301506637,-700.00,ORCHARD HOUSE (SAWSTON),CARE ESTABLISHMENT,OP - City & South Locality - Cost of Care,Older People - City & South - Care,Residential Care
Cambridgeshire County Council,22-Jan-21,51301506637,-700.00,ORCHARD HOUSE (SAWSTON),CARE ESTABLISHMENT,OP - City & South Locality - Cost of Care,Older People - City & South - Care,Residential Care
Cambridgeshire County Council,22-Jan-21,51301506637,-700.00,ORCHARD HOUSE (SAWSTON),CARE ESTABLISHMENT,OP - City & South Locality - Cost of Care,Older People - City & South - Care,Residential Care
Cambridgeshire County Council,22-Jan-21,51301506637,-700.00,ORCHARD HOUSE (SAWSTON),CARE ESTABLISHMENT,OP - City & South Locality - Cost of Care,Older People - City & South - Care,Residential Care
Cambridgeshire County Council,22-Jan-21,51301506637,-700.00,ORCHARD HOUSE (SAWSTON),CARE ESTABLISHMENT,OP - City & South Locality - Cost of Care,Older People - City & South - Care,Residential Care
Cambridgeshire County Council,14-Jan-21,51301501080,-688.85,PRIME LIFE LTD,CARE ESTABLISHMENT,AMH - Hunts & Fens,Hunts Mental Health Team,Residential Care
Cambridgeshire County Council,14-Jan-21,51301501080,-688.85,PRIME LIFE LTD,CARE ESTABLISHMENT,AMH - Hunts & Fens,Hunts Mental Health Team,Residential Care
Cambridgeshire County Council,14-Jan-21,51301501080,-688.85,PRIME LIFE LTD,CARE ESTABLISHMENT,AMH - Hunts & Fens,Hunts Mental Health Team,Residential Care
Cambridgeshire County Council,14-Jan-21,51301501080,-688.85,PRIME LIFE LTD,CARE ESTABLISHMENT,AMH - Hunts & Fens,Hunts Mental Health Team,Residential Care
Cambridgeshire County Council,14-Jan-21,51301501080,-688.85,PRIME LIFE LTD,CARE ESTABLISHMENT,AMH - Hunts & Fens,Hunts Mental Health Team,Residential Care
Cambridgeshire County Council,14-Jan-21,51301501080,-688.85,PRIME LIFE LTD,CARE ESTABLISHMENT,AMH - Hunts & Fens,Hunts Mental Health Team,Residential Care
Cambridgeshire County Council,14-Jan-21,51301501080,-688.85,PRIME LIFE LTD,CARE ESTABLISHMENT,AMH - Hunts & Fens,Hunts Mental Health Team,Residential Care
Cambridgeshire County Council,14-Jan-21,51301501080,-688.85,PRIME LIFE LTD,CARE ESTABLISHMENT,AMH - Hunts & Fens,Hunts Mental Health Team,Residential Care
Cambridgeshire County Council,14-Jan-21,51301501080,-688.85,PRIME LIFE LTD,CARE ESTABLISHMENT,AMH - Hunts & Fens,Hunts Mental Health Team,Residential Care
Cambridgeshire County Council,14-Jan-21,51301501080,-688.85,PRIME LIFE LTD,CARE ESTABLISHMENT,AMH - Hunts & Fens,Hunts Mental Health Team,Residential Care
Cambridgeshire County Council,14-Jan-21,51301501080,-688.85,PRIME LIFE LTD,CARE ESTABLISHMENT,AMH - Hunts & Fens,Hunts Mental Health Team,Residential Care
Cambridgeshire County Council,14-Jan-21,51301501080,-688.85,PRIME LIFE LTD,CARE ESTABLISHMENT,AMH - Hunts & Fens,Hunts Mental Health Team,Residential Care
Cambridgeshire County Council,14-Jan-21,51301501080,-688.85,PRIME LIFE LTD,CARE ESTABLISHMENT,AMH - Hunts & Fens,Hunts Mental Health Team,Residential Care
Cambridgeshire County Council,14-Jan-21,51301501080,-688.85,PRIME LIFE LTD,CARE ESTABLISHMENT,AMH - Hunts & Fens,Hunts Mental Health Team,Residential Care
Cambridgeshire County Council,14-Jan-21,51301501080,-688.85,PRIME LIFE LTD,CARE ESTABLISHMENT,AMH - Hunts & Fens,Hunts Mental Health Team,Residential Care
Cambridgeshire County Council,14-Jan-21,51301501080,-688.85,PRIME LIFE LTD,CARE ESTABLISHMENT,AMH - Hunts & Fens,Hunts Mental Health Team,Residential Care
Cambridgeshire County Council,14-Jan-21,51301501080,-688.85,PRIME LIFE LTD,CARE ESTABLISHMENT,AMH - Hunts & Fens,Hunts Mental Health Team,Residential Care
Cambridgeshire County Council,14-Jan-21,51301501080,-688.85,PRIME LIFE LTD,CARE ESTABLISHMENT,AMH - Hunts & Fens,Hunts Mental Health Team,Residential Care
Cambridgeshire County Council,14-Jan-21,51301501080,-688.85,PRIME LIFE LTD,CARE ESTABLISHMENT,AMH - Hunts & Fens,Hunts Mental Health Team,Residential Care
Cambridgeshire County Council,14-Jan-21,51301501080,-688.85,PRIME LIFE LTD,CARE ESTABLISHMENT,AMH - Hunts & Fens,Hunts Mental Health Team,Residential Care
Cambridgeshire County Council,14-Jan-21,51301501080,-688.85,PRIME LIFE LTD,CARE ESTABLISHMENT,AMH - Hunts & Fens,Hunts Mental Health Team,Residential Care
Cambridgeshire County Council,14-Jan-21,51301501080,-688.85,PRIME LIFE LTD,CARE ESTABLISHMENT,AMH - Hunts & Fens,Hunts Mental Health Team,Residential Care
Cambridgeshire County Council,14-Jan-21,51301501080,-688.85,PRIME LIFE LTD,CARE ESTABLISHMENT,AMH - Hunts & Fens,Hunts Mental Health Team,Residential Care
Cambridgeshire County Council,14-Jan-21,51301501080,-688.85,PRIME LIFE LTD,CARE ESTABLISHMENT,AMH - Hunts & Fens,Hunts Mental Health Team,Residential Care
Cambridgeshire County Council,14-Jan-21,51301501080,-688.85,PRIME LIFE LTD,CARE ESTABLISHMENT,AMH - Hunts & Fens,Hunts Mental Health Team,Residential Care
Cambridgeshire County Council,14-Jan-21,51301501080,-688.85,PRIME LIFE LTD,CARE ESTABLISHMENT,AMH - Hunts & Fens,Hunts Mental Health Team,Residential Care
Cambridgeshire County Council,14-Jan-21,51301501080,-688.85,PRIME LIFE LTD,CARE ESTABLISHMENT,AMH - Hunts & Fens,Hunts Mental Health Team,Residential Care
Cambridgeshire County Council,14-Jan-21,51301501080,-688.85,PRIME LIFE LTD,CARE ESTABLISHMENT,AMH - Hunts & Fens,Hunts Mental Health Team,Residential Care
Cambridgeshire County Council,14-Jan-21,51301501080,-688.85,PRIME LIFE LTD,CARE ESTABLISHMENT,AMH - Hunts & Fens,Hunts Mental Health Team,Residential Care
Cambridgeshire County Council,14-Jan-21,51301501080,-688.85,PRIME LIFE LTD,CARE ESTABLISHMENT,AMH - Hunts & Fens,Hunts Mental Health Team,Residential Care
Cambridgeshire County Council,14-Jan-21,51301501080,-688.85,PRIME LIFE LTD,CARE ESTABLISHMENT,AMH - Hunts & Fens,Hunts Mental Health Team,Residential Care
Cambridgeshire County Council,14-Jan-21,51301501080,-688.85,PRIME LIFE LTD,CARE ESTABLISHMENT,AMH - Hunts & Fens,Hunts Mental Health Team,Residential Care
Cambridgeshire County Council,14-Jan-21,51301501080,-688.85,PRIME LIFE LTD,CARE ESTABLISHMENT,AMH - Hunts & Fens,Hunts Mental Health Team,Residential Care
Cambridgeshire County Council,14-Jan-21,51301501080,-688.85,PRIME LIFE LTD,CARE ESTABLISHMENT,AMH - Hunts & Fens,Hunts Mental Health Team,Residential Care
Cambridgeshire County Council,14-Jan-21,51301501080,-688.85,PRIME LIFE LTD,CARE ESTABLISHMENT,AMH - Hunts & Fens,Hunts Mental Health Team,Residential Care
Cambridgeshire County Council,14-Jan-21,51301501080,-688.85,PRIME LIFE LTD,CARE ESTABLISHMENT,AMH - Hunts & Fens,Hunts Mental Health Team,Residential Care
Cambridgeshire County Council,14-Jan-21,51301501080,-688.85,PRIME LIFE LTD,CARE ESTABLISHMENT,AMH - Hunts & Fens,Hunts Mental Health Team,Residential Care
Cambridgeshire County Council,14-Jan-21,51301501080,-688.85,PRIME LIFE LTD,CARE ESTABLISHMENT,AMH - Hunts & Fens,Hunts Mental Health Team,Residential Care
Cambridgeshire County Council,14-Jan-21,51301501080,-688.85,PRIME LIFE LTD,CARE ESTABLISHMENT,AMH - Hunts & Fens,Hunts Mental Health Team,Residential Care
Cambridgeshire County Council,14-Jan-21,51301501014,-686.02,PRIME LIFE LTD,CARE ESTABLISHMENT,LD - Hunts Locality - Cost of Care,LD - Huntingdonshire - Care,Residential Care
Cambridgeshire County Council,14-Jan-21,51301501014,-686.02,PRIME LIFE LTD,CARE ESTABLISHMENT,LD - Hunts Locality - Cost of Care,LD - Huntingdonshire - Care,Residential Care
Cambridgeshire County Council,14-Jan-21,51301501014,-686.02,PRIME LIFE LTD,CARE ESTABLISHMENT,LD - Hunts Locality - Cost of Care,LD - Huntingdonshire - Care,Residential Care
Cambridgeshire County Council,14-Jan-21,51301501014,-686.02,PRIME LIFE LTD,CARE ESTABLISHMENT,LD - Hunts Locality - Cost of Care,LD - Huntingdonshire - Care,Residential Care
Cambridgeshire County Council,14-Jan-21,51301501014,-686.02,PRIME LIFE LTD,CARE ESTABLISHMENT,LD - Hunts Locality - Cost of Care,LD - Huntingdonshire - Care,Residential Care
Cambridgeshire County Council,14-Jan-21,51301501014,-686.02,PRIME LIFE LTD,CARE ESTABLISHMENT,LD - Hunts Locality - Cost of Care,LD - Huntingdonshire - Care,Residential Care
Cambridgeshire County Council,14-Jan-21,51301501014,-686.02,PRIME LIFE LTD,CARE ESTABLISHMENT,LD - Hunts Locality - Cost of Care,LD - Huntingdonshire - Care,Residential Care
Cambridgeshire County Council,14-Jan-21,51301501014,-686.02,PRIME LIFE LTD,CARE ESTABLISHMENT,LD - Hunts Locality - Cost of Care,LD - Huntingdonshire - Care,Residential Care
Cambridgeshire County Council,14-Jan-21,51301501014,-686.02,PRIME LIFE LTD,CARE ESTABLISHMENT,LD - Hunts Locality - Cost of Care,LD - Huntingdonshire - Care,Residential Care
Cambridgeshire County Council,14-Jan-21,51301501014,-686.02,PRIME LIFE LTD,CARE ESTABLISHMENT,LD - Hunts Locality - Cost of Care,LD - Huntingdonshire - Care,Residential Care
Cambridgeshire County Council,14-Jan-21,51301501014,-686.02,PRIME LIFE LTD,CARE ESTABLISHMENT,LD - Hunts Locality - Cost of Care,LD - Huntingdonshire - Care,Residential Care
Cambridgeshire County Council,14-Jan-21,51301501014,-686.02,PRIME LIFE LTD,CARE ESTABLISHMENT,LD - Hunts Locality - Cost of Care,LD - Huntingdonshire - Care,Residential Care
Cambridgeshire County Council,14-Jan-21,51301501014,-686.02,PRIME LIFE LTD,CARE ESTABLISHMENT,LD - Hunts Locality - Cost of Care,LD - Huntingdonshire - Care,Residential Care
Cambridgeshire County Council,14-Jan-21,51301501014,-686.02,PRIME LIFE LTD,CARE ESTABLISHMENT,LD - Hunts Locality - Cost of Care,LD - Huntingdonshire - Care,Residential Care
Cambridgeshire County Council,14-Jan-21,51301501014,-686.02,PRIME LIFE LTD,CARE ESTABLISHMENT,LD - Hunts Locality - Cost of Care,LD - Huntingdonshire - Care,Residential Care
Cambridgeshire County Council,14-Jan-21,51301501014,-686.02,PRIME LIFE LTD,CARE ESTABLISHMENT,LD - Hunts Locality - Cost of Care,LD - Huntingdonshire - Care,Residential Care
Cambridgeshire County Council,14-Jan-21,51301501014,-686.02,PRIME LIFE LTD,CARE ESTABLISHMENT,LD - Hunts Locality - Cost of Care,LD - Huntingdonshire - Care,Residential Care
Cambridgeshire County Council,14-Jan-21,51301501014,-686.02,PRIME LIFE LTD,CARE ESTABLISHMENT,LD - Hunts Locality - Cost of Care,LD - Huntingdonshire - Care,Residential Care
Cambridgeshire County Council,14-Jan-21,51301501014,-686.02,PRIME LIFE LTD,CARE ESTABLISHMENT,LD - Hunts Locality - Cost of Care,LD - Huntingdonshire - Care,Residential Care
Cambridgeshire County Council,14-Jan-21,51301501014,-686.02,PRIME LIFE LTD,CARE ESTABLISHMENT,LD - Hunts Locality - Cost of Care,LD - Huntingdonshire - Care,Residential Care
Cambridgeshire County Council,14-Jan-21,51301501014,-686.02,PRIME LIFE LTD,CARE ESTABLISHMENT,LD - Hunts Locality - Cost of Care,LD - Huntingdonshire - Care,Residential Care
Cambridgeshire County Council,14-Jan-21,51301501014,-686.02,PRIME LIFE LTD,CARE ESTABLISHMENT,LD - Hunts Locality - Cost of Care,LD - Huntingdonshire - Care,Residential Care
Cambridgeshire County Council,14-Jan-21,51301501014,-686.02,PRIME LIFE LTD,CARE ESTABLISHMENT,LD - Hunts Locality - Cost of Care,LD - Huntingdonshire - Care,Residential Care
Cambridgeshire County Council,14-Jan-21,51301501014,-686.02,PRIME LIFE LTD,CARE ESTABLISHMENT,LD - Hunts Locality - Cost of Care,LD - Huntingdonshire - Care,Residential Care
Cambridgeshire County Council,14-Jan-21,51301501014,-686.02,PRIME LIFE LTD,CARE ESTABLISHMENT,LD - Hunts Locality - Cost of Care,LD - Huntingdonshire - Care,Residential Care
Cambridgeshire County Council,14-Jan-21,51301501014,-686.02,PRIME LIFE LTD,CARE ESTABLISHMENT,LD - Hunts Locality - Cost of Care,LD - Huntingdonshire - Care,Residential Care
Cambridgeshire County Council,14-Jan-21,51301501014,-686.02,PRIME LIFE LTD,CARE ESTABLISHMENT,LD - Hunts Locality - Cost of Care,LD - Huntingdonshire - Care,Residential Care
Cambridgeshire County Council,14-Jan-21,51301501014,-686.02,PRIME LIFE LTD,CARE ESTABLISHMENT,LD - Hunts Locality - Cost of Care,LD - Huntingdonshire - Care,Residential Care
Cambridgeshire County Council,14-Jan-21,51301501014,-686.02,PRIME LIFE LTD,CARE ESTABLISHMENT,LD - Hunts Locality - Cost of Care,LD - Huntingdonshire - Care,Residential Care
Cambridgeshire County Council,14-Jan-21,51301501014,-686.02,PRIME LIFE LTD,CARE ESTABLISHMENT,LD - Hunts Locality - Cost of Care,LD - Huntingdonshire - Care,Residential Care
Cambridgeshire County Council,14-Jan-21,51301501014,-686.02,PRIME LIFE LTD,CARE ESTABLISHMENT,LD - Hunts Locality - Cost of Care,LD - Huntingdonshire - Care,Residential Care
Cambridgeshire County Council,14-Jan-21,51301501014,-686.02,PRIME LIFE LTD,CARE ESTABLISHMENT,LD - Hunts Locality - Cost of Care,LD - Huntingdonshire - Care,Residential Care
Cambridgeshire County Council,14-Jan-21,51301501014,-686.02,PRIME LIFE LTD,CARE ESTABLISHMENT,LD - Hunts Locality - Cost of Care,LD - Huntingdonshire - Care,Residential Care
Cambridgeshire County Council,14-Jan-21,51301501014,-686.02,PRIME LIFE LTD,CARE ESTABLISHMENT,LD - Hunts Locality - Cost of Care,LD - Huntingdonshire - Care,Residential Care
Cambridgeshire County Council,14-Jan-21,51301501014,-686.02,PRIME LIFE LTD,CARE ESTABLISHMENT,LD - Hunts Locality - Cost of Care,LD - Huntingdonshire - Care,Residential Care
Cambridgeshire County Council,14-Jan-21,51301501014,-686.02,PRIME LIFE LTD,CARE ESTABLISHMENT,LD - Hunts Locality - Cost of Care,LD - Huntingdonshire - Care,Residential Care
Cambridgeshire County Council,14-Jan-21,51301501014,-686.02,PRIME LIFE LTD,CARE ESTABLISHMENT,LD - Hunts Locality - Cost of Care,LD - Huntingdonshire - Care,Residential Care
Cambridgeshire County Council,14-Jan-21,51301501014,-686.02,PRIME LIFE LTD,CARE ESTABLISHMENT,LD - Hunts Locality - Cost of Care,LD - Huntingdonshire - Care,Residential Care
Cambridgeshire County Council,14-Jan-21,51301501014,-686.02,PRIME LIFE LTD,CARE ESTABLISHMENT,LD - Hunts Locality - Cost of Care,LD - Huntingdonshire - Care,Residential Care
Cambridgeshire County Council,14-Jan-21,51301501014,-686.02,PRIME LIFE LTD,CARE ESTABLISHMENT,LD - Hunts Locality - Cost of Care,LD - Huntingdonshire - Care,Residential Care
Cambridgeshire County Council,14-Jan-21,51301501014,-686.02,PRIME LIFE LTD,CARE ESTABLISHMENT,LD - Hunts Locality - Cost of Care,LD - Huntingdonshire - Care,Residential Care
Cambridgeshire County Council,22-Jan-21,51301508118,-685.71,A CLASS CARE LTD,CARE ESTABLISHMENT,OP - City & South Locality - Cost of Care,Older People - City & South - Care,Homecare
Cambridgeshire County Council,14-Jan-21,51301501128,-684.00,THE HELPING HANDS GROUP,CARE ESTABLISHMENT,LD - Young Adults Team,LD - Young Adults - Care,Day Care
Cambridgeshire County Council,14-Jan-21,51301501128,-684.00,THE HELPING HANDS GROUP,CARE ESTABLISHMENT,LD - Young Adults Team,LD - Young Adults - Care,Day Care
Cambridgeshire County Council,14-Jan-21,51301501128,-684.00,THE HELPING HANDS GROUP,CARE ESTABLISHMENT,LD - Young Adults Team,LD - Young Adults - Care,Day Care
Cambridgeshire County Council,14-Jan-21,51301501128,-684.00,THE HELPING HANDS GROUP,CARE ESTABLISHMENT,LD - Young Adults Team,LD - Young Adults - Care,Day Care
Cambridgeshire County Council,14-Jan-21,51301501128,-684.00,THE HELPING HANDS GROUP,CARE ESTABLISHMENT,LD - Young Adults Team,LD - Young Adults - Care,Day Care
Cambridgeshire County Council,14-Jan-21,51301501128,-684.00,THE HELPING HANDS GROUP,CARE ESTABLISHMENT,LD - Young Adults Team,LD - Young Adults - Care,Day Care
Cambridgeshire County Council,14-Jan-21,51301501128,-684.00,THE HELPING HANDS GROUP,CARE ESTABLISHMENT,LD - Young Adults Team,LD - Young Adults - Care,Day Care
Cambridgeshire County Council,14-Jan-21,51301501128,-684.00,THE HELPING HANDS GROUP,CARE ESTABLISHMENT,LD - Young Adults Team,LD - Young Adults - Care,Day Care
Cambridgeshire County Council,14-Jan-21,51301501128,-684.00,THE HELPING HANDS GROUP,CARE ESTABLISHMENT,LD - Young Adults Team,LD - Young Adults - Care,Day Care
Cambridgeshire County Council,14-Jan-21,51301501128,-684.00,THE HELPING HANDS GROUP,CARE ESTABLISHMENT,LD - Young Adults Team,LD - Young Adults - Care,Day Care
Cambridgeshire County Council,14-Jan-21,51301501128,-684.00,THE HELPING HANDS GROUP,CARE ESTABLISHMENT,LD - Young Adults Team,LD - Young Adults - Care,Day Care
Cambridgeshire County Council,22-Jan-21,51301507965,-675.00,CLAYBURN COURT (DUAL RES/NURS (LA/NHS))(67049),CARE ESTABLISHMENT,OP - Hunts Locality - Cost of Care,Hunts OP Team - Care,Residential Care
Cambridgeshire County Council,22-Jan-21,51301507965,-675.00,CLAYBURN COURT (DUAL RES/NURS (LA/NHS))(67049),CARE ESTABLISHMENT,OP - Hunts Locality - Cost of Care,Hunts OP Team - Care,Residential Care
Cambridgeshire County Council,22-Jan-21,51301507965,-675.00,CLAYBURN COURT (DUAL RES/NURS (LA/NHS))(67049),CARE ESTABLISHMENT,OP - Hunts Locality - Cost of Care,Hunts OP Team - Care,Residential Care
Cambridgeshire County Council,22-Jan-21,51301508528,-673.00,LILY HOUSE,CARE ESTABLISHMENT,OP - City & South Locality - Cost of Care,Older People - City & South - Care,Residential Care
Cambridgeshire County Council,22-Jan-21,51301508528,-673.00,LILY HOUSE,CARE ESTABLISHMENT,OP - City & South Locality - Cost of Care,Older People - City & South - Care,Residential Care
Cambridgeshire County Council,22-Jan-21,51301506671,-669.98,KINGFISHER HOUSE,CARE ESTABLISHMENT,OP - East Cambs Locality - Cost of Care,East Cambs - O P Team - Care,Nursing Care
Cambridgeshire County Council,22-Jan-21,51301504734,-669.90,TRINITY CARESTAFF SOLUTIONS LIMITED,CARE ESTABLISHMENT,OP - City & South Locality - Cost of Care,Older People - City & South - Care,Domiciliary Care
Cambridgeshire County Council,22-Jan-21,51301504734,-669.90,TRINITY CARESTAFF SOLUTIONS LIMITED,CARE ESTABLISHMENT,OP - City & South Locality - Cost of Care,Older People - City & South - Care,Domiciliary Care
Cambridgeshire County Council,22-Jan-21,51301504734,-669.90,TRINITY CARESTAFF SOLUTIONS LIMITED,CARE ESTABLISHMENT,OP - City & South Locality - Cost of Care,Older People - City & South - Care,Domiciliary Care
Cambridgeshire County Council,22-Jan-21,51301504734,-669.90,TRINITY CARESTAFF SOLUTIONS LIMITED,CARE ESTABLISHMENT,OP - City & South Locality - Cost of Care,Older People - City & South - Care,Domiciliary Care
Cambridgeshire County Council,22-Jan-21,51301507964,-663.00,THE MEADOWS NURSING HOME,CARE ESTABLISHMENT,OP - East Cambs Locality - Cost of Care,East Cambs - O P Team - Care,Residential Care
Cambridgeshire County Council,22-Jan-21,51301507964,-663.00,THE MEADOWS NURSING HOME,CARE ESTABLISHMENT,OP - East Cambs Locality - Cost of Care,East Cambs - O P Team - Care,Residential Care
Cambridgeshire County Council,22-Jan-21,51301507964,-663.00,THE MEADOWS NURSING HOME,CARE ESTABLISHMENT,OP - East Cambs Locality - Cost of Care,East Cambs - O P Team - Care,Residential Care
Cambridgeshire County Council,22-Jan-21,51301501492,-659.33,CAERUS CARE LTD,CARE ESTABLISHMENT,LD - Young Adults Team,LD - Young Adults - Care,Supported Living
Cambridgeshire County Council,22-Jan-21,51301501492,-659.33,CAERUS CARE LTD,CARE ESTABLISHMENT,LD - Young Adults Team,LD - Young Adults - Care,Supported Living
Cambridgeshire County Council,22-Jan-21,51301501492,-659.33,CAERUS CARE LTD,CARE ESTABLISHMENT,LD - Young Adults Team,LD - Young Adults - Care,Supported Living
Cambridgeshire County Council,22-Jan-21,51301501492,-659.33,CAERUS CARE LTD,CARE ESTABLISHMENT,LD - Young Adults Team,LD - Young Adults - Care,Supported Living
Cambridgeshire County Council,22-Jan-21,51301508508,-656.64,THE CAMBRIDGE NURSING CENTRE,CARE ESTABLISHMENT,OP - City & South Locality - Cost of Care,Older People - City & South - Care,Nursing Care
